﻿organisation_name,service_responsible,supplier_code,supplier_name,payment_date,transaction_ref,net_amount_by_line_item,irrecoverable_vat,purpose_of_spend,procurement_category_name,transaction_type,payment_type,card_transaction,invoice_date,financial_year,financial_period,supplier_invoice_reference,cost_centre_code,cost_centre_desc,account_code,account_desc,SeRCOP_subdivision_code,SeRCOP_Subdivision_description,SeRCOP_division_codee,SeRCOP_division_description,SeRCOP_service_code,SeRCOP_service_description,SeRCOP_major_service_code,SeRCOP_major_service_description
GUILDFORD BOROUGH COUNCIL,Regulatory Services,1000015,Surrey First Aid Training,30/03/2023,30094942,310,0,Staff Costs,,Invoice,BACS,No,06/02/2023 00:00,2022,12,IV11138,G2525,Health And Safety,A7100,Staff Costs,CEE30,Health and Safety,CEE,Environmental Health (Regulatory Services),CE,Environmental & Regulatory Services,C,"Cultural, Environmental & Planning Services"
GUILDFORD BOROUGH COUNCIL,Planning & Development,1000021,Portal Planquest Ltd.,30/03/2023,30098996,924,0,Planning Fees,,Invoice,BACS,No,04/09/2022 00:00,2022,12,PP11520991v1NWR,D5100,Development Control - Fee Earn,K4006,Planning Fees,CPC00,Development Control Advice,CPC,Development Control,CP,Planning and Development Services,C,"Cultural, Environmental & Planning Services"
GUILDFORD BOROUGH COUNCIL,Planning & Development,1000021,Portal Planquest Ltd.,10/01/2023,30092095,256,0,Planning Fees,,Invoice,BACS,No,29/12/2022 00:00,2022,10,PP11755796v1QKT,D5100,Development Control - Fee Earn,K4006,Planning Fees,CPC00,Development Control Advice,CPC,Development Control,CP,Planning and Development Services,C,"Cultural, Environmental & Planning Services"
GUILDFORD BOROUGH COUNCIL,Planning & Development,1000021,Portal Planquest Ltd.,31/01/2023,30093745,462,0,Planning Fees,,Invoice,BACS,No,24/01/2023 00:00,2022,10,PP11670055v1YDL,D5100,Development Control - Fee Earn,K4006,Planning Fees,CPC00,Development Control Advice,CPC,Development Control,CP,Planning and Development Services,C,"Cultural, Environmental & Planning Services"
GUILDFORD BOROUGH COUNCIL,Planning & Development,1000021,Portal Planquest Ltd.,17/01/2023,30092718,1848,0,Planning Fees,,Invoice,BACS,No,22/11/2021 00:00,2022,10,PP10388932v1URL,D5100,Development Control - Fee Earn,K4006,Planning Fees,CPC00,Development Control Advice,CPC,Development Control,CP,Planning and Development Services,C,"Cultural, Environmental & Planning Services"
GUILDFORD BOROUGH COUNCIL,Planning & Development,1000021,Portal Planquest Ltd.,19/01/2023,30092727,924,0,Planning Fees,,Invoice,BACS,No,09/01/2023 00:00,2022,10,PP10468866v1HTK,D5100,Development Control - Fee Earn,K4006,Planning Fees,CPC00,Development Control Advice,CPC,Development Control,CP,Planning and Development Services,C,"Cultural, Environmental & Planning Services"
GUILDFORD BOROUGH COUNCIL,Planning & Development,1000021,Portal Planquest Ltd.,19/01/2023,30092728,924,0,Planning Fees,,Invoice,BACS,No,09/01/2023 00:00,2022,10,PP10468856v1LEJ,D5100,Development Control - Fee Earn,K4006,Planning Fees,CPC00,Development Control Advice,CPC,Development Control,CP,Planning and Development Services,C,"Cultural, Environmental & Planning Services"
GUILDFORD BOROUGH COUNCIL,Planning & Development,1000021,Portal Planquest Ltd.,19/01/2023,30092916,462,0,Planning Fees,,Invoice,BACS,No,10/01/2023 00:00,2022,10,PP10166966v1LZC,D5100,Development Control - Fee Earn,K4006,Planning Fees,CPC00,Development Control Advice,CPC,Development Control,CP,Planning and Development Services,C,"Cultural, Environmental & Planning Services"
GUILDFORD BOROUGH COUNCIL,Environmental Services,1000024,Turfleet Hire,28/02/2023,30094254,1550,0,External Vehicle Hire,,Invoice,BACS,No,31/01/2023 00:00,2022,10,456511,A1300,Trees And Countryside,C3001,External Vehicle Hire,CCE00,Community Parks & Open Spaces,CCE,Open Spaces,CC,Cultural & Related Services,C,"Cultural, Environmental & Planning Services"
GUILDFORD BOROUGH COUNCIL,Environmental Services,1000024,Turfleet Hire,31/01/2023,30092495,1550,0,External Vehicle Hire,,Invoice,BACS,No,05/01/2023 00:00,2022,10,456170,A1300,Trees And Countryside,C3001,External Vehicle Hire,CCE00,Community Parks & Open Spaces,CCE,Open Spaces,CC,Cultural & Related Services,C,"Cultural, Environmental & Planning Services"
GUILDFORD BOROUGH COUNCIL,Environmental Services,1000024,Turfleet Hire,30/03/2023,30097147,1550,0,External Vehicle Hire,,Invoice,BACS,No,07/03/2023 00:00,2022,12,459128,A1300,Trees And Countryside,C3001,External Vehicle Hire,CCE00,Community Parks & Open Spaces,CCE,Open Spaces,CC,Cultural & Related Services,C,"Cultural, Environmental & Planning Services"
GUILDFORD BOROUGH COUNCIL,Environmental Services,1000039,Maziak Compressor Services Ltd,30/03/2023,30097775,775.21,0,Services,,Invoice,BACS,No,16/03/2023 00:00,2022,12,27509,K5551,Fleet Workshops,D6004,Services,W3A48,Current Service Costs - Fleet Management,W3A,Current Service Costs adjustment,W3,Current Service Costs,W,Other Operating Income and Expenditure
GUILDFORD BOROUGH COUNCIL,Environmental Services,1000039,Maziak Compressor Services Ltd,30/03/2023,30098566,370,0,Services,,Invoice,BACS,No,22/03/2023 00:00,2022,12,27572,K5551,Fleet Workshops,D6004,Services,W3A48,Current Service Costs - Fleet Management,W3A,Current Service Costs adjustment,W3,Current Service Costs,W,Other Operating Income and Expenditure
GUILDFORD BOROUGH COUNCIL,Communication & Customer Services,1000040,Westcountry Group,21/03/2023,30096029,1192,0,Stationery & Paper,,Invoice,BACS,No,22/02/2023 00:00,2022,11,44129,G3550,Resources Caseworker,D5007,Stationery & Paper,DBX35,Finance (including Internal Audit),DBX,Support Service and Management Costs,DB,Children's Social Care,E,Childrens and Education Services
GUILDFORD BOROUGH COUNCIL,Environmental Services,1000043,NCH Lubricants,28/02/2023,30095957,303.9,0,Equipment,,Invoice,BACS,No,08/02/2023 00:00,2022,11,1200044112,K5551,Fleet Workshops,D2001,Equipment,W3A48,Current Service Costs - Fleet Management,W3A,Current Service Costs adjustment,W3,Current Service Costs,W,Other Operating Income and Expenditure
GUILDFORD BOROUGH COUNCIL,Environmental Services,1000043,NCH Lubricants,16/02/2023,30093773,1850.3,0,Equipment,,Invoice,BACS,No,23/01/2023 00:00,2022,10,1200043806,K5551,Fleet Workshops,D2001,Equipment,W3A48,Current Service Costs - Fleet Management,W3A,Current Service Costs adjustment,W3,Current Service Costs,W,Other Operating Income and Expenditure
GUILDFORD BOROUGH COUNCIL,Industrial Estates,1000050,Stevens and Bolton,17/03/2023,30096697,800000,0,Miscellaneous Expenses,,Invoice,BACS,No,24/02/2023 00:00,2022,12,398087,P72045,Strategic Property Acquisitions,1444,Miscellaneous Expenses,XXX99,*** UNASSIGNED ***,WCC,CEC Recharges,WC,CEC Recharges,A,Central Services
GUILDFORD BOROUGH COUNCIL,Commercial Services,1000050,Stevens and Bolton,16/03/2023,30096464,1450,0,Services,,Invoice,BACS,No,21/02/2023 00:00,2022,12,1392624,B5201,Artington Park & Ride,D6004,Services,HTT11,Support to Public Transport Operators - Bus Services,HTT,Public Transport,HT,"Highways, Roads and Transport Services",H,"Highways, Roads and Transport Services"
GUILDFORD BOROUGH COUNCIL,Communication & Customer Services,1000065,Canon (UK) Ltd,09/03/2023,30095418,269.8,0,Stationery & Paper,,Invoice,BACS,No,13/02/2023 00:00,2022,11,44247736,G4545,Reprographics,D5007,Stationery & Paper,DBX70,Other Management Costs,DBX,Support Service and Management Costs,DB,Children's Social Care,E,Childrens and Education Services
GUILDFORD BOROUGH COUNCIL,Environmental Services,1000070,Stertil UK Ltd,16/02/2023,30094028,1037.6,0,Services,,Invoice,BACS,No,23/01/2023 00:00,2022,10,KEI010816,K5551,Fleet Workshops,D6004,Services,W3A48,Current Service Costs - Fleet Management,W3A,Current Service Costs adjustment,W3,Current Service Costs,W,Other Operating Income and Expenditure
GUILDFORD BOROUGH COUNCIL,Planning & Development,1000077,3R Finance Ltd,30/03/2023,30098783,3927,0,Agency,,Invoice,BACS,No,27/03/2023 00:00,2022,12,INV-85356,D5100,Development Control - Fee Earn,A5191,Agency,CPC00,Development Control Advice,CPC,Development Control,CP,Planning and Development Services,C,"Cultural, Environmental & Planning Services"
GUILDFORD BOROUGH COUNCIL,Executive - Miscellaneous,1000078,Shorts Group Limited,23/03/2023,30096807,3990,0,Contractor Payments,,Invoice,BACS,No,28/02/2023 00:00,2022,12,S266428,P79100,Wuv - Allotment Relocation,1233,Contractor Payments,XXX99,*** UNASSIGNED ***,WCC,CEC Recharges,WC,CEC Recharges,A,Central Services
GUILDFORD BOROUGH COUNCIL,Regeneration & Planning Policy,1000083,LC Ecological Services Ltd,28/02/2023,30094628,1515,0,Consultancy,,Invoice,BACS,No,01/02/2023 00:00,2022,11,2206358,D5300,Policy,D6001,Consultancy,CPD10,Local Development Framework inc Supplementary Planning Guidance,CPD,Planning Policy,CP,Planning and Development Services,C,"Cultural, Environmental & Planning Services"
GUILDFORD BOROUGH COUNCIL,Planning & Development,1000083,LC Ecological Services Ltd,17/01/2023,30091892,495,0,Consultancy,,Invoice,BACS,No,21/12/2022 00:00,2022,10,2206303,D5100,Development Control - Fee Earn,D6001,Consultancy,CPC00,Development Control Advice,CPC,Development Control,CP,Planning and Development Services,C,"Cultural, Environmental & Planning Services"
GUILDFORD BOROUGH COUNCIL,Environmental Services,1000084,Traditional Stone Restoration Ltd,24/01/2023,30093574,5656.5,0,GF Assets - Maintenance,,Invoice,BACS,No,19/01/2023 00:00,2022,10,INV-2334,A1250,Stoke Park,B1004,GF Assets - Maintenance,CCE00,Community Parks & Open Spaces,CCE,Open Spaces,CC,Cultural & Related Services,C,"Cultural, Environmental & Planning Services"
GUILDFORD BOROUGH COUNCIL,Commercial Services,1000086,Signway Supplies,30/03/2023,30098129,613,0,Furniture,,Invoice,BACS,No,13/03/2023 00:00,2022,12,55938,B2217,Guildford On-Street,D2002,Furniture,HTP00,On-Street Parking,HTP,Parking Services,HT,"Highways, Roads and Transport Services",H,"Highways, Roads and Transport Services"
GUILDFORD BOROUGH COUNCIL,Environmental Services,1000119,Professional Construction Recruitment Limited,30/03/2023,30097801,1295,0,Agency,,Invoice,BACS,No,14/03/2023 00:00,2022,12,155917,B4452,Woking Road Depot,A5191,Agency,XXX99,*** UNASSIGNED ***,WCC,CEC Recharges,WC,CEC Recharges,A,Central Services
GUILDFORD BOROUGH COUNCIL,Environmental Services,1000119,Professional Construction Recruitment Limited,30/03/2023,30097233,1070.25,0,Agency,,Invoice,BACS,No,07/03/2023 00:00,2022,12,155747,B4452,Woking Road Depot,A5191,Agency,XXX99,*** UNASSIGNED ***,WCC,CEC Recharges,WC,CEC Recharges,A,Central Services
GUILDFORD BOROUGH COUNCIL,Environmental Services,1000119,Professional Construction Recruitment Limited,16/02/2023,30093996,573.5,0,Agency,,Invoice,BACS,No,24/01/2023 00:00,2022,10,154679,B4452,Woking Road Depot,A5191,Agency,XXX99,*** UNASSIGNED ***,WCC,CEC Recharges,WC,CEC Recharges,A,Central Services
GUILDFORD BOROUGH COUNCIL,Environmental Services,1000119,Professional Construction Recruitment Limited,23/03/2023,30096677,1295,0,Agency,,Invoice,BACS,No,28/02/2023 00:00,2022,12,155571,B4452,Woking Road Depot,A5191,Agency,XXX99,*** UNASSIGNED ***,WCC,CEC Recharges,WC,CEC Recharges,A,Central Services
GUILDFORD BOROUGH COUNCIL,Environmental Services,1000119,Professional Construction Recruitment Limited,09/02/2023,30093524,573.5,0,Agency,,Invoice,BACS,No,17/01/2023 00:00,2022,10,154511,B4452,Woking Road Depot,A5191,Agency,XXX99,*** UNASSIGNED ***,WCC,CEC Recharges,WC,CEC Recharges,A,Central Services
GUILDFORD BOROUGH COUNCIL,Environmental Services,1000119,Professional Construction Recruitment Limited,28/02/2023,30094631,721.5,0,Agency,,Invoice,BACS,No,01/02/2023 00:00,2022,11,154857,B4452,Woking Road Depot,A5191,Agency,XXX99,*** UNASSIGNED ***,WCC,CEC Recharges,WC,CEC Recharges,A,Central Services
GUILDFORD BOROUGH COUNCIL,Environmental Services,1000119,Professional Construction Recruitment Limited,28/02/2023,30094594,573.5,0,Agency,,Invoice,BACS,No,01/02/2023 00:00,2022,11,154858,B4452,Woking Road Depot,A5191,Agency,XXX99,*** UNASSIGNED ***,WCC,CEC Recharges,WC,CEC Recharges,A,Central Services
GUILDFORD BOROUGH COUNCIL,Environmental Services,1000119,Professional Construction Recruitment Limited,28/02/2023,30095153,1295,0,Agency,,Invoice,BACS,No,07/02/2023 00:00,2022,11,155007,B4452,Woking Road Depot,A5191,Agency,XXX99,*** UNASSIGNED ***,WCC,CEC Recharges,WC,CEC Recharges,A,Central Services
GUILDFORD BOROUGH COUNCIL,Environmental Services,1000119,Professional Construction Recruitment Limited,09/03/2023,30095476,1295,0,Agency,,Invoice,BACS,No,14/02/2023 00:00,2022,11,155180,B4452,Woking Road Depot,A5191,Agency,XXX99,*** UNASSIGNED ***,WCC,CEC Recharges,WC,CEC Recharges,A,Central Services
GUILDFORD BOROUGH COUNCIL,Environmental Services,1000119,Professional Construction Recruitment Limited,02/02/2023,30092830,341,0,Agency,,Invoice,BACS,No,09/01/2023 00:00,2022,10,154336,B4452,Woking Road Depot,A5191,Agency,XXX99,*** UNASSIGNED ***,WCC,CEC Recharges,WC,CEC Recharges,A,Central Services
GUILDFORD BOROUGH COUNCIL,Environmental Services,1000119,Professional Construction Recruitment Limited,16/03/2023,30096185,1295,0,Agency,,Invoice,BACS,No,21/02/2023 00:00,2022,11,155383,B4452,Woking Road Depot,A5191,Agency,XXX99,*** UNASSIGNED ***,WCC,CEC Recharges,WC,CEC Recharges,A,Central Services
GUILDFORD BOROUGH COUNCIL,Executive - Miscellaneous,1000126,Gateley Plc,16/03/2023,30095992,1450,0,Legal Expenses,,Invoice,BACS,No,20/02/2023 00:00,2022,11,03-1028253,P79036,Ash Bridge Land Acquistion,1395,Legal Expenses,XXX99,*** UNASSIGNED ***,WCC,CEC Recharges,WC,CEC Recharges,A,Central Services
GUILDFORD BOROUGH COUNCIL,Executive - Miscellaneous,1000126,Gateley Plc,23/03/2023,30098296,850,0,Legal Expenses,,Invoice,BACS,No,17/02/2023 00:00,2022,12,03-1028174,P79036,Ash Bridge Land Acquistion,1395,Legal Expenses,XXX99,*** UNASSIGNED ***,WCC,CEC Recharges,WC,CEC Recharges,A,Central Services
GUILDFORD BOROUGH COUNCIL,Housing Services,1000154,Acacia Villas Guest House,10/01/2023,30092628,350,0,Emergency Accomodation,,Invoice,BACS,No,17/07/2022 00:00,2022,10,AVGH-WE0605,C3311,Homelessness,D8009,Emergency Accomodation,KGU00,Supporting People - Strategy,KGU,Supporting People,KG,Housing General Fund,K,Housing Services
GUILDFORD BOROUGH COUNCIL,Housing Services,1000154,Acacia Villas Guest House,30/03/2023,30098940,360,0,Emergency Accomodation,,Invoice,BACS,No,25/03/2023 00:00,2022,12,AVGH-TB14,C3311,Homelessness,D8009,Emergency Accomodation,KGU00,Supporting People - Strategy,KGU,Supporting People,KG,Housing General Fund,K,Housing Services
GUILDFORD BOROUGH COUNCIL,Housing Services,1000154,Acacia Villas Guest House,19/01/2023,30093234,1400,0,Emergency Accomodation,,Invoice,BACS,No,04/09/2022 00:00,2022,10,AVGH-WE00,C3311,Homelessness,D8009,Emergency Accomodation,KGU00,Supporting People - Strategy,KGU,Supporting People,KG,Housing General Fund,K,Housing Services
GUILDFORD BOROUGH COUNCIL,Property,1000156,Survey Solutions (South East) Ltd,05/01/2023,30088352,24750,0,Consultants Fees,,Invoice,BACS,No,18/11/2022 00:00,2022,10,48369BWLS,P74040,WUV - Weyside Urban Village (SARP),1221,Consultants Fees,XXX99,*** UNASSIGNED ***,WCC,CEC Recharges,WC,CEC Recharges,A,Central Services
GUILDFORD BOROUGH COUNCIL,Environmental Services,1000165,Anonymous,28/02/2023,30094686,1000,0,Grounds Maintenance,,Invoice,BACS,No,02/02/2023 00:00,2022,11,COPPICING020223,A1300,Trees And Countryside,B6001,Grounds Maintenance,CCE00,Community Parks & Open Spaces,CCE,Open Spaces,CC,Cultural & Related Services,C,"Cultural, Environmental & Planning Services"
GUILDFORD BOROUGH COUNCIL,Regulatory Services,1000166,The Royal Society for the Prevention of Accidents,23/02/2023,30094262,7500,0,Staff Costs,,Invoice,BACS,No,30/01/2023 00:00,2022,10,1116179,G2525,Health And Safety,A7100,Staff Costs,CEE30,Health and Safety,CEE,Environmental Health (Regulatory Services),CE,Environmental & Regulatory Services,C,"Cultural, Environmental & Planning Services"
GUILDFORD BOROUGH COUNCIL,Housing Services,1000169,The Lion Brewery,17/01/2023,30093079,408.33,0,Emergency Accomodation,,Invoice,BACS,No,01/12/2022 00:00,2022,10,JF034,C3311,Homelessness,D8009,Emergency Accomodation,KGU00,Supporting People - Strategy,KGU,Supporting People,KG,Housing General Fund,K,Housing Services
GUILDFORD BOROUGH COUNCIL,Housing Services,1000169,The Lion Brewery,09/03/2023,30096823,291.67,0,Emergency Accomodation,,Invoice,BACS,No,17/01/2023 00:00,2022,12,HG035,C3311,Homelessness,D8009,Emergency Accomodation,KGU00,Supporting People - Strategy,KGU,Supporting People,KG,Housing General Fund,K,Housing Services
GUILDFORD BOROUGH COUNCIL,Housing Services,1000169,The Lion Brewery,30/03/2023,30098704,641.67,0,Emergency Accomodation,,Invoice,BACS,No,07/03/2023 00:00,2022,12,BC037,C3311,Homelessness,D8009,Emergency Accomodation,KGU00,Supporting People - Strategy,KGU,Supporting People,KG,Housing General Fund,K,Housing Services
GUILDFORD BOROUGH COUNCIL,Housing Services,1000169,The Lion Brewery,28/03/2023,30096858,583.33,0,Emergency Accomodation,,Invoice,BACS,No,02/03/2023 00:00,2022,12,EC036,C3311,Homelessness,D8009,Emergency Accomodation,KGU00,Supporting People - Strategy,KGU,Supporting People,KG,Housing General Fund,K,Housing Services
GUILDFORD BOROUGH COUNCIL,Environmental Services,1000174,Wicksteed Leisure Limited,28/03/2023,30098437,6891.06,0,Materials,,Invoice,BACS,No,21/03/2023 00:00,2022,12,DU837283,A1300,Trees And Countryside,D2003,Materials,CCE00,Community Parks & Open Spaces,CCE,Open Spaces,CC,Cultural & Related Services,C,"Cultural, Environmental & Planning Services"
GUILDFORD BOROUGH COUNCIL,Commercial Services,1000181,Anonymous,09/02/2023,30093052,500,0,Sale of Items,,Invoice,BACS,No,16/01/2023 00:00,2022,10,Dec-22,A4511,Guildford House Administration,K3001,Sale of Items,CCA30,Museums & Galleries,CCA,Culture & Heritage,CC,Cultural & Related Services,C,"Cultural, Environmental & Planning Services"
GUILDFORD BOROUGH COUNCIL,Roads & Footpaths,1000195,Crouch Waterfall & Partners Limited,12/01/2023,30092816,4364.8,0,Consultants Fees,,Invoice,BACS,No,30/05/2022 00:00,2022,10,18151G-INV-006-CB,P51051,Bridge - Millmead Lattice,1221,Consultants Fees,XXX99,*** UNASSIGNED ***,WCC,CEC Recharges,WC,CEC Recharges,A,Central Services
GUILDFORD BOROUGH COUNCIL,Executive - Miscellaneous,1000198,VolkerLaser Limited,02/03/2023,30096329,167366.34,0,Consultants Fees,,Invoice,BACS,No,19/01/2023 00:00,2022,12,VL5359,P79027,Walnut Tree Bridge Replacement,1221,Consultants Fees,XXX99,*** UNASSIGNED ***,WCC,CEC Recharges,WC,CEC Recharges,A,Central Services
GUILDFORD BOROUGH COUNCIL,Executive - Miscellaneous,1000198,VolkerLaser Limited,21/03/2023,30097788,53743.83,0,Contractor Payments,,Invoice,BACS,No,15/03/2023 00:00,2022,12,VL6408,P79027,Walnut Tree Bridge Replacement,1233,Contractor Payments,XXX99,*** UNASSIGNED ***,WCC,CEC Recharges,WC,CEC Recharges,A,Central Services
GUILDFORD BOROUGH COUNCIL,Executive - Miscellaneous,1000198,VolkerLaser Limited,10/01/2023,30092335,112972.88,0,Consultants Fees,,Invoice,BACS,No,14/12/2022 00:00,2022,10,VL5332,P79027,Walnut Tree Bridge Replacement,1221,Consultants Fees,XXX99,*** UNASSIGNED ***,WCC,CEC Recharges,WC,CEC Recharges,A,Central Services
GUILDFORD BOROUGH COUNCIL,Assets and Property,1000205,KBO Fire & Security Ltd,02/02/2023,30092804,478.71,0,Services,,Invoice,BACS,No,10/01/2023 00:00,2022,10,504360,G7511,Millmead House,D6004,Services,DBX70,Other Management Costs,DBX,Support Service and Management Costs,DB,Children's Social Care,E,Childrens and Education Services
GUILDFORD BOROUGH COUNCIL,Property,1000207,Neptunus Ltd,28/03/2023,30098716,45994.02,0,Consultants Fees,,Invoice,BACS,No,15/02/2023 00:00,2022,12,525CI162447,P74040,WUV - Weyside Urban Village (SARP),1221,Consultants Fees,XXX99,*** UNASSIGNED ***,WCC,CEC Recharges,WC,CEC Recharges,A,Central Services
GUILDFORD BOROUGH COUNCIL,Grants,1000211,The idapt group,21/02/2023,30094151,600,0,Contractor Payments,,Invoice,BACS,No,25/01/2023 00:00,2022,10,CB1282,N51019,BCF Non Grant Expenditure,1233,Contractor Payments,XXX99,*** UNASSIGNED ***,WCC,CEC Recharges,WC,CEC Recharges,A,Central Services
GUILDFORD BOROUGH COUNCIL,Commercial Services,1000213,We Are Sunday Ltd,31/01/2023,30094032,689,0,Vacancy And Interview Costs,,Invoice,BACS,No,08/12/2022 00:00,2022,10,33234,D5700,Building Control - Fee,A7120,Vacancy And Interview Costs,CPB00,Building Regulations,CPB,Building Control,CP,Planning and Development Services,C,"Cultural, Environmental & Planning Services"
GUILDFORD BOROUGH COUNCIL,HRA Service Delivery,1000217,Rapid Secure Limited,21/02/2023,30094544,326,0,Services,,Invoice,BACS,No,27/01/2023 00:00,2022,11,205325,M1151,Tenants Services (BHS),D6004,Services,W3A05,Current Service Costs - Housing Services,W3A,Current Service Costs adjustment,W3,Current Service Costs,W,Other Operating Income and Expenditure
GUILDFORD BOROUGH COUNCIL,Housing Services,1000226,Anonymous,14/03/2023,30097353,4080,0,Partnerships,,Invoice,BACS,No,10/03/2023 00:00,2022,12,Rent in advance,C3311,Homelessness,D6013,Partnerships,KGU00,Supporting People - Strategy,KGU,Supporting People,KG,Housing General Fund,K,Housing Services
GUILDFORD BOROUGH COUNCIL,Regulatory Services,1000227,Funeral Partners Ltd t/a James and Thomas Funeral,12/01/2023,30092139,1240,0,Services,,Invoice,BACS,No,19/12/2022 00:00,2022,10,323370/1311,C1113,Environmental Control,D6004,Services,CEE25,Environmental Protection,CEE,Environmental Health (Regulatory Services),CE,Environmental & Regulatory Services,C,"Cultural, Environmental & Planning Services"
GUILDFORD BOROUGH COUNCIL,Regulatory Services,1000227,Funeral Partners Ltd t/a James and Thomas Funeral,12/01/2023,30092144,1280,0,Services,,Invoice,BACS,No,19/12/2022 00:00,2022,10,323708/1311,C1113,Environmental Control,D6004,Services,CEE25,Environmental Protection,CEE,Environmental Health (Regulatory Services),CE,Environmental & Regulatory Services,C,"Cultural, Environmental & Planning Services"
GUILDFORD BOROUGH COUNCIL,Regulatory Services,1000227,Funeral Partners Ltd t/a James and Thomas Funeral,12/01/2023,30092152,1240,0,Services,,Invoice,BACS,No,19/12/2022 00:00,2022,10,323965/1311,C1113,Environmental Control,D6004,Services,CEE25,Environmental Protection,CEE,Environmental Health (Regulatory Services),CE,Environmental & Regulatory Services,C,"Cultural, Environmental & Planning Services"
GUILDFORD BOROUGH COUNCIL,Regulatory Services,1000227,Funeral Partners Ltd t/a James and Thomas Funeral,07/02/2023,30093226,1240,0,Services,,Invoice,BACS,No,12/01/2023 00:00,2022,10,324952/1311,C1113,Environmental Control,D6004,Services,CEE25,Environmental Protection,CEE,Environmental Health (Regulatory Services),CE,Environmental & Regulatory Services,C,"Cultural, Environmental & Planning Services"
GUILDFORD BOROUGH COUNCIL,Regulatory Services,1000227,Funeral Partners Ltd t/a James and Thomas Funeral,07/02/2023,30093236,1240,0,Services,,Invoice,BACS,No,12/01/2023 00:00,2022,10,325989/1311,C1113,Environmental Control,D6004,Services,CEE25,Environmental Protection,CEE,Environmental Health (Regulatory Services),CE,Environmental & Regulatory Services,C,"Cultural, Environmental & Planning Services"
GUILDFORD BOROUGH COUNCIL,Planning & Development,1000229,BJC Planning,05/01/2023,30091640,8117.75,0,Consultancy,,Invoice,BACS,No,30/11/2022 00:00,2022,10,GU/51/6418,D5100,Development Control - Fee Earn,D6001,Consultancy,CPC00,Development Control Advice,CPC,Development Control,CP,Planning and Development Services,C,"Cultural, Environmental & Planning Services"
GUILDFORD BOROUGH COUNCIL,New Build,1000230,Carter Jonas LLP,19/01/2023,30093070,1488,0,Consultants Fees,,Invoice,BACS,No,31/10/2022 00:00,2022,10,F0206558,N30023,Bright Hill,1221,Consultants Fees,XXX99,*** UNASSIGNED ***,WCC,CEC Recharges,WC,CEC Recharges,A,Central Services
GUILDFORD BOROUGH COUNCIL,New Build,1000230,Carter Jonas LLP,17/01/2023,30091627,5548,0,Consultants Fees,,Invoice,BACS,No,21/12/2022 00:00,2022,10,F0212924,N30011,Guildford Park,1221,Consultants Fees,XXX99,*** UNASSIGNED ***,WCC,CEC Recharges,WC,CEC Recharges,A,Central Services
GUILDFORD BOROUGH COUNCIL,Regeneration & Planning Policy,1000230,Carter Jonas LLP,21/02/2023,30093839,1131.2,0,Consultancy,,Invoice,BACS,No,25/01/2023 00:00,2022,10,F0215261,F5530,Major Projects,D6001,Consultancy,XXX99,*** UNASSIGNED ***,WCC,CEC Recharges,WC,CEC Recharges,A,Central Services
GUILDFORD BOROUGH COUNCIL,New Build,1000230,Carter Jonas LLP,23/03/2023,30096401,1669,0,Consultants Fees,,Invoice,BACS,No,28/02/2023 00:00,2022,12,F0219216,N30011,Guildford Park,1221,Consultants Fees,XXX99,*** UNASSIGNED ***,WCC,CEC Recharges,WC,CEC Recharges,A,Central Services
GUILDFORD BOROUGH COUNCIL,Regeneration & Planning Policy,1000230,Carter Jonas LLP,23/03/2023,30096409,1581,0,Consultancy,,Invoice,BACS,No,28/02/2023 00:00,2022,12,F0219217,F5530,Major Projects,D6001,Consultancy,XXX99,*** UNASSIGNED ***,WCC,CEC Recharges,WC,CEC Recharges,A,Central Services
GUILDFORD BOROUGH COUNCIL,Planning & Development,1000232,Hankinson Duckett Associates Ltd,21/02/2023,30094978,1307.55,0,Consultancy,,Invoice,BACS,No,28/01/2023 00:00,2022,11,HD17514,D5100,Development Control - Fee Earn,D6001,Consultancy,CPC00,Development Control Advice,CPC,Development Control,CP,Planning and Development Services,C,"Cultural, Environmental & Planning Services"
GUILDFORD BOROUGH COUNCIL,Planning & Development,1000232,Hankinson Duckett Associates Ltd,21/02/2023,30094981,1210.12,0,Consultancy,,Invoice,BACS,No,28/01/2023 00:00,2022,11,HD17515,D5100,Development Control - Fee Earn,D6001,Consultancy,CPC00,Development Control Advice,CPC,Development Control,CP,Planning and Development Services,C,"Cultural, Environmental & Planning Services"
GUILDFORD BOROUGH COUNCIL,Planning & Development,1000232,Hankinson Duckett Associates Ltd,10/01/2023,30091568,1564.75,0,Consultancy,,Invoice,BACS,No,25/11/2022 00:00,2022,10,HD17431,D5100,Development Control - Fee Earn,D6001,Consultancy,CPC00,Development Control Advice,CPC,Development Control,CP,Planning and Development Services,C,"Cultural, Environmental & Planning Services"
GUILDFORD BOROUGH COUNCIL,Environmental Services,1000233,Clear Skies Software,21/03/2023,30096223,997.5,0,ICT Support & Maintenance,,Invoice,BACS,No,23/02/2023 00:00,2022,11,103447,A1500,Crematorium,D7003,ICT Support & Maintenance,CEA10,Crematoria,CEA,"Cemetery, Cremation and Mortuary Services",CE,Environmental & Regulatory Services,C,"Cultural, Environmental & Planning Services"
GUILDFORD BOROUGH COUNCIL,Regulatory Services,1000242,Road Pals Ltd,23/02/2023,30094129,2500,0,Contractors,,Invoice,BACS,No,30/01/2023 00:00,2022,10,INV-0475,C1113,Environmental Control,D6012,Contractors,CEE25,Environmental Protection,CEE,Environmental Health (Regulatory Services),CE,Environmental & Regulatory Services,C,"Cultural, Environmental & Planning Services"
GUILDFORD BOROUGH COUNCIL,Assets and Property,1000245,Solar Voltaics Limited,31/01/2023,30093793,4080,0,GF Assets - Maintenance,,Invoice,BACS,No,23/01/2023 00:00,2022,10,SI-30235,G7511,Millmead House,B1004,GF Assets - Maintenance,DBX70,Other Management Costs,DBX,Support Service and Management Costs,DB,Children's Social Care,E,Childrens and Education Services
GUILDFORD BOROUGH COUNCIL,Commercial Services,1000252,Anonymous,09/02/2023,30093252,341.7,0,Stock For Re-Sale,,Invoice,BACS,No,17/01/2023 00:00,2022,11,51,A4511,Guildford House Administration,D2004,Stock For Re-Sale,CCA30,Museums & Galleries,CCA,Culture & Heritage,CC,Cultural & Related Services,C,"Cultural, Environmental & Planning Services"
GUILDFORD BOROUGH COUNCIL,Communication & Customer Services,1000257,SolarWinds Software Europe DAC (Ireland),14/02/2023,30093609,373.45,0,ICT Software,,Invoice,BACS,No,19/01/2023 00:00,2022,10,4140579,G3548,ICT Technical & Infrastructure,D7002,ICT Software,DBX70,Other Management Costs,DBX,Support Service and Management Costs,DB,Children's Social Care,E,Childrens and Education Services
GUILDFORD BOROUGH COUNCIL,Communication & Customer Services,1000257,SolarWinds Software Europe DAC (Ireland),14/02/2023,30093609,649,0,ICT Software,,Invoice,BACS,No,19/01/2023 00:00,2022,10,4140579,G3548,ICT Technical & Infrastructure,D7002,ICT Software,DBX70,Other Management Costs,DBX,Support Service and Management Costs,DB,Children's Social Care,E,Childrens and Education Services
GUILDFORD BOROUGH COUNCIL,Environmental Services,1000259,Miles Stone Limited,21/02/2023,30095409,589,0,Grounds Maintenance,,Invoice,BACS,No,04/11/2022 00:00,2022,11,37966,A1300,Trees And Countryside,B6001,Grounds Maintenance,CCE00,Community Parks & Open Spaces,CCE,Open Spaces,CC,Cultural & Related Services,C,"Cultural, Environmental & Planning Services"
GUILDFORD BOROUGH COUNCIL,Executive - Miscellaneous,1000262,Claud Waterer Commercial Limited,30/03/2023,30098711,850,0,Consultants Fees,,Invoice,BACS,No,22/03/2023 00:00,2022,12,JFSGRIFFITHS052023,P79037,Ash Road Bridge,1221,Consultants Fees,XXX99,*** UNASSIGNED ***,WCC,CEC Recharges,WC,CEC Recharges,A,Central Services
GUILDFORD BOROUGH COUNCIL,Environmental Services,1000265,Maps Platforms,23/02/2023,30095499,2375,0,External Vehicle Hire,,Invoice,BACS,No,14/12/2022 00:00,2022,11,6822,K5551,Fleet Workshops,C3001,External Vehicle Hire,W3A48,Current Service Costs - Fleet Management,W3A,Current Service Costs adjustment,W3,Current Service Costs,W,Other Operating Income and Expenditure
GUILDFORD BOROUGH COUNCIL,Environmental Services,1000265,Maps Platforms,23/02/2023,30095474,518.5,0,Services,,Invoice,BACS,No,14/12/2022 00:00,2022,11,6824,K5551,Fleet Workshops,D6004,Services,W3A48,Current Service Costs - Fleet Management,W3A,Current Service Costs adjustment,W3,Current Service Costs,W,Other Operating Income and Expenditure
GUILDFORD BOROUGH COUNCIL,Property,1000269,DAVITT JONES BOULD LIMITED,12/01/2023,30090916,1305.7,0,Consultants Fees,,Invoice,BACS,No,30/11/2022 00:00,2022,10,205233,P74040,WUV - Weyside Urban Village (SARP),1221,Consultants Fees,XXX99,*** UNASSIGNED ***,WCC,CEC Recharges,WC,CEC Recharges,A,Central Services
GUILDFORD BOROUGH COUNCIL,Executive - Miscellaneous,1000269,DAVITT JONES BOULD LIMITED,28/02/2023,30095207,4954.5,0,Legal Expenses,,Invoice,BACS,No,31/01/2023 00:00,2022,11,205884,P79037,Ash Road Bridge,1395,Legal Expenses,XXX99,*** UNASSIGNED ***,WCC,CEC Recharges,WC,CEC Recharges,A,Central Services
GUILDFORD BOROUGH COUNCIL,Property,1000269,DAVITT JONES BOULD LIMITED,05/01/2023,30090922,439.4,0,Consultants Fees,,Invoice,BACS,No,30/11/2022 00:00,2022,10,205249,P74040,WUV - Weyside Urban Village (SARP),1221,Consultants Fees,XXX99,*** UNASSIGNED ***,WCC,CEC Recharges,WC,CEC Recharges,A,Central Services
GUILDFORD BOROUGH COUNCIL,Property,1000269,DAVITT JONES BOULD LIMITED,23/03/2023,30095115,354.9,0,Consultants Fees,,Invoice,BACS,No,31/01/2023 00:00,2022,12,205874,P74040,WUV - Weyside Urban Village (SARP),1221,Consultants Fees,XXX99,*** UNASSIGNED ***,WCC,CEC Recharges,WC,CEC Recharges,A,Central Services
GUILDFORD BOROUGH COUNCIL,Finance,1000270,Cabinet Office,30/03/2023,30098583,2535,0,Grants And Subscriptions,,Invoice,BACS,No,17/03/2023 00:00,2022,12,3827654,C4511,Housing Benefits Admin.,D9001,Grants And Subscriptions,XXX99,*** UNASSIGNED ***,WCC,CEC Recharges,WC,CEC Recharges,A,Central Services
GUILDFORD BOROUGH COUNCIL,Executive - Miscellaneous,1000280,Blakedown Landscapes (SE) Ltd,14/03/2023,30097389,64354.22,0,Consultants Fees,,Invoice,BACS,No,03/03/2023 00:00,2022,12,L23084,P79100,Wuv - Allotment Relocation,1221,Consultants Fees,XXX99,*** UNASSIGNED ***,WCC,CEC Recharges,WC,CEC Recharges,A,Central Services
GUILDFORD BOROUGH COUNCIL,Executive - Miscellaneous,1000280,Blakedown Landscapes (SE) Ltd,09/02/2023,30094940,105181.36,0,Consultants Fees,,Invoice,BACS,No,02/01/2023 00:00,2022,11,L23059,P79100,Wuv - Allotment Relocation,1221,Consultants Fees,XXX99,*** UNASSIGNED ***,WCC,CEC Recharges,WC,CEC Recharges,A,Central Services
GUILDFORD BOROUGH COUNCIL,Renovations,1000286,Pyrotec Fire Protection Limited,07/02/2023,30093410,523.5,0,Contractor Payments,,Invoice,BACS,No,11/01/2023 00:00,2022,10,4093024,N40292,Fire protection works,1233,Contractor Payments,XXX99,*** UNASSIGNED ***,WCC,CEC Recharges,WC,CEC Recharges,A,Central Services
GUILDFORD BOROUGH COUNCIL,HRA Service Delivery,1000286,Pyrotec Fire Protection Limited,16/03/2023,30097586,283.8,0,Building Expenses,,Invoice,BACS,No,16/02/2023 00:00,2022,12,4094285,M5113,Repairs-Responsive (BHS),B1002,Building Expenses,W3A05,Current Service Costs - Housing Services,W3A,Current Service Costs adjustment,W3,Current Service Costs,W,Other Operating Income and Expenditure
GUILDFORD BOROUGH COUNCIL,HRA Service Delivery,1000286,Pyrotec Fire Protection Limited,16/03/2023,30097586,283.8,0,Building Expenses,,Invoice,BACS,No,16/02/2023 00:00,2022,12,4094285,M5113,Repairs-Responsive (BHS),B1002,Building Expenses,W3A05,Current Service Costs - Housing Services,W3A,Current Service Costs adjustment,W3,Current Service Costs,W,Other Operating Income and Expenditure
GUILDFORD BOROUGH COUNCIL,HRA Service Delivery,1000286,Pyrotec Fire Protection Limited,16/03/2023,30097586,553,0,Building Expenses,,Invoice,BACS,No,16/02/2023 00:00,2022,12,4094285,M5113,Repairs-Responsive (BHS),B1002,Building Expenses,W3A05,Current Service Costs - Housing Services,W3A,Current Service Costs adjustment,W3,Current Service Costs,W,Other Operating Income and Expenditure
GUILDFORD BOROUGH COUNCIL,Community Services,1000286,Pyrotec Fire Protection Limited,19/01/2023,30093206,1566.5,0,Building Expenses,,Invoice,BACS,No,17/11/2022 00:00,2022,10,4090870,A8121,Bellfields Youth and Community Centre,B1002,Building Expenses,CCD00,Community Centres and Public Halls,CCD,Recreation & Sport,CC,Cultural & Related Services,C,"Cultural, Environmental & Planning Services"
GUILDFORD BOROUGH COUNCIL,HRA Service Delivery,1000286,Pyrotec Fire Protection Limited,19/01/2023,30093206,337.6,0,Building Expenses,,Invoice,BACS,No,17/11/2022 00:00,2022,10,4090870,M5113,Repairs-Responsive (BHS),B1002,Building Expenses,W3A05,Current Service Costs - Housing Services,W3A,Current Service Costs adjustment,W3,Current Service Costs,W,Other Operating Income and Expenditure
GUILDFORD BOROUGH COUNCIL,HRA Service Delivery,1000286,Pyrotec Fire Protection Limited,19/01/2023,30093206,740.61,0,Building Expenses,,Invoice,BACS,No,17/11/2022 00:00,2022,10,4090870,M5113,Repairs-Responsive (BHS),B1002,Building Expenses,W3A05,Current Service Costs - Housing Services,W3A,Current Service Costs adjustment,W3,Current Service Costs,W,Other Operating Income and Expenditure
GUILDFORD BOROUGH COUNCIL,HRA Service Delivery,1000286,Pyrotec Fire Protection Limited,19/01/2023,30093206,1012.8,0,Building Expenses,,Invoice,BACS,No,17/11/2022 00:00,2022,10,4090870,M5106,Repairs-Shelt-Responsive (BHS),B1002,Building Expenses,W3A05,Current Service Costs - Housing Services,W3A,Current Service Costs adjustment,W3,Current Service Costs,W,Other Operating Income and Expenditure
GUILDFORD BOROUGH COUNCIL,HRA Service Delivery,1000286,Pyrotec Fire Protection Limited,19/01/2023,30093206,506.4,0,Building Expenses,,Invoice,BACS,No,17/11/2022 00:00,2022,10,4090870,M5106,Repairs-Shelt-Responsive (BHS),B1002,Building Expenses,W3A05,Current Service Costs - Housing Services,W3A,Current Service Costs adjustment,W3,Current Service Costs,W,Other Operating Income and Expenditure
GUILDFORD BOROUGH COUNCIL,HRA Service Delivery,1000286,Pyrotec Fire Protection Limited,19/01/2023,30093207,283.8,0,Building Expenses,,Invoice,BACS,No,13/12/2022 00:00,2022,10,4092147,M5113,Repairs-Responsive (BHS),B1002,Building Expenses,W3A05,Current Service Costs - Housing Services,W3A,Current Service Costs adjustment,W3,Current Service Costs,W,Other Operating Income and Expenditure
GUILDFORD BOROUGH COUNCIL,HRA Service Delivery,1000286,Pyrotec Fire Protection Limited,19/01/2023,30093207,527.5,0,Building Expenses,,Invoice,BACS,No,13/12/2022 00:00,2022,10,4092147,M5113,Repairs-Responsive (BHS),B1002,Building Expenses,W3A05,Current Service Costs - Housing Services,W3A,Current Service Costs adjustment,W3,Current Service Costs,W,Other Operating Income and Expenditure
GUILDFORD BOROUGH COUNCIL,HRA Service Delivery,1000286,Pyrotec Fire Protection Limited,19/01/2023,30093207,527.5,0,Building Expenses,,Invoice,BACS,No,13/12/2022 00:00,2022,10,4092147,M5113,Repairs-Responsive (BHS),B1002,Building Expenses,W3A05,Current Service Costs - Housing Services,W3A,Current Service Costs adjustment,W3,Current Service Costs,W,Other Operating Income and Expenditure
GUILDFORD BOROUGH COUNCIL,HRA Service Delivery,1000286,Pyrotec Fire Protection Limited,19/01/2023,30093207,283.8,0,Building Expenses,,Invoice,BACS,No,13/12/2022 00:00,2022,10,4092147,M5113,Repairs-Responsive (BHS),B1002,Building Expenses,W3A05,Current Service Costs - Housing Services,W3A,Current Service Costs adjustment,W3,Current Service Costs,W,Other Operating Income and Expenditure
GUILDFORD BOROUGH COUNCIL,HRA Service Delivery,1000286,Pyrotec Fire Protection Limited,19/01/2023,30093207,283.8,0,Building Expenses,,Invoice,BACS,No,13/12/2022 00:00,2022,10,4092147,M5113,Repairs-Responsive (BHS),B1002,Building Expenses,W3A05,Current Service Costs - Housing Services,W3A,Current Service Costs adjustment,W3,Current Service Costs,W,Other Operating Income and Expenditure
GUILDFORD BOROUGH COUNCIL,HRA Service Delivery,1000286,Pyrotec Fire Protection Limited,19/01/2023,30093207,2259.96,0,Building Expenses,,Invoice,BACS,No,13/12/2022 00:00,2022,10,4092147,M5113,Repairs-Responsive (BHS),B1002,Building Expenses,W3A05,Current Service Costs - Housing Services,W3A,Current Service Costs adjustment,W3,Current Service Costs,W,Other Operating Income and Expenditure
GUILDFORD BOROUGH COUNCIL,HRA Service Delivery,1000286,Pyrotec Fire Protection Limited,19/01/2023,30093207,1484.52,0,Building Expenses,,Invoice,BACS,No,13/12/2022 00:00,2022,10,4092147,M5113,Repairs-Responsive (BHS),B1002,Building Expenses,W3A05,Current Service Costs - Housing Services,W3A,Current Service Costs adjustment,W3,Current Service Costs,W,Other Operating Income and Expenditure
GUILDFORD BOROUGH COUNCIL,HRA Service Delivery,1000286,Pyrotec Fire Protection Limited,19/01/2023,30093207,2195.21,0,Asset Maintenance,,Invoice,BACS,No,13/12/2022 00:00,2022,10,4092147,M5106,Repairs-Shelt-Responsive (BHS),B1001,Asset Maintenance,W3A05,Current Service Costs - Housing Services,W3A,Current Service Costs adjustment,W3,Current Service Costs,W,Other Operating Income and Expenditure
GUILDFORD BOROUGH COUNCIL,Modern Homes,1000287,Mainmark (UK) Ltd,02/02/2023,30094543,3750,0,Contractor Payments,,Invoice,BACS,No,12/12/2022 00:00,2022,11,INV-2323,N48057,Structural works - various properties,1233,Contractor Payments,XXX99,*** UNASSIGNED ***,WCC,CEC Recharges,WC,CEC Recharges,A,Central Services
GUILDFORD BOROUGH COUNCIL,Modern Homes,1000287,Mainmark (UK) Ltd,07/03/2023,30096977,6420,0,Contractor Payments,,Invoice,BACS,No,15/02/2023 00:00,2022,12,INV-2531,N48057,Structural works - various properties,1233,Contractor Payments,XXX99,*** UNASSIGNED ***,WCC,CEC Recharges,WC,CEC Recharges,A,Central Services
GUILDFORD BOROUGH COUNCIL,Modern Homes,1000287,Mainmark (UK) Ltd,21/02/2023,30095567,5990,0,Contractor Payments,,Invoice,BACS,No,01/02/2023 00:00,2022,11,INV-2482,N48057,Structural works - various properties,1233,Contractor Payments,XXX99,*** UNASSIGNED ***,WCC,CEC Recharges,WC,CEC Recharges,A,Central Services
GUILDFORD BOROUGH COUNCIL,Organisational Development,1000304,Joju Limited,21/03/2023,30097785,2340,0,Energy Performance,,Invoice,BACS,No,07/03/2023 00:00,2022,12,8347,B3911,Climate Change Strategy,D8008,Energy Performance,CEZ00,Climate Change Costs,CEZ,Climate Change Costs,CE,Environmental & Regulatory Services,C,"Cultural, Environmental & Planning Services"
GUILDFORD BOROUGH COUNCIL,Regeneration & Planning Policy,1000307,Trowers and Hamlins LLP,14/02/2023,30095112,4875.63,0,Services,,Invoice,BACS,No,29/09/2022 00:00,2022,11,11-180612,F5530,Major Projects,D6004,Services,XXX99,*** UNASSIGNED ***,WCC,CEC Recharges,WC,CEC Recharges,A,Central Services
GUILDFORD BOROUGH COUNCIL,Regeneration & Planning Policy,1000307,Trowers and Hamlins LLP,21/02/2023,30095122,2915.8,0,Services,,Invoice,BACS,No,25/01/2023 00:00,2022,11,11-191966,F5530,Major Projects,D6004,Services,XXX99,*** UNASSIGNED ***,WCC,CEC Recharges,WC,CEC Recharges,A,Central Services
GUILDFORD BOROUGH COUNCIL,Regeneration & Planning Policy,1000307,Trowers and Hamlins LLP,30/03/2023,30098684,801.6,0,Services,,Invoice,BACS,No,15/03/2023 00:00,2022,12,11-197787,F5530,Major Projects,D6004,Services,XXX99,*** UNASSIGNED ***,WCC,CEC Recharges,WC,CEC Recharges,A,Central Services
GUILDFORD BOROUGH COUNCIL,Communication & Customer Services,1000314,NLA Media Access,23/03/2023,30096325,1328,0,ICT Software,,Invoice,BACS,No,24/02/2023 00:00,2022,12,Q497845,F5551,Public Relations & Marketing,D7002,ICT Software,W3A35,Current Service Costs - Media & Publications,W3A,Current Service Costs adjustment,W3,Current Service Costs,W,Other Operating Income and Expenditure
GUILDFORD BOROUGH COUNCIL,Environmental Services,1000316,Zagota Creations Limited,23/03/2023,30096336,255.5,0,Equipment,,Invoice,BACS,No,27/02/2023 00:00,2022,11,12331,A1500,Crematorium,D2001,Equipment,CEA10,Crematoria,CEA,"Cemetery, Cremation and Mortuary Services",CE,Environmental & Regulatory Services,C,"Cultural, Environmental & Planning Services"
GUILDFORD BOROUGH COUNCIL,Environmental Services,1000326,TSG UK Solutions Ltd,14/02/2023,30094427,277.75,0,Services,,Invoice,BACS,No,20/01/2023 00:00,2022,11,842190,K5551,Fleet Workshops,D6004,Services,W3A48,Current Service Costs - Fleet Management,W3A,Current Service Costs adjustment,W3,Current Service Costs,W,Other Operating Income and Expenditure
GUILDFORD BOROUGH COUNCIL,Environmental Services,1000326,TSG UK Solutions Ltd,28/02/2023,30095419,8112.5,0,Services,,Invoice,BACS,No,04/02/2023 00:00,2022,11,843236,B4452,Woking Road Depot,D6004,Services,XXX99,*** UNASSIGNED ***,WCC,CEC Recharges,WC,CEC Recharges,A,Central Services
GUILDFORD BOROUGH COUNCIL,Environmental Services,1000327,Inchcape Retail Ltd t/a Inchcape Jaguar Land Rover,31/01/2023,30089866,1008.49,0,Repair And Maintenance Of Vehicles,,Invoice,BACS,No,01/12/2022 00:00,2022,10,74530617,K5551,Fleet Workshops,C1002,Repair And Maintenance Of Vehicles,W3A48,Current Service Costs - Fleet Management,W3A,Current Service Costs adjustment,W3,Current Service Costs,W,Other Operating Income and Expenditure
GUILDFORD BOROUGH COUNCIL,Commercial Services,1000328,System Simulation Limited,30/03/2023,30098396,4200,0,ICT Software,,Invoice,BACS,No,20/03/2023 00:00,2022,12,INV-5557,A5511,Museum,D7002,ICT Software,CCA30,Museums & Galleries,CCA,Culture & Heritage,CC,Cultural & Related Services,C,"Cultural, Environmental & Planning Services"
GUILDFORD BOROUGH COUNCIL,Commercial Services,1000332,SSG Support Services Group Ltd,30/03/2023,30098466,11666.67,0,Contractors,,Invoice,BACS,No,20/03/2023 00:00,2022,12,SSG/786/13716,B2111,Car Parks - Administration,D6012,Contractors,HTP10,Off-Street Parking,HTP,Parking Services,HT,"Highways, Roads and Transport Services",H,"Highways, Roads and Transport Services"
GUILDFORD BOROUGH COUNCIL,Commercial Services,1000332,SSG Support Services Group Ltd,28/02/2023,30094696,11666.67,0,Contractors,,Invoice,BACS,No,02/02/2023 00:00,2022,11,SSG/786/13383,B2111,Car Parks - Administration,D6012,Contractors,HTP10,Off-Street Parking,HTP,Parking Services,HT,"Highways, Roads and Transport Services",H,"Highways, Roads and Transport Services"
GUILDFORD BOROUGH COUNCIL,Commercial Services,1000332,SSG Support Services Group Ltd,02/02/2023,30093015,11666.67,0,Services,,Invoice,BACS,No,10/01/2023 00:00,2022,10,SSG/786/13178,B2111,Car Parks - Administration,D6004,Services,HTP10,Off-Street Parking,HTP,Parking Services,HT,"Highways, Roads and Transport Services",H,"Highways, Roads and Transport Services"
GUILDFORD BOROUGH COUNCIL,Renovations,1000338,3MS Gold Services Ltd,02/02/2023,30094551,3837.64,0,Contractor Payments,,Invoice,BACS,No,18/01/2023 00:00,2022,11,2996,N40295,Disabled adaptations,1233,Contractor Payments,XXX99,*** UNASSIGNED ***,WCC,CEC Recharges,WC,CEC Recharges,A,Central Services
GUILDFORD BOROUGH COUNCIL,Renovations,1000338,3MS Gold Services Ltd,02/02/2023,30094551,2558.42,0,Contractor Payments,,Invoice,BACS,No,18/01/2023 00:00,2022,11,2996,N40295,Disabled adaptations,1233,Contractor Payments,XXX99,*** UNASSIGNED ***,WCC,CEC Recharges,WC,CEC Recharges,A,Central Services
GUILDFORD BOROUGH COUNCIL,Renovations,1000338,3MS Gold Services Ltd,23/02/2023,30096126,3847.66,0,Contractor Payments,,Invoice,BACS,No,09/02/2023 00:00,2022,11,3034,N40295,Disabled adaptations,1233,Contractor Payments,XXX99,*** UNASSIGNED ***,WCC,CEC Recharges,WC,CEC Recharges,A,Central Services
GUILDFORD BOROUGH COUNCIL,Renovations,1000338,3MS Gold Services Ltd,23/02/2023,30096126,2565.11,0,Contractor Payments,,Invoice,BACS,No,09/02/2023 00:00,2022,11,3034,N40295,Disabled adaptations,1233,Contractor Payments,XXX99,*** UNASSIGNED ***,WCC,CEC Recharges,WC,CEC Recharges,A,Central Services
GUILDFORD BOROUGH COUNCIL,Renovations,1000338,3MS Gold Services Ltd,07/03/2023,30097015,2573.56,0,Contractor Payments,,Invoice,BACS,No,01/11/2022 00:00,2022,12,3042,N40295,Disabled adaptations,1233,Contractor Payments,XXX99,*** UNASSIGNED ***,WCC,CEC Recharges,WC,CEC Recharges,A,Central Services
GUILDFORD BOROUGH COUNCIL,Renovations,1000338,3MS Gold Services Ltd,07/03/2023,30097015,3860.32,0,Contractor Payments,,Invoice,BACS,No,01/11/2022 00:00,2022,12,3042,N40295,Disabled adaptations,1233,Contractor Payments,XXX99,*** UNASSIGNED ***,WCC,CEC Recharges,WC,CEC Recharges,A,Central Services
GUILDFORD BOROUGH COUNCIL,Grants,1000338,3MS Gold Services Ltd,09/02/2023,30093815,4225,0,Grants To Private Owners,,Invoice,BACS,No,18/11/2022 00:00,2022,11,2943,N51008,Mandatory DFG,1311,Grants To Private Owners,XXX99,*** UNASSIGNED ***,WCC,CEC Recharges,WC,CEC Recharges,A,Central Services
GUILDFORD BOROUGH COUNCIL,Renovations,1000338,3MS Gold Services Ltd,28/03/2023,30098671,6551.08,0,Contractor Payments,,Invoice,BACS,No,13/03/2023 00:00,2022,12,3059,N40295,Disabled adaptations,1233,Contractor Payments,XXX99,*** UNASSIGNED ***,WCC,CEC Recharges,WC,CEC Recharges,A,Central Services
GUILDFORD BOROUGH COUNCIL,Renovations,1000338,3MS Gold Services Ltd,21/02/2023,30095616,3213.34,0,Contractor Payments,,Invoice,BACS,No,03/02/2023 00:00,2022,11,3028A,N40295,Disabled adaptations,1233,Contractor Payments,XXX99,*** UNASSIGNED ***,WCC,CEC Recharges,WC,CEC Recharges,A,Central Services
GUILDFORD BOROUGH COUNCIL,Renovations,1000338,3MS Gold Services Ltd,21/02/2023,30095616,2142.23,0,Contractor Payments,,Invoice,BACS,No,03/02/2023 00:00,2022,11,3028A,N40295,Disabled adaptations,1233,Contractor Payments,XXX99,*** UNASSIGNED ***,WCC,CEC Recharges,WC,CEC Recharges,A,Central Services
GUILDFORD BOROUGH COUNCIL,HRA Service Delivery,1000339,Tpas Limited,28/02/2023,30096198,1885,0,Services,,Invoice,BACS,No,01/02/2023 00:00,2022,11,14096,M1152,Tenant Participation (BHS),D6004,Services,W3A05,Current Service Costs - Housing Services,W3A,Current Service Costs adjustment,W3,Current Service Costs,W,Other Operating Income and Expenditure
GUILDFORD BOROUGH COUNCIL,Renovations,1000340,Buildperfect Group Ltd,02/02/2023,30094344,10119.95,0,Contractor Payments,,Invoice,BACS,No,23/01/2023 00:00,2022,11,M-2637,N40295,Disabled adaptations,1233,Contractor Payments,XXX99,*** UNASSIGNED ***,WCC,CEC Recharges,WC,CEC Recharges,A,Central Services
GUILDFORD BOROUGH COUNCIL,Grants,1000340,Buildperfect Group Ltd,02/03/2023,30096010,9246.59,0,Grants To Private Owners,,Invoice,BACS,No,23/01/2023 00:00,2022,12,BuildPerfect M-2633,N51008,Mandatory DFG,1311,Grants To Private Owners,XXX99,*** UNASSIGNED ***,WCC,CEC Recharges,WC,CEC Recharges,A,Central Services
GUILDFORD BOROUGH COUNCIL,HRA Service Delivery,1000355,Liftec Lifts Limited,23/02/2023,30094859,788.92,0,Asset Maintenance,,Invoice,BACS,No,30/01/2023 00:00,2022,11,NV226070,M2736,Friary House 1-61 (61),B1001,Asset Maintenance,W3A05,Current Service Costs - Housing Services,W3A,Current Service Costs adjustment,W3,Current Service Costs,W,Other Operating Income and Expenditure
GUILDFORD BOROUGH COUNCIL,Commercial Services,1000355,Liftec Lifts Limited,31/01/2023,30093213,1775.34,0,Asset Maintenance,,Invoice,BACS,No,06/01/2023 00:00,2022,10,NV224845,B2257,Leapale Road Mscp,B1001,Asset Maintenance,HTP10,Off-Street Parking,HTP,Parking Services,HT,"Highways, Roads and Transport Services",H,"Highways, Roads and Transport Services"
GUILDFORD BOROUGH COUNCIL,Commercial Services,1000355,Liftec Lifts Limited,07/03/2023,30096989,832.67,0,Asset Maintenance,,Invoice,BACS,No,09/02/2023 00:00,2022,12,NV226839,B2219,Bedford Road Mscp,B1001,Asset Maintenance,HTP10,Off-Street Parking,HTP,Parking Services,HT,"Highways, Roads and Transport Services",H,"Highways, Roads and Transport Services"
GUILDFORD BOROUGH COUNCIL,HRA Service Delivery,1000355,Liftec Lifts Limited,07/03/2023,30096594,387.5,0,Asset Maintenance,,Invoice,BACS,No,29/11/2022 00:00,2022,12,NV223211,M5107,Repairs-Shelt-Cyclical (BHS),B1001,Asset Maintenance,W3A05,Current Service Costs - Housing Services,W3A,Current Service Costs adjustment,W3,Current Service Costs,W,Other Operating Income and Expenditure
GUILDFORD BOROUGH COUNCIL,HRA Service Delivery,1000355,Liftec Lifts Limited,02/02/2023,30093967,881.71,0,Asset Maintenance,,Invoice,BACS,No,10/01/2023 00:00,2022,10,NV224870,M5106,Repairs-Shelt-Responsive (BHS),B1001,Asset Maintenance,W3A05,Current Service Costs - Housing Services,W3A,Current Service Costs adjustment,W3,Current Service Costs,W,Other Operating Income and Expenditure
GUILDFORD BOROUGH COUNCIL,HRA Service Delivery,1000355,Liftec Lifts Limited,09/03/2023,30096990,1276.48,0,Asset Maintenance,,Invoice,BACS,No,13/02/2023 00:00,2022,12,NV226914,M2636,Bedford House (67),B1001,Asset Maintenance,W3A05,Current Service Costs - Housing Services,W3A,Current Service Costs adjustment,W3,Current Service Costs,W,Other Operating Income and Expenditure
GUILDFORD BOROUGH COUNCIL,HRA Service Delivery,1000355,Liftec Lifts Limited,09/03/2023,30096991,2103,0,Asset Maintenance,,Invoice,BACS,No,13/02/2023 00:00,2022,12,NV226915,M5106,Repairs-Shelt-Responsive (BHS),B1001,Asset Maintenance,W3A05,Current Service Costs - Housing Services,W3A,Current Service Costs adjustment,W3,Current Service Costs,W,Other Operating Income and Expenditure
GUILDFORD BOROUGH COUNCIL,Commercial Services,1000355,Liftec Lifts Limited,28/02/2023,30095591,1892.16,0,Asset Maintenance,,Invoice,BACS,No,01/02/2023 00:00,2022,11,NV226373,B2219,Bedford Road Mscp,B1001,Asset Maintenance,HTP10,Off-Street Parking,HTP,Parking Services,HT,"Highways, Roads and Transport Services",H,"Highways, Roads and Transport Services"
GUILDFORD BOROUGH COUNCIL,HRA Service Delivery,1000355,Liftec Lifts Limited,28/02/2023,30094867,387.5,0,Asset Maintenance,,Invoice,BACS,No,31/01/2023 00:00,2022,11,NV226295,M5107,Repairs-Shelt-Cyclical (BHS),B1001,Asset Maintenance,W3A05,Current Service Costs - Housing Services,W3A,Current Service Costs adjustment,W3,Current Service Costs,W,Other Operating Income and Expenditure
GUILDFORD BOROUGH COUNCIL,HRA Service Delivery,1000355,Liftec Lifts Limited,28/02/2023,30094868,387.5,0,Asset Maintenance,,Invoice,BACS,No,31/01/2023 00:00,2022,11,NV226297,M5107,Repairs-Shelt-Cyclical (BHS),B1001,Asset Maintenance,W3A05,Current Service Costs - Housing Services,W3A,Current Service Costs adjustment,W3,Current Service Costs,W,Other Operating Income and Expenditure
GUILDFORD BOROUGH COUNCIL,HRA Service Delivery,1000355,Liftec Lifts Limited,19/01/2023,30093212,1564.8,0,Asset Maintenance,,Invoice,BACS,No,23/12/2022 00:00,2022,10,NV224279,M5106,Repairs-Shelt-Responsive (BHS),B1001,Asset Maintenance,W3A05,Current Service Costs - Housing Services,W3A,Current Service Costs adjustment,W3,Current Service Costs,W,Other Operating Income and Expenditure
GUILDFORD BOROUGH COUNCIL,HRA Service Delivery,1000355,Liftec Lifts Limited,21/02/2023,30095590,2806.2,0,Asset Maintenance,,Invoice,BACS,No,01/12/2022 00:00,2022,11,NV223476,M5106,Repairs-Shelt-Responsive (BHS),B1001,Asset Maintenance,W3A05,Current Service Costs - Housing Services,W3A,Current Service Costs adjustment,W3,Current Service Costs,W,Other Operating Income and Expenditure
GUILDFORD BOROUGH COUNCIL,Commercial Services,1000355,Liftec Lifts Limited,30/03/2023,30098634,391.2,0,Asset Maintenance,,Invoice,BACS,No,16/03/2023 00:00,2022,12,NV228230,B2219,Bedford Road Mscp,B1001,Asset Maintenance,HTP10,Off-Street Parking,HTP,Parking Services,HT,"Highways, Roads and Transport Services",H,"Highways, Roads and Transport Services"
GUILDFORD BOROUGH COUNCIL,Community Services,1000355,Liftec Lifts Limited,30/03/2023,30098199,416.24,0,Asset Maintenance,,Invoice,BACS,No,09/03/2023 00:00,2022,12,NV227835,A8161,Beverley Hall Community Centre,B1001,Asset Maintenance,CCD00,Community Centres and Public Halls,CCD,Recreation & Sport,CC,Cultural & Related Services,C,"Cultural, Environmental & Planning Services"
GUILDFORD BOROUGH COUNCIL,HRA Service Delivery,1000355,Liftec Lifts Limited,30/03/2023,30098204,387.5,0,Asset Maintenance,,Invoice,BACS,No,14/03/2023 00:00,2022,12,NV228146,M5107,Repairs-Shelt-Cyclical (BHS),B1001,Asset Maintenance,W3A05,Current Service Costs - Housing Services,W3A,Current Service Costs adjustment,W3,Current Service Costs,W,Other Operating Income and Expenditure
GUILDFORD BOROUGH COUNCIL,Communication & Customer Services,1000358,Egress Software Technologies Limited,30/03/2023,30098957,21900,0,ICT Software,,Invoice,BACS,No,28/03/2023 00:00,2022,12,INVUK23407,G3548,ICT Technical & Infrastructure,D7002,ICT Software,DBX70,Other Management Costs,DBX,Support Service and Management Costs,DB,Children's Social Care,E,Childrens and Education Services
GUILDFORD BOROUGH COUNCIL,Commercial Services,1000361,Tremco CPG StructureCare Services Limited,17/01/2023,30092822,15690.21,0,GF Assets - Maintenance,,Invoice,BACS,No,04/01/2023 00:00,2022,10,199-07,B2257,Leapale Road Mscp,B1004,GF Assets - Maintenance,HTP10,Off-Street Parking,HTP,Parking Services,HT,"Highways, Roads and Transport Services",H,"Highways, Roads and Transport Services"
GUILDFORD BOROUGH COUNCIL,Finance,1000373,Financial Reporting Council Limited,26/01/2023,30093800,418.32,0,Grants And Subscriptions,,Invoice,BACS,No,13/10/2020 00:00,2022,10,5376,F3111,Corporate Subscriptions,D9001,Grants And Subscriptions,DBX70,Other Management Costs,DBX,Support Service and Management Costs,DB,Children's Social Care,E,Childrens and Education Services
GUILDFORD BOROUGH COUNCIL,Housing Services,1000382,LHG Thornton Heath Ltd,16/02/2023,30094710,1170,0,Emergency Accomodation,,Invoice,BACS,No,24/01/2023 00:00,2022,11,GCT969,C3311,Homelessness,D8009,Emergency Accomodation,KGU00,Supporting People - Strategy,KGU,Supporting People,KG,Housing General Fund,K,Housing Services
GUILDFORD BOROUGH COUNCIL,Community Services,1000389,Waltonhall Construction Services Ltd,28/02/2023,30096238,499.78,0,Contractors,,Invoice,BACS,No,23/11/2022 00:00,2022,11,GCR015,C5132,Care And Repair (Detr),D6012,Contractors,KGU00,Supporting People - Strategy,KGU,Supporting People,KG,Housing General Fund,K,Housing Services
GUILDFORD BOROUGH COUNCIL,Housing Services,1000418,DOTS Disability,09/02/2023,30093319,1350,0,Services,,Invoice,BACS,No,17/01/2023 00:00,2022,10,1458,K1515,Building Maintenance,D6004,Services,DBX45,Property Services,DBX,Support Service and Management Costs,DB,Children's Social Care,E,Childrens and Education Services
GUILDFORD BOROUGH COUNCIL,Grants,1000428,K6 Gas,23/02/2023,30095639,5865,0,Grants To Private Owners,,Invoice,BACS,No,12/02/2023 00:00,2022,11,K6 Gas 0111,N51008,Mandatory DFG,1311,Grants To Private Owners,XXX99,*** UNASSIGNED ***,WCC,CEC Recharges,WC,CEC Recharges,A,Central Services
GUILDFORD BOROUGH COUNCIL,Other Short Term Creditors,1000428,K6 Gas,17/01/2023,30092913,938,0,Payments,,Invoice,BACS,No,09/01/2023 00:00,2022,10,K6 Gas 0106 part 1,L02088,Care & Repair Client Fund,2489,Payments,XXX99,*** UNASSIGNED ***,WCC,CEC Recharges,WC,CEC Recharges,A,Central Services
GUILDFORD BOROUGH COUNCIL,Grants,1000428,K6 Gas,17/01/2023,30092914,2532,0,Grants To Private Owners,,Invoice,BACS,No,09/01/2023 00:00,2022,10,K6 Gas 0106 part 2,N51024,BCF- Prevention Grant,1311,Grants To Private Owners,XXX99,*** UNASSIGNED ***,WCC,CEC Recharges,WC,CEC Recharges,A,Central Services
GUILDFORD BOROUGH COUNCIL,Organisational Development,1000447,IRM Trading Limited,09/03/2023,30096301,500,0,Staff Costs,,Invoice,BACS,No,14/02/2023 00:00,2022,11,INV000021647,F5725,Strategy,A7100,Staff Costs,CEH00,Community Safety (Safety Services),CEH,Community Safety (Safety Services),CE,Environmental & Regulatory Services,C,"Cultural, Environmental & Planning Services"
GUILDFORD BOROUGH COUNCIL,Grants,1000449,Rocon Contractors Ltd,31/01/2023,30092456,15270.12,0,Grants To Private Owners,,Invoice,BACS,No,04/01/2023 00:00,2022,10,Rocon Contractors DS 20563,N51008,Mandatory DFG,1311,Grants To Private Owners,XXX99,*** UNASSIGNED ***,WCC,CEC Recharges,WC,CEC Recharges,A,Central Services
GUILDFORD BOROUGH COUNCIL,Housing Services,1000451,AMG Electrical Ltd,02/03/2023,30096433,1083.39,0,Services,,Invoice,BACS,No,22/02/2023 00:00,2022,12,2302-03,K1515,Building Maintenance,D6004,Services,DBX45,Property Services,DBX,Support Service and Management Costs,DB,Children's Social Care,E,Childrens and Education Services
GUILDFORD BOROUGH COUNCIL,Housing Services,1000451,AMG Electrical Ltd,09/02/2023,30094709,4244,0,Services,,Invoice,BACS,No,16/01/2023 00:00,2022,11,XLHS-22FP,K1515,Building Maintenance,D6004,Services,DBX45,Property Services,DBX,Support Service and Management Costs,DB,Children's Social Care,E,Childrens and Education Services
GUILDFORD BOROUGH COUNCIL,Housing Services,1000451,AMG Electrical Ltd,07/03/2023,30096748,450,0,Services,,Invoice,BACS,No,02/02/2023 00:00,2022,12,XLEF-23,K1515,Building Maintenance,D6004,Services,DBX45,Property Services,DBX,Support Service and Management Costs,DB,Children's Social Care,E,Childrens and Education Services
GUILDFORD BOROUGH COUNCIL,Housing Services,1000451,AMG Electrical Ltd,07/03/2023,30096639,1009.11,0,Services,,Invoice,BACS,No,24/02/2023 00:00,2022,12,2302-04,K1515,Building Maintenance,D6004,Services,DBX45,Property Services,DBX,Support Service and Management Costs,DB,Children's Social Care,E,Childrens and Education Services
GUILDFORD BOROUGH COUNCIL,Housing Services,1000451,AMG Electrical Ltd,07/03/2023,30096612,812.01,0,Services,,Invoice,BACS,No,27/02/2023 00:00,2022,12,2302-05,K1515,Building Maintenance,D6004,Services,DBX45,Property Services,DBX,Support Service and Management Costs,DB,Children's Social Care,E,Childrens and Education Services
GUILDFORD BOROUGH COUNCIL,Housing Services,1000451,AMG Electrical Ltd,07/03/2023,30096627,940.17,0,Services,,Invoice,BACS,No,20/02/2023 00:00,2022,12,2302-02,K1515,Building Maintenance,D6004,Services,DBX45,Property Services,DBX,Support Service and Management Costs,DB,Children's Social Care,E,Childrens and Education Services
GUILDFORD BOROUGH COUNCIL,Housing Services,1000451,AMG Electrical Ltd,17/01/2023,30093020,834.13,0,Services,,Invoice,BACS,No,09/01/2023 00:00,2022,10,2301-01,K1515,Building Maintenance,D6004,Services,DBX45,Property Services,DBX,Support Service and Management Costs,DB,Children's Social Care,E,Childrens and Education Services
GUILDFORD BOROUGH COUNCIL,Housing Services,1000451,AMG Electrical Ltd,21/03/2023,30098034,1275.98,0,Services,,Invoice,BACS,No,15/03/2023 00:00,2022,12,2303-05,K1515,Building Maintenance,D6004,Services,DBX45,Property Services,DBX,Support Service and Management Costs,DB,Children's Social Care,E,Childrens and Education Services
GUILDFORD BOROUGH COUNCIL,Housing Services,1000451,AMG Electrical Ltd,21/03/2023,30098034,614.7,0,Materials,,Invoice,BACS,No,15/03/2023 00:00,2022,12,2303-05,K1515,Building Maintenance,D2003,Materials,DBX45,Property Services,DBX,Support Service and Management Costs,DB,Children's Social Care,E,Childrens and Education Services
GUILDFORD BOROUGH COUNCIL,Housing Services,1000451,AMG Electrical Ltd,24/01/2023,30093487,4585.2,0,Services,,Invoice,BACS,No,16/01/2023 00:00,2022,10,XLHSST-23,K1515,Building Maintenance,D6004,Services,DBX45,Property Services,DBX,Support Service and Management Costs,DB,Children's Social Care,E,Childrens and Education Services
GUILDFORD BOROUGH COUNCIL,Housing Services,1000451,AMG Electrical Ltd,07/02/2023,30094690,2033.4,0,Services,,Invoice,BACS,No,26/01/2023 00:00,2022,11,S/12/01/23,K1515,Building Maintenance,D6004,Services,DBX45,Property Services,DBX,Support Service and Management Costs,DB,Children's Social Care,E,Childrens and Education Services
GUILDFORD BOROUGH COUNCIL,Housing Services,1000451,AMG Electrical Ltd,09/03/2023,30097236,986.16,0,Services,,Invoice,BACS,No,02/03/2023 00:00,2022,12,2303-01N,K1515,Building Maintenance,D6004,Services,DBX45,Property Services,DBX,Support Service and Management Costs,DB,Children's Social Care,E,Childrens and Education Services
GUILDFORD BOROUGH COUNCIL,Housing Services,1000451,AMG Electrical Ltd,09/03/2023,30097236,1540,0,Materials,,Invoice,BACS,No,02/03/2023 00:00,2022,12,2303-01N,K1515,Building Maintenance,D2003,Materials,DBX45,Property Services,DBX,Support Service and Management Costs,DB,Children's Social Care,E,Childrens and Education Services
GUILDFORD BOROUGH COUNCIL,Housing Services,1000451,AMG Electrical Ltd,26/01/2023,30093429,783.09,0,Services,,Invoice,BACS,No,15/01/2023 00:00,2022,10,2301-02,K1515,Building Maintenance,D6004,Services,DBX45,Property Services,DBX,Support Service and Management Costs,DB,Children's Social Care,E,Childrens and Education Services
GUILDFORD BOROUGH COUNCIL,Housing Services,1000451,AMG Electrical Ltd,16/03/2023,30097685,1347.59,0,Services,,Invoice,BACS,No,14/03/2023 00:00,2022,12,2303-04,K1515,Building Maintenance,D6004,Services,DBX45,Property Services,DBX,Support Service and Management Costs,DB,Children's Social Care,E,Childrens and Education Services
GUILDFORD BOROUGH COUNCIL,Housing Services,1000451,AMG Electrical Ltd,16/03/2023,30097685,326.66,0,Materials,,Invoice,BACS,No,14/03/2023 00:00,2022,12,2303-04,K1515,Building Maintenance,D2003,Materials,DBX45,Property Services,DBX,Support Service and Management Costs,DB,Children's Social Care,E,Childrens and Education Services
GUILDFORD BOROUGH COUNCIL,Housing Services,1000451,AMG Electrical Ltd,16/03/2023,30097689,2172.45,0,Services,,Invoice,BACS,No,14/01/2023 00:00,2022,12,S/02/23,K1515,Building Maintenance,D6004,Services,DBX45,Property Services,DBX,Support Service and Management Costs,DB,Children's Social Care,E,Childrens and Education Services
GUILDFORD BOROUGH COUNCIL,Housing Services,1000451,AMG Electrical Ltd,14/03/2023,30097411,1398.63,0,Services,,Invoice,BACS,No,08/03/2023 00:00,2022,12,2303-03,K1515,Building Maintenance,D6004,Services,DBX45,Property Services,DBX,Support Service and Management Costs,DB,Children's Social Care,E,Childrens and Education Services
GUILDFORD BOROUGH COUNCIL,Housing Services,1000451,AMG Electrical Ltd,14/03/2023,30097411,659.46,0,Materials,,Invoice,BACS,No,08/03/2023 00:00,2022,12,2303-03,K1515,Building Maintenance,D2003,Materials,DBX45,Property Services,DBX,Support Service and Management Costs,DB,Children's Social Care,E,Childrens and Education Services
GUILDFORD BOROUGH COUNCIL,Housing Services,1000451,AMG Electrical Ltd,14/03/2023,30097424,1294.38,0,Services,,Invoice,BACS,No,06/03/2023 00:00,2022,12,2303-02,K1515,Building Maintenance,D6004,Services,DBX45,Property Services,DBX,Support Service and Management Costs,DB,Children's Social Care,E,Childrens and Education Services
GUILDFORD BOROUGH COUNCIL,Housing Services,1000451,AMG Electrical Ltd,14/03/2023,30097424,1066.12,0,Materials,,Invoice,BACS,No,06/03/2023 00:00,2022,12,2303-02,K1515,Building Maintenance,D2003,Materials,DBX45,Property Services,DBX,Support Service and Management Costs,DB,Children's Social Care,E,Childrens and Education Services
GUILDFORD BOROUGH COUNCIL,Housing Services,1000451,AMG Electrical Ltd,28/02/2023,30096257,1049.95,0,Services,,Invoice,BACS,No,20/02/2023 00:00,2022,11,2302-01,K1515,Building Maintenance,D6004,Services,DBX45,Property Services,DBX,Support Service and Management Costs,DB,Children's Social Care,E,Childrens and Education Services
GUILDFORD BOROUGH COUNCIL,Housing Services,1000451,AMG Electrical Ltd,30/03/2023,30098961,1314.66,0,Services,,Invoice,BACS,No,23/03/2023 00:00,2022,12,2303-06,K1515,Building Maintenance,D6004,Services,DBX45,Property Services,DBX,Support Service and Management Costs,DB,Children's Social Care,E,Childrens and Education Services
GUILDFORD BOROUGH COUNCIL,Housing Services,1000451,AMG Electrical Ltd,21/02/2023,30095407,2865,0,Services,,Invoice,BACS,No,02/02/2023 00:00,2022,11,XLEH-23,K1515,Building Maintenance,D6004,Services,DBX45,Property Services,DBX,Support Service and Management Costs,DB,Children's Social Care,E,Childrens and Education Services
GUILDFORD BOROUGH COUNCIL,Housing Services,1000451,AMG Electrical Ltd,21/02/2023,30095389,1295,0,Services,,Invoice,BACS,No,02/02/2023 00:00,2022,11,XLSD-23,K1515,Building Maintenance,D6004,Services,DBX45,Property Services,DBX,Support Service and Management Costs,DB,Children's Social Care,E,Childrens and Education Services
GUILDFORD BOROUGH COUNCIL,Housing Services,1000451,AMG Electrical Ltd,21/02/2023,30095420,3540,0,Services,,Invoice,BACS,No,02/02/2023 00:00,2022,11,XLRIP-23,K1515,Building Maintenance,D6004,Services,DBX45,Property Services,DBX,Support Service and Management Costs,DB,Children's Social Care,E,Childrens and Education Services
GUILDFORD BOROUGH COUNCIL,Regulatory Services,1000452,Lambeth Scientific Services Limited,21/02/2023,30094027,2907,0,Equipment,,Invoice,BACS,No,25/01/2023 00:00,2022,10,38755,C1113,Environmental Control,D2001,Equipment,CEE25,Environmental Protection,CEE,Environmental Health (Regulatory Services),CE,Environmental & Regulatory Services,C,"Cultural, Environmental & Planning Services"
GUILDFORD BOROUGH COUNCIL,Communication & Customer Services,1000453,NOMINET UK,23/02/2023,30094141,1009.61,0,Telephones & Broadband,,Invoice,BACS,No,30/01/2023 00:00,2022,10,4846,G3548,ICT Technical & Infrastructure,D7004,Telephones & Broadband,DBX70,Other Management Costs,DBX,Support Service and Management Costs,DB,Children's Social Care,E,Childrens and Education Services
GUILDFORD BOROUGH COUNCIL,Doors and Windows,1000455,Signature Home Improvements Limited,31/01/2023,30091351,3825.97,0,Contractor Payments,,Invoice,BACS,No,07/11/2022 00:00,2022,10,1995,N45072,Replacement of windows 2020-21,1233,Contractor Payments,XXX99,*** UNASSIGNED ***,WCC,CEC Recharges,WC,CEC Recharges,A,Central Services
GUILDFORD BOROUGH COUNCIL,HRA Service Delivery,1000456,Birketts LLP,02/02/2023,30092827,300,0,Services,,Invoice,BACS,No,10/01/2023 00:00,2022,10,841577,M1121,Income Collection (BHS),D6004,Services,W3A05,Current Service Costs - Housing Services,W3A,Current Service Costs adjustment,W3,Current Service Costs,W,Other Operating Income and Expenditure
GUILDFORD BOROUGH COUNCIL,Environmental Services,1000464,Secure-a-Field Ltd,23/03/2023,30096776,1241.92,0,Grounds Maintenance,,Invoice,BACS,No,28/02/2023 00:00,2022,12,11463,A1300,Trees And Countryside,B6001,Grounds Maintenance,CCE00,Community Parks & Open Spaces,CCE,Open Spaces,CC,Cultural & Related Services,C,"Cultural, Environmental & Planning Services"
GUILDFORD BOROUGH COUNCIL,Communication & Customer Services,1000466,NimbusPoint Consulting Ltd,30/03/2023,30097694,8550,0,Services,,Invoice,BACS,No,09/03/2023 00:00,2022,12,1814,F1141,Internet Site Access,D6004,Services,DBX70,Other Management Costs,DBX,Support Service and Management Costs,DB,Children's Social Care,E,Childrens and Education Services
GUILDFORD BOROUGH COUNCIL,Organisational Development,1000466,NimbusPoint Consulting Ltd,30/03/2023,30097498,450,0,Consultancy,,Invoice,BACS,No,13/03/2023 00:00,2022,12,1815,G3531,Future Guildford,D6001,Consultancy,AAM00,Corporate Management,AAM,Corporate Management,AA,Corporate & Democratic Core,A,Central Services
GUILDFORD BOROUGH COUNCIL,Organisational Development,1000466,NimbusPoint Consulting Ltd,30/03/2023,30097516,4978.13,0,Consultancy,,Invoice,BACS,No,13/03/2023 00:00,2022,12,1816,G3531,Future Guildford,D6001,Consultancy,AAM00,Corporate Management,AAM,Corporate Management,AA,Corporate & Democratic Core,A,Central Services
GUILDFORD BOROUGH COUNCIL,IT Renewals,1000466,NimbusPoint Consulting Ltd,28/03/2023,30096675,13500,0,Contractor Payments,,Invoice,BACS,No,01/03/2023 00:00,2022,12,1801,P81037,Salesforce,1233,Contractor Payments,XXX99,*** UNASSIGNED ***,WCC,CEC Recharges,WC,CEC Recharges,A,Central Services
GUILDFORD BOROUGH COUNCIL,Communication & Customer Services,1000466,NimbusPoint Consulting Ltd,02/02/2023,30092613,8550,0,Services,,Invoice,BACS,No,09/01/2023 00:00,2022,10,1766,F1141,Internet Site Access,D6004,Services,DBX70,Other Management Costs,DBX,Support Service and Management Costs,DB,Children's Social Care,E,Childrens and Education Services
GUILDFORD BOROUGH COUNCIL,IT Renewals,1000466,NimbusPoint Consulting Ltd,02/02/2023,30092625,10800,0,Agency Staff,,Invoice,BACS,No,09/01/2023 00:00,2022,10,1765,P81002,IT Renewals Reserve Funded General,1222,Agency Staff,XXX99,*** UNASSIGNED ***,WCC,CEC Recharges,WC,CEC Recharges,A,Central Services
GUILDFORD BOROUGH COUNCIL,IT Renewals,1000466,NimbusPoint Consulting Ltd,16/03/2023,30096043,10800,0,Contractor Payments,,Invoice,BACS,No,21/02/2023 00:00,2022,11,1796,P81037,Salesforce,1233,Contractor Payments,XXX99,*** UNASSIGNED ***,WCC,CEC Recharges,WC,CEC Recharges,A,Central Services
GUILDFORD BOROUGH COUNCIL,Communication & Customer Services,1000466,NimbusPoint Consulting Ltd,28/02/2023,30094706,8550,0,Services,,Invoice,BACS,No,06/02/2023 00:00,2022,11,1786,F1141,Internet Site Access,D6004,Services,DBX70,Other Management Costs,DBX,Support Service and Management Costs,DB,Children's Social Care,E,Childrens and Education Services
GUILDFORD BOROUGH COUNCIL,Regulatory Services,1000470,Constant & Co (Bedford) Ltd,28/02/2023,30094471,995,0,Enforcement,,Invoice,BACS,No,01/02/2023 00:00,2022,11,76937,C1113,Environmental Control,D6008,Enforcement,CEE25,Environmental Protection,CEE,Environmental Health (Regulatory Services),CE,Environmental & Regulatory Services,C,"Cultural, Environmental & Planning Services"
GUILDFORD BOROUGH COUNCIL,Property,1000470,Constant & Co (Bedford) Ltd,30/03/2023,30097631,490,0,Consultants Fees,,Invoice,BACS,No,14/03/2023 00:00,2022,12,77067,P74040,WUV - Weyside Urban Village (SARP),1221,Consultants Fees,XXX99,*** UNASSIGNED ***,WCC,CEC Recharges,WC,CEC Recharges,A,Central Services
GUILDFORD BOROUGH COUNCIL,Planning & Development,1000471,Paul Fineberg Architect Ltd,14/03/2023,30097423,640,0,Consultancy,,Invoice,BACS,No,20/04/2022 00:00,2022,12,32,D5100,Development Control - Fee Earn,D6001,Consultancy,CPC00,Development Control Advice,CPC,Development Control,CP,Planning and Development Services,C,"Cultural, Environmental & Planning Services"
GUILDFORD BOROUGH COUNCIL,Planning & Development,1000475,G2 Recruitment Solutions,07/03/2023,30096649,9856,0,Consultancy,,Invoice,BACS,No,01/02/2023 00:00,2022,12,116483,D5100,Development Control - Fee Earn,D6001,Consultancy,CPC00,Development Control Advice,CPC,Development Control,CP,Planning and Development Services,C,"Cultural, Environmental & Planning Services"
GUILDFORD BOROUGH COUNCIL,Planning & Development,1000475,G2 Recruitment Solutions,24/01/2023,30092154,7602,0,Agency,,Invoice,BACS,No,28/12/2022 00:00,2022,10,114612,D5100,Development Control - Fee Earn,A5191,Agency,CPC00,Development Control Advice,CPC,Development Control,CP,Planning and Development Services,C,"Cultural, Environmental & Planning Services"
GUILDFORD BOROUGH COUNCIL,Commercial Services,1000475,G2 Recruitment Solutions,17/01/2023,30087036,4598.43,0,Consultancy,,Invoice,BACS,No,14/10/2022 00:00,2022,10,110297,D5700,Building Control - Fee,D6001,Consultancy,CPB00,Building Regulations,CPB,Building Control,CP,Planning and Development Services,C,"Cultural, Environmental & Planning Services"
GUILDFORD BOROUGH COUNCIL,Commercial Services,1000475,G2 Recruitment Solutions,17/01/2023,30088034,8181.33,0,Consultancy,,Invoice,BACS,No,02/11/2022 00:00,2022,10,111368,D5700,Building Control - Fee,D6001,Consultancy,CPB00,Building Regulations,CPB,Building Control,CP,Planning and Development Services,C,"Cultural, Environmental & Planning Services"
GUILDFORD BOROUGH COUNCIL,Planning & Development,1000475,G2 Recruitment Solutions,28/03/2023,30096705,7462,0,Consultancy,,Invoice,BACS,No,01/03/2023 00:00,2022,12,118173,D5100,Development Control - Fee Earn,D6001,Consultancy,CPC00,Development Control Advice,CPC,Development Control,CP,Planning and Development Services,C,"Cultural, Environmental & Planning Services"
GUILDFORD BOROUGH COUNCIL,Housing Services,1000479,Legacy Lodgings Ltd,16/02/2023,30093816,309.19,0,Emergency Accomodation,,Invoice,BACS,No,16/01/2023 00:00,2022,11,INV-0894,C3311,Homelessness,D8009,Emergency Accomodation,KGU00,Supporting People - Strategy,KGU,Supporting People,KG,Housing General Fund,K,Housing Services
GUILDFORD BOROUGH COUNCIL,Housing Services,1000479,Legacy Lodgings Ltd,16/02/2023,30093838,280,0,Emergency Accomodation,,Invoice,BACS,No,16/01/2023 00:00,2022,11,INV-0888,C3311,Homelessness,D8009,Emergency Accomodation,KGU00,Supporting People - Strategy,KGU,Supporting People,KG,Housing General Fund,K,Housing Services
GUILDFORD BOROUGH COUNCIL,Housing Services,1000479,Legacy Lodgings Ltd,16/02/2023,30094418,280,0,Emergency Accomodation,,Invoice,BACS,No,23/01/2023 00:00,2022,11,INV-0907,C3311,Homelessness,D8009,Emergency Accomodation,KGU00,Supporting People - Strategy,KGU,Supporting People,KG,Housing General Fund,K,Housing Services
GUILDFORD BOROUGH COUNCIL,Housing Services,1000479,Legacy Lodgings Ltd,16/02/2023,30094457,309.19,0,Emergency Accomodation,,Invoice,BACS,No,23/01/2023 00:00,2022,11,INV-0911,C3311,Homelessness,D8009,Emergency Accomodation,KGU00,Supporting People - Strategy,KGU,Supporting People,KG,Housing General Fund,K,Housing Services
GUILDFORD BOROUGH COUNCIL,Housing Services,1000479,Legacy Lodgings Ltd,10/01/2023,30092306,455,0,Emergency Accomodation,,Invoice,BACS,No,28/11/2022 00:00,2022,10,INV-0758,C3311,Homelessness,D8009,Emergency Accomodation,KGU00,Supporting People - Strategy,KGU,Supporting People,KG,Housing General Fund,K,Housing Services
GUILDFORD BOROUGH COUNCIL,Housing Services,1000479,Legacy Lodgings Ltd,16/03/2023,30096016,309.19,0,Emergency Accomodation,,Invoice,BACS,No,30/01/2023 00:00,2022,12,INV-0932,C3311,Homelessness,D8009,Emergency Accomodation,KGU00,Supporting People - Strategy,KGU,Supporting People,KG,Housing General Fund,K,Housing Services
GUILDFORD BOROUGH COUNCIL,Housing Services,1000479,Legacy Lodgings Ltd,16/03/2023,30096027,280,0,Emergency Accomodation,,Invoice,BACS,No,30/01/2023 00:00,2022,12,INV-0928,C3311,Homelessness,D8009,Emergency Accomodation,KGU00,Supporting People - Strategy,KGU,Supporting People,KG,Housing General Fund,K,Housing Services
GUILDFORD BOROUGH COUNCIL,Housing Services,1000479,Legacy Lodgings Ltd,16/03/2023,30096199,280,0,Emergency Accomodation,,Invoice,BACS,No,06/02/2023 00:00,2022,12,INV-0952,C3311,Homelessness,D8009,Emergency Accomodation,KGU00,Supporting People - Strategy,KGU,Supporting People,KG,Housing General Fund,K,Housing Services
GUILDFORD BOROUGH COUNCIL,Housing Services,1000479,Legacy Lodgings Ltd,16/03/2023,30096310,280,0,Emergency Accomodation,,Invoice,BACS,No,13/02/2023 00:00,2022,12,INV-0969,C3311,Homelessness,D8009,Emergency Accomodation,KGU00,Supporting People - Strategy,KGU,Supporting People,KG,Housing General Fund,K,Housing Services
GUILDFORD BOROUGH COUNCIL,Housing Services,1000479,Legacy Lodgings Ltd,16/03/2023,30096331,280,0,Emergency Accomodation,,Invoice,BACS,No,20/02/2023 00:00,2022,12,INV-0983,C3311,Homelessness,D8009,Emergency Accomodation,KGU00,Supporting People - Strategy,KGU,Supporting People,KG,Housing General Fund,K,Housing Services
GUILDFORD BOROUGH COUNCIL,Housing Services,1000479,Legacy Lodgings Ltd,02/02/2023,30092954,280,0,Emergency Accomodation,,Invoice,BACS,No,09/01/2023 00:00,2022,10,INV-0870,C3311,Homelessness,D8009,Emergency Accomodation,KGU00,Supporting People - Strategy,KGU,Supporting People,KG,Housing General Fund,K,Housing Services
GUILDFORD BOROUGH COUNCIL,Housing Services,1000479,Legacy Lodgings Ltd,02/02/2023,30092959,309.19,0,Emergency Accomodation,,Invoice,BACS,No,09/01/2023 00:00,2022,10,INV-0875,C3311,Homelessness,D8009,Emergency Accomodation,KGU00,Supporting People - Strategy,KGU,Supporting People,KG,Housing General Fund,K,Housing Services
GUILDFORD BOROUGH COUNCIL,Housing Services,1000479,Legacy Lodgings Ltd,26/01/2023,30092777,309.19,0,Emergency Accomodation,,Invoice,BACS,No,02/01/2023 00:00,2022,10,INV-0859,C3311,Homelessness,D8009,Emergency Accomodation,KGU00,Supporting People - Strategy,KGU,Supporting People,KG,Housing General Fund,K,Housing Services
GUILDFORD BOROUGH COUNCIL,Housing Services,1000479,Legacy Lodgings Ltd,26/01/2023,30092730,280,0,Emergency Accomodation,,Invoice,BACS,No,02/01/2023 00:00,2022,10,INV-0855,C3311,Homelessness,D8009,Emergency Accomodation,KGU00,Supporting People - Strategy,KGU,Supporting People,KG,Housing General Fund,K,Housing Services
GUILDFORD BOROUGH COUNCIL,Housing Services,1000479,Legacy Lodgings Ltd,14/02/2023,30092971,300,0,Emergency Accomodation,,Invoice,BACS,No,09/01/2023 00:00,2022,11,INV-0884,C3311,Homelessness,D8009,Emergency Accomodation,KGU00,Supporting People - Strategy,KGU,Supporting People,KG,Housing General Fund,K,Housing Services
GUILDFORD BOROUGH COUNCIL,Housing Services,1000479,Legacy Lodgings Ltd,19/01/2023,30092624,309.19,0,Emergency Accomodation,,Invoice,BACS,No,26/12/2022 00:00,2022,10,INV-0841,C3311,Homelessness,D8009,Emergency Accomodation,KGU00,Supporting People - Strategy,KGU,Supporting People,KG,Housing General Fund,K,Housing Services
GUILDFORD BOROUGH COUNCIL,Housing Services,1000479,Legacy Lodgings Ltd,19/01/2023,30092634,280,0,Emergency Accomodation,,Invoice,BACS,No,26/12/2022 00:00,2022,10,INV-0837,C3311,Homelessness,D8009,Emergency Accomodation,KGU00,Supporting People - Strategy,KGU,Supporting People,KG,Housing General Fund,K,Housing Services
GUILDFORD BOROUGH COUNCIL,Environmental Services,1000485,Filcris Limited,09/02/2023,30094992,667.68,0,Grounds Maintenance,,Invoice,BACS,No,17/10/2022 00:00,2022,11,52654,A1300,Trees And Countryside,B6001,Grounds Maintenance,CCE00,Community Parks & Open Spaces,CCE,Open Spaces,CC,Cultural & Related Services,C,"Cultural, Environmental & Planning Services"
GUILDFORD BOROUGH COUNCIL,Environmental Services,1000485,Filcris Limited,21/02/2023,30094049,6970.16,0,Grounds Maintenance,,Invoice,BACS,No,25/01/2023 00:00,2022,10,53121,A1300,Trees And Countryside,B6001,Grounds Maintenance,CCE00,Community Parks & Open Spaces,CCE,Open Spaces,CC,Cultural & Related Services,C,"Cultural, Environmental & Planning Services"
GUILDFORD BOROUGH COUNCIL,Environmental Services,1000493,Gate-A-Mation Services Ltd (Non CIS),30/03/2023,30097370,437.4,0,Maintenance Contracts,,Invoice,BACS,No,09/03/2023 00:00,2022,12,36136,B4452,Woking Road Depot,D1002,Maintenance Contracts,XXX99,*** UNASSIGNED ***,WCC,CEC Recharges,WC,CEC Recharges,A,Central Services
GUILDFORD BOROUGH COUNCIL,Environmental Services,1000493,Gate-A-Mation Services Ltd (Non CIS),07/03/2023,30096252,368.1,0,Inspections,,Invoice,BACS,No,17/11/2022 00:00,2022,12,34907,V1010,Fleet Sweepers,1351,Inspections,W3A48,Current Service Costs - Fleet Management,W3A,Current Service Costs adjustment,W3,Current Service Costs,W,Other Operating Income and Expenditure
GUILDFORD BOROUGH COUNCIL,Grants,1000511,A&E Builders Limited,17/01/2023,30092292,7595,0,Grants To Private Owners,,Invoice,BACS,No,21/12/2022 00:00,2022,10,A&E Builders invoice 00178015,N51008,Mandatory DFG,1311,Grants To Private Owners,XXX99,*** UNASSIGNED ***,WCC,CEC Recharges,WC,CEC Recharges,A,Central Services
GUILDFORD BOROUGH COUNCIL,Commercial Services,1000512,St Edward Homes Limited,30/03/2023,30098597,3333.37,0,Rents Payable,,Invoice,BACS,No,22/03/2023 00:00,2022,12,14000112,B2241,Commercial Road 2 Car Park,B3001,Rents Payable,HTP10,Off-Street Parking,HTP,Parking Services,HT,"Highways, Roads and Transport Services",H,"Highways, Roads and Transport Services"
GUILDFORD BOROUGH COUNCIL,Executive - Miscellaneous,1000517,Morris Leslie Plant Hire Ltd,23/03/2023,30096437,1567.4,0,Contractor Payments,,Invoice,BACS,No,28/02/2023 00:00,2022,12,1000615923,P79100,Wuv - Allotment Relocation,1233,Contractor Payments,XXX99,*** UNASSIGNED ***,WCC,CEC Recharges,WC,CEC Recharges,A,Central Services
GUILDFORD BOROUGH COUNCIL,Executive - Miscellaneous,1000517,Morris Leslie Plant Hire Ltd,23/03/2023,30096437,1173,0,Contractor Payments,,Invoice,BACS,No,28/02/2023 00:00,2022,12,1000615923,P79100,Wuv - Allotment Relocation,1233,Contractor Payments,XXX99,*** UNASSIGNED ***,WCC,CEC Recharges,WC,CEC Recharges,A,Central Services
GUILDFORD BOROUGH COUNCIL,Environmental Services,1000517,Morris Leslie Plant Hire Ltd,28/02/2023,30094464,352.9,0,Grounds Maintenance,,Invoice,BACS,No,31/01/2023 00:00,2022,11,1000612692,A1300,Trees And Countryside,B6001,Grounds Maintenance,CCE00,Community Parks & Open Spaces,CCE,Open Spaces,CC,Cultural & Related Services,C,"Cultural, Environmental & Planning Services"
GUILDFORD BOROUGH COUNCIL,Executive - Miscellaneous,1000517,Morris Leslie Plant Hire Ltd,28/02/2023,30094388,807.55,0,Contractor Payments,,Invoice,BACS,No,31/01/2023 00:00,2022,11,1000612691,P79100,Wuv - Allotment Relocation,1233,Contractor Payments,XXX99,*** UNASSIGNED ***,WCC,CEC Recharges,WC,CEC Recharges,A,Central Services
GUILDFORD BOROUGH COUNCIL,Executive - Miscellaneous,1000517,Morris Leslie Plant Hire Ltd,28/02/2023,30094400,540,0,Contractor Payments,,Invoice,BACS,No,31/01/2023 00:00,2022,11,1000612693,P79100,Wuv - Allotment Relocation,1233,Contractor Payments,XXX99,*** UNASSIGNED ***,WCC,CEC Recharges,WC,CEC Recharges,A,Central Services
GUILDFORD BOROUGH COUNCIL,Renovations,1000518,Liquid Recruit Solutions Limited,28/02/2023,30094609,2161.5,0,Contractor Payments,,Invoice,BACS,No,01/02/2023 00:00,2022,11,12747,N40292,Fire protection works,1233,Contractor Payments,XXX99,*** UNASSIGNED ***,WCC,CEC Recharges,WC,CEC Recharges,A,Central Services
GUILDFORD BOROUGH COUNCIL,Renovations,1000518,Liquid Recruit Solutions Limited,28/02/2023,30094610,1375,0,Contractor Payments,,Invoice,BACS,No,01/02/2023 00:00,2022,11,12751,N40292,Fire protection works,1233,Contractor Payments,XXX99,*** UNASSIGNED ***,WCC,CEC Recharges,WC,CEC Recharges,A,Central Services
GUILDFORD BOROUGH COUNCIL,Housing Services,1000518,Liquid Recruit Solutions Limited,28/02/2023,30094611,1865,0,Agency,,Invoice,BACS,No,01/02/2023 00:00,2022,11,12748,G6525,Housing Surveying Services,A5191,Agency,CEE20,Housing Standards,CEE,Environmental Health (Regulatory Services),CE,Environmental & Regulatory Services,C,"Cultural, Environmental & Planning Services"
GUILDFORD BOROUGH COUNCIL,HRA Service Delivery,1000518,Liquid Recruit Solutions Limited,28/02/2023,30094617,896.87,0,Agency,,Invoice,BACS,No,01/02/2023 00:00,2022,11,12750,M5111,Repairs-Admin (BHS),A5191,Agency,W3A05,Current Service Costs - Housing Services,W3A,Current Service Costs adjustment,W3,Current Service Costs,W,Other Operating Income and Expenditure
GUILDFORD BOROUGH COUNCIL,Renovations,1000518,Liquid Recruit Solutions Limited,28/02/2023,30094629,1554.97,0,Contractor Payments,,Invoice,BACS,No,01/02/2023 00:00,2022,11,12745,N40292,Fire protection works,1233,Contractor Payments,XXX99,*** UNASSIGNED ***,WCC,CEC Recharges,WC,CEC Recharges,A,Central Services
GUILDFORD BOROUGH COUNCIL,Renovations,1000518,Liquid Recruit Solutions Limited,28/02/2023,30094626,704.05,0,Contractor Payments,,Invoice,BACS,No,01/02/2023 00:00,2022,11,12749,N40287,Electrical testing and smoke detectors,1233,Contractor Payments,XXX99,*** UNASSIGNED ***,WCC,CEC Recharges,WC,CEC Recharges,A,Central Services
GUILDFORD BOROUGH COUNCIL,Renovations,1000518,Liquid Recruit Solutions Limited,28/02/2023,30094626,704.05,0,Contractor Payments,,Invoice,BACS,No,01/02/2023 00:00,2022,11,12749,N40292,Fire protection works,1233,Contractor Payments,XXX99,*** UNASSIGNED ***,WCC,CEC Recharges,WC,CEC Recharges,A,Central Services
GUILDFORD BOROUGH COUNCIL,Renovations,1000518,Liquid Recruit Solutions Limited,28/02/2023,30094637,1979.18,0,Contractor Payments,,Invoice,BACS,No,01/02/2023 00:00,2022,11,12746,N40287,Electrical testing and smoke detectors,1233,Contractor Payments,XXX99,*** UNASSIGNED ***,WCC,CEC Recharges,WC,CEC Recharges,A,Central Services
GUILDFORD BOROUGH COUNCIL,Renovations,1000518,Liquid Recruit Solutions Limited,28/02/2023,30095067,1218.76,0,Contractor Payments,,Invoice,BACS,No,09/02/2023 00:00,2022,11,12762,N40292,Fire protection works,1233,Contractor Payments,XXX99,*** UNASSIGNED ***,WCC,CEC Recharges,WC,CEC Recharges,A,Central Services
GUILDFORD BOROUGH COUNCIL,Modern Homes,1000518,Liquid Recruit Solutions Limited,28/02/2023,30095067,336,0,Contractor Payments,,Invoice,BACS,No,09/02/2023 00:00,2022,11,12762,N47034,Pitched roof replacement,1233,Contractor Payments,XXX99,*** UNASSIGNED ***,WCC,CEC Recharges,WC,CEC Recharges,A,Central Services
GUILDFORD BOROUGH COUNCIL,Renovations,1000518,Liquid Recruit Solutions Limited,28/02/2023,30095073,1375,0,Contractor Payments,,Invoice,BACS,No,09/02/2023 00:00,2022,11,12758,N40292,Fire protection works,1233,Contractor Payments,XXX99,*** UNASSIGNED ***,WCC,CEC Recharges,WC,CEC Recharges,A,Central Services
GUILDFORD BOROUGH COUNCIL,Renovations,1000518,Liquid Recruit Solutions Limited,28/02/2023,30095074,1972.04,0,Contractor Payments,,Invoice,BACS,No,09/02/2023 00:00,2022,11,12756,N40287,Electrical testing and smoke detectors,1233,Contractor Payments,XXX99,*** UNASSIGNED ***,WCC,CEC Recharges,WC,CEC Recharges,A,Central Services
GUILDFORD BOROUGH COUNCIL,Renovations,1000518,Liquid Recruit Solutions Limited,28/02/2023,30095101,704.05,0,Contractor Payments,,Invoice,BACS,No,09/02/2023 00:00,2022,11,12760,N40287,Electrical testing and smoke detectors,1233,Contractor Payments,XXX99,*** UNASSIGNED ***,WCC,CEC Recharges,WC,CEC Recharges,A,Central Services
GUILDFORD BOROUGH COUNCIL,Renovations,1000518,Liquid Recruit Solutions Limited,28/02/2023,30095101,704.05,0,Contractor Payments,,Invoice,BACS,No,09/02/2023 00:00,2022,11,12760,N40292,Fire protection works,1233,Contractor Payments,XXX99,*** UNASSIGNED ***,WCC,CEC Recharges,WC,CEC Recharges,A,Central Services
GUILDFORD BOROUGH COUNCIL,Housing Services,1000518,Liquid Recruit Solutions Limited,28/02/2023,30095104,1865,0,Agency,,Invoice,BACS,No,09/02/2023 00:00,2022,11,12761,G6525,Housing Surveying Services,A5191,Agency,CEE20,Housing Standards,CEE,Environmental Health (Regulatory Services),CE,Environmental & Regulatory Services,C,"Cultural, Environmental & Planning Services"
GUILDFORD BOROUGH COUNCIL,HRA Service Delivery,1000518,Liquid Recruit Solutions Limited,28/02/2023,30095113,831.75,0,Agency,,Invoice,BACS,No,09/02/2023 00:00,2022,11,12759,M5111,Repairs-Admin (BHS),A5191,Agency,W3A05,Current Service Costs - Housing Services,W3A,Current Service Costs adjustment,W3,Current Service Costs,W,Other Operating Income and Expenditure
GUILDFORD BOROUGH COUNCIL,Renovations,1000518,Liquid Recruit Solutions Limited,28/02/2023,30095125,2161.05,0,Contractor Payments,,Invoice,BACS,No,09/02/2023 00:00,2022,11,12757,N40292,Fire protection works,1233,Contractor Payments,XXX99,*** UNASSIGNED ***,WCC,CEC Recharges,WC,CEC Recharges,A,Central Services
GUILDFORD BOROUGH COUNCIL,Renovations,1000518,Liquid Recruit Solutions Limited,14/02/2023,30093469,1982.54,0,Contractor Payments,,Invoice,BACS,No,19/01/2023 00:00,2022,10,12683,N40287,Electrical testing and smoke detectors,1233,Contractor Payments,XXX99,*** UNASSIGNED ***,WCC,CEC Recharges,WC,CEC Recharges,A,Central Services
GUILDFORD BOROUGH COUNCIL,Renovations,1000518,Liquid Recruit Solutions Limited,14/02/2023,30093492,1375,0,Contractor Payments,,Invoice,BACS,No,19/01/2023 00:00,2022,10,12681,N40292,Fire protection works,1233,Contractor Payments,XXX99,*** UNASSIGNED ***,WCC,CEC Recharges,WC,CEC Recharges,A,Central Services
GUILDFORD BOROUGH COUNCIL,HRA Service Delivery,1000518,Liquid Recruit Solutions Limited,14/02/2023,30093513,639.5,0,Agency,,Invoice,BACS,No,19/01/2023 00:00,2022,10,12680,M5111,Repairs-Admin (BHS),A5191,Agency,W3A05,Current Service Costs - Housing Services,W3A,Current Service Costs adjustment,W3,Current Service Costs,W,Other Operating Income and Expenditure
GUILDFORD BOROUGH COUNCIL,Renovations,1000518,Liquid Recruit Solutions Limited,14/02/2023,30093523,704.05,0,Contractor Payments,,Invoice,BACS,No,19/01/2023 00:00,2022,10,12684,N40287,Electrical testing and smoke detectors,1233,Contractor Payments,XXX99,*** UNASSIGNED ***,WCC,CEC Recharges,WC,CEC Recharges,A,Central Services
GUILDFORD BOROUGH COUNCIL,Renovations,1000518,Liquid Recruit Solutions Limited,14/02/2023,30093523,704.05,0,Contractor Payments,,Invoice,BACS,No,19/01/2023 00:00,2022,10,12684,N40292,Fire protection works,1233,Contractor Payments,XXX99,*** UNASSIGNED ***,WCC,CEC Recharges,WC,CEC Recharges,A,Central Services
GUILDFORD BOROUGH COUNCIL,Renovations,1000518,Liquid Recruit Solutions Limited,14/02/2023,30093544,2323.95,0,Contractor Payments,,Invoice,BACS,No,19/01/2023 00:00,2022,10,12685,N40292,Fire protection works,1233,Contractor Payments,XXX99,*** UNASSIGNED ***,WCC,CEC Recharges,WC,CEC Recharges,A,Central Services
GUILDFORD BOROUGH COUNCIL,Housing Services,1000518,Liquid Recruit Solutions Limited,14/02/2023,30093579,1865,0,Agency,,Invoice,BACS,No,19/01/2023 00:00,2022,10,12682,G6525,Housing Surveying Services,A5191,Agency,CEE20,Housing Standards,CEE,Environmental Health (Regulatory Services),CE,Environmental & Regulatory Services,C,"Cultural, Environmental & Planning Services"
GUILDFORD BOROUGH COUNCIL,Housing Services,1000518,Liquid Recruit Solutions Limited,12/01/2023,30090887,1865,0,Agency,,Invoice,BACS,No,14/12/2022 00:00,2022,10,12585,G6525,Housing Surveying Services,A5191,Agency,CEE20,Housing Standards,CEE,Environmental Health (Regulatory Services),CE,Environmental & Regulatory Services,C,"Cultural, Environmental & Planning Services"
GUILDFORD BOROUGH COUNCIL,Renovations,1000518,Liquid Recruit Solutions Limited,14/03/2023,30095469,1375,0,Contractor Payments,,Invoice,BACS,No,15/02/2023 00:00,2022,11,12799,N40292,Fire protection works,1233,Contractor Payments,XXX99,*** UNASSIGNED ***,WCC,CEC Recharges,WC,CEC Recharges,A,Central Services
GUILDFORD BOROUGH COUNCIL,Renovations,1000518,Liquid Recruit Solutions Limited,14/03/2023,30095470,2179.05,0,Contractor Payments,,Invoice,BACS,No,15/02/2023 00:00,2022,11,12795,N40292,Fire protection works,1233,Contractor Payments,XXX99,*** UNASSIGNED ***,WCC,CEC Recharges,WC,CEC Recharges,A,Central Services
GUILDFORD BOROUGH COUNCIL,HRA Service Delivery,1000518,Liquid Recruit Solutions Limited,14/03/2023,30095484,845.48,0,Agency,,Invoice,BACS,No,15/02/2023 00:00,2022,11,12800,M5111,Repairs-Admin (BHS),A5191,Agency,W3A05,Current Service Costs - Housing Services,W3A,Current Service Costs adjustment,W3,Current Service Costs,W,Other Operating Income and Expenditure
GUILDFORD BOROUGH COUNCIL,Renovations,1000518,Liquid Recruit Solutions Limited,14/03/2023,30095491,1978.76,0,Contractor Payments,,Invoice,BACS,No,15/02/2023 00:00,2022,11,12796,N40287,Electrical testing and smoke detectors,1233,Contractor Payments,XXX99,*** UNASSIGNED ***,WCC,CEC Recharges,WC,CEC Recharges,A,Central Services
GUILDFORD BOROUGH COUNCIL,Housing Services,1000518,Liquid Recruit Solutions Limited,14/03/2023,30095504,1119,0,Agency,,Invoice,BACS,No,15/02/2023 00:00,2022,11,12801,G6525,Housing Surveying Services,A5191,Agency,CEE20,Housing Standards,CEE,Environmental Health (Regulatory Services),CE,Environmental & Regulatory Services,C,"Cultural, Environmental & Planning Services"
GUILDFORD BOROUGH COUNCIL,Renovations,1000518,Liquid Recruit Solutions Limited,14/03/2023,30095506,704.05,0,Contractor Payments,,Invoice,BACS,No,15/02/2023 00:00,2022,11,12797,N40287,Electrical testing and smoke detectors,1233,Contractor Payments,XXX99,*** UNASSIGNED ***,WCC,CEC Recharges,WC,CEC Recharges,A,Central Services
GUILDFORD BOROUGH COUNCIL,Renovations,1000518,Liquid Recruit Solutions Limited,14/03/2023,30095506,704.05,0,Contractor Payments,,Invoice,BACS,No,15/02/2023 00:00,2022,11,12797,N40292,Fire protection works,1233,Contractor Payments,XXX99,*** UNASSIGNED ***,WCC,CEC Recharges,WC,CEC Recharges,A,Central Services
GUILDFORD BOROUGH COUNCIL,Renovations,1000518,Liquid Recruit Solutions Limited,14/03/2023,30095507,353.22,0,Contractor Payments,,Invoice,BACS,No,15/02/2023 00:00,2022,11,12798,N40292,Fire protection works,1233,Contractor Payments,XXX99,*** UNASSIGNED ***,WCC,CEC Recharges,WC,CEC Recharges,A,Central Services
GUILDFORD BOROUGH COUNCIL,Doors and Windows,1000518,Liquid Recruit Solutions Limited,14/03/2023,30095507,344,0,Contractor Payments,,Invoice,BACS,No,15/02/2023 00:00,2022,11,12798,N45075,Replacement of windows and doors,1233,Contractor Payments,XXX99,*** UNASSIGNED ***,WCC,CEC Recharges,WC,CEC Recharges,A,Central Services
GUILDFORD BOROUGH COUNCIL,Modern Homes,1000518,Liquid Recruit Solutions Limited,14/03/2023,30095507,857,0,Contractor Payments,,Invoice,BACS,No,15/02/2023 00:00,2022,11,12798,N47034,Pitched roof replacement,1233,Contractor Payments,XXX99,*** UNASSIGNED ***,WCC,CEC Recharges,WC,CEC Recharges,A,Central Services
GUILDFORD BOROUGH COUNCIL,Renovations,1000518,Liquid Recruit Solutions Limited,17/01/2023,30090906,704.05,0,Contractor Payments,,Invoice,BACS,No,14/12/2022 00:00,2022,10,12587,N40287,Electrical testing and smoke detectors,1233,Contractor Payments,XXX99,*** UNASSIGNED ***,WCC,CEC Recharges,WC,CEC Recharges,A,Central Services
GUILDFORD BOROUGH COUNCIL,Renovations,1000518,Liquid Recruit Solutions Limited,17/01/2023,30090906,704.05,0,Contractor Payments,,Invoice,BACS,No,14/12/2022 00:00,2022,10,12587,N40292,Fire protection works,1233,Contractor Payments,XXX99,*** UNASSIGNED ***,WCC,CEC Recharges,WC,CEC Recharges,A,Central Services
GUILDFORD BOROUGH COUNCIL,Renovations,1000518,Liquid Recruit Solutions Limited,17/01/2023,30090914,2170.05,0,Contractor Payments,,Invoice,BACS,No,14/12/2022 00:00,2022,10,12589,N40292,Fire protection works,1233,Contractor Payments,XXX99,*** UNASSIGNED ***,WCC,CEC Recharges,WC,CEC Recharges,A,Central Services
GUILDFORD BOROUGH COUNCIL,Renovations,1000518,Liquid Recruit Solutions Limited,17/01/2023,30090929,1375,0,Contractor Payments,,Invoice,BACS,No,14/12/2022 00:00,2022,10,12588,N40292,Fire protection works,1233,Contractor Payments,XXX99,*** UNASSIGNED ***,WCC,CEC Recharges,WC,CEC Recharges,A,Central Services
GUILDFORD BOROUGH COUNCIL,HRA Service Delivery,1000518,Liquid Recruit Solutions Limited,17/01/2023,30091632,825.86,0,Agency,,Invoice,BACS,No,21/12/2022 00:00,2022,10,12609,M5111,Repairs-Admin (BHS),A5191,Agency,W3A05,Current Service Costs - Housing Services,W3A,Current Service Costs adjustment,W3,Current Service Costs,W,Other Operating Income and Expenditure
GUILDFORD BOROUGH COUNCIL,Renovations,1000518,Liquid Recruit Solutions Limited,17/01/2023,30091603,1375,0,Contractor Payments,,Invoice,BACS,No,21/12/2022 00:00,2022,10,12614,N40292,Fire protection works,1233,Contractor Payments,XXX99,*** UNASSIGNED ***,WCC,CEC Recharges,WC,CEC Recharges,A,Central Services
GUILDFORD BOROUGH COUNCIL,Renovations,1000518,Liquid Recruit Solutions Limited,17/01/2023,30091604,704.05,0,Contractor Payments,,Invoice,BACS,No,21/12/2022 00:00,2022,10,12613,N40287,Electrical testing and smoke detectors,1233,Contractor Payments,XXX99,*** UNASSIGNED ***,WCC,CEC Recharges,WC,CEC Recharges,A,Central Services
GUILDFORD BOROUGH COUNCIL,Renovations,1000518,Liquid Recruit Solutions Limited,17/01/2023,30091604,704.05,0,Contractor Payments,,Invoice,BACS,No,21/12/2022 00:00,2022,10,12613,N40292,Fire protection works,1233,Contractor Payments,XXX99,*** UNASSIGNED ***,WCC,CEC Recharges,WC,CEC Recharges,A,Central Services
GUILDFORD BOROUGH COUNCIL,Renovations,1000518,Liquid Recruit Solutions Limited,17/01/2023,30091650,2163.3,0,Contractor Payments,,Invoice,BACS,No,21/12/2022 00:00,2022,10,12608,N40292,Fire protection works,1233,Contractor Payments,XXX99,*** UNASSIGNED ***,WCC,CEC Recharges,WC,CEC Recharges,A,Central Services
GUILDFORD BOROUGH COUNCIL,Housing Services,1000518,Liquid Recruit Solutions Limited,21/03/2023,30096226,1865,0,Agency,,Invoice,BACS,No,23/02/2023 00:00,2022,11,12815,G6525,Housing Surveying Services,A5191,Agency,CEE20,Housing Standards,CEE,Environmental Health (Regulatory Services),CE,Environmental & Regulatory Services,C,"Cultural, Environmental & Planning Services"
GUILDFORD BOROUGH COUNCIL,Renovations,1000518,Liquid Recruit Solutions Limited,21/03/2023,30096179,1375,0,Contractor Payments,,Invoice,BACS,No,23/02/2023 00:00,2022,11,12813,N40292,Fire protection works,1233,Contractor Payments,XXX99,*** UNASSIGNED ***,WCC,CEC Recharges,WC,CEC Recharges,A,Central Services
GUILDFORD BOROUGH COUNCIL,Renovations,1000518,Liquid Recruit Solutions Limited,21/03/2023,30096180,1966.16,0,Contractor Payments,,Invoice,BACS,No,23/02/2023 00:00,2022,11,12817,N40287,Electrical testing and smoke detectors,1233,Contractor Payments,XXX99,*** UNASSIGNED ***,WCC,CEC Recharges,WC,CEC Recharges,A,Central Services
GUILDFORD BOROUGH COUNCIL,Renovations,1000518,Liquid Recruit Solutions Limited,21/03/2023,30096190,2308.45,0,Contractor Payments,,Invoice,BACS,No,23/02/2023 00:00,2022,11,12816,N40292,Fire protection works,1233,Contractor Payments,XXX99,*** UNASSIGNED ***,WCC,CEC Recharges,WC,CEC Recharges,A,Central Services
GUILDFORD BOROUGH COUNCIL,Renovations,1000518,Liquid Recruit Solutions Limited,21/03/2023,30096200,704.05,0,Contractor Payments,,Invoice,BACS,No,23/02/2023 00:00,2022,11,12818,N40287,Electrical testing and smoke detectors,1233,Contractor Payments,XXX99,*** UNASSIGNED ***,WCC,CEC Recharges,WC,CEC Recharges,A,Central Services
GUILDFORD BOROUGH COUNCIL,Renovations,1000518,Liquid Recruit Solutions Limited,21/03/2023,30096200,704.05,0,Contractor Payments,,Invoice,BACS,No,23/02/2023 00:00,2022,11,12818,N40292,Fire protection works,1233,Contractor Payments,XXX99,*** UNASSIGNED ***,WCC,CEC Recharges,WC,CEC Recharges,A,Central Services
GUILDFORD BOROUGH COUNCIL,Modern Homes,1000518,Liquid Recruit Solutions Limited,21/03/2023,30096249,1572.65,0,Contractor Payments,,Invoice,BACS,No,23/02/2023 00:00,2022,12,12814,N42068,"Kitchen, bathroom and electrical upgrades",1233,Contractor Payments,XXX99,*** UNASSIGNED ***,WCC,CEC Recharges,WC,CEC Recharges,A,Central Services
GUILDFORD BOROUGH COUNCIL,HRA Service Delivery,1000518,Liquid Recruit Solutions Limited,21/03/2023,30096259,825.86,0,Agency,,Invoice,BACS,No,23/02/2023 00:00,2022,11,12812,M5111,Repairs-Admin (BHS),A5191,Agency,W3A05,Current Service Costs - Housing Services,W3A,Current Service Costs adjustment,W3,Current Service Costs,W,Other Operating Income and Expenditure
GUILDFORD BOROUGH COUNCIL,Renovations,1000518,Liquid Recruit Solutions Limited,24/01/2023,30092161,1375,0,Contractor Payments,,Invoice,BACS,No,29/12/2022 00:00,2022,10,12629,N40292,Fire protection works,1233,Contractor Payments,XXX99,*** UNASSIGNED ***,WCC,CEC Recharges,WC,CEC Recharges,A,Central Services
GUILDFORD BOROUGH COUNCIL,Renovations,1000518,Liquid Recruit Solutions Limited,24/01/2023,30092164,704.05,0,Contractor Payments,,Invoice,BACS,No,29/12/2022 00:00,2022,10,12631,N40287,Electrical testing and smoke detectors,1233,Contractor Payments,XXX99,*** UNASSIGNED ***,WCC,CEC Recharges,WC,CEC Recharges,A,Central Services
GUILDFORD BOROUGH COUNCIL,Renovations,1000518,Liquid Recruit Solutions Limited,24/01/2023,30092164,704.05,0,Contractor Payments,,Invoice,BACS,No,29/12/2022 00:00,2022,10,12631,N40292,Fire protection works,1233,Contractor Payments,XXX99,*** UNASSIGNED ***,WCC,CEC Recharges,WC,CEC Recharges,A,Central Services
GUILDFORD BOROUGH COUNCIL,Housing Services,1000518,Liquid Recruit Solutions Limited,24/01/2023,30092176,1865,0,Agency,,Invoice,BACS,No,29/12/2022 00:00,2022,10,12628,G6525,Housing Surveying Services,A5191,Agency,CEE20,Housing Standards,CEE,Environmental Health (Regulatory Services),CE,Environmental & Regulatory Services,C,"Cultural, Environmental & Planning Services"
GUILDFORD BOROUGH COUNCIL,Renovations,1000518,Liquid Recruit Solutions Limited,24/01/2023,30092177,2166,0,Contractor Payments,,Invoice,BACS,No,29/12/2022 00:00,2022,10,12632,N40292,Fire protection works,1233,Contractor Payments,XXX99,*** UNASSIGNED ***,WCC,CEC Recharges,WC,CEC Recharges,A,Central Services
GUILDFORD BOROUGH COUNCIL,Renovations,1000518,Liquid Recruit Solutions Limited,24/01/2023,30092179,1974.98,0,Contractor Payments,,Invoice,BACS,No,29/12/2022 00:00,2022,10,12630,N40287,Electrical testing and smoke detectors,1233,Contractor Payments,XXX99,*** UNASSIGNED ***,WCC,CEC Recharges,WC,CEC Recharges,A,Central Services
GUILDFORD BOROUGH COUNCIL,HRA Service Delivery,1000518,Liquid Recruit Solutions Limited,24/01/2023,30092167,808.21,0,Agency,,Invoice,BACS,No,29/12/2022 00:00,2022,10,12626,M5111,Repairs-Admin (BHS),A5191,Agency,W3A05,Current Service Costs - Housing Services,W3A,Current Service Costs adjustment,W3,Current Service Costs,W,Other Operating Income and Expenditure
GUILDFORD BOROUGH COUNCIL,Renovations,1000518,Liquid Recruit Solutions Limited,24/01/2023,30092183,306.54,0,Contractor Payments,,Invoice,BACS,No,29/12/2022 00:00,2022,10,12627,N40292,Fire protection works,1233,Contractor Payments,XXX99,*** UNASSIGNED ***,WCC,CEC Recharges,WC,CEC Recharges,A,Central Services
GUILDFORD BOROUGH COUNCIL,Doors and Windows,1000518,Liquid Recruit Solutions Limited,24/01/2023,30092183,306.54,0,Contractor Payments,,Invoice,BACS,No,29/12/2022 00:00,2022,10,12627,N45075,Replacement of windows and doors,1233,Contractor Payments,XXX99,*** UNASSIGNED ***,WCC,CEC Recharges,WC,CEC Recharges,A,Central Services
GUILDFORD BOROUGH COUNCIL,Modern Homes,1000518,Liquid Recruit Solutions Limited,24/01/2023,30092183,766.35,0,Contractor Payments,,Invoice,BACS,No,29/12/2022 00:00,2022,10,12627,N42068,"Kitchen, bathroom and electrical upgrades",1233,Contractor Payments,XXX99,*** UNASSIGNED ***,WCC,CEC Recharges,WC,CEC Recharges,A,Central Services
GUILDFORD BOROUGH COUNCIL,Renovations,1000518,Liquid Recruit Solutions Limited,07/02/2023,30092994,1540,0,Contractor Payments,,Invoice,BACS,No,12/01/2023 00:00,2022,10,12672,N40287,Electrical testing and smoke detectors,1233,Contractor Payments,XXX99,*** UNASSIGNED ***,WCC,CEC Recharges,WC,CEC Recharges,A,Central Services
GUILDFORD BOROUGH COUNCIL,Renovations,1000518,Liquid Recruit Solutions Limited,07/02/2023,30092996,1100,0,Contractor Payments,,Invoice,BACS,No,12/01/2023 00:00,2022,10,12674,N40292,Fire protection works,1233,Contractor Payments,XXX99,*** UNASSIGNED ***,WCC,CEC Recharges,WC,CEC Recharges,A,Central Services
GUILDFORD BOROUGH COUNCIL,Renovations,1000518,Liquid Recruit Solutions Limited,07/02/2023,30092998,704.05,0,Contractor Payments,,Invoice,BACS,No,12/01/2023 00:00,2022,10,12675,N40287,Electrical testing and smoke detectors,1233,Contractor Payments,XXX99,*** UNASSIGNED ***,WCC,CEC Recharges,WC,CEC Recharges,A,Central Services
GUILDFORD BOROUGH COUNCIL,Renovations,1000518,Liquid Recruit Solutions Limited,07/02/2023,30092998,704.05,0,Contractor Payments,,Invoice,BACS,No,12/01/2023 00:00,2022,10,12675,N40292,Fire protection works,1233,Contractor Payments,XXX99,*** UNASSIGNED ***,WCC,CEC Recharges,WC,CEC Recharges,A,Central Services
GUILDFORD BOROUGH COUNCIL,Renovations,1000518,Liquid Recruit Solutions Limited,07/02/2023,30093000,1650,0,Contractor Payments,,Invoice,BACS,No,12/01/2023 00:00,2022,10,12673,N40292,Fire protection works,1233,Contractor Payments,XXX99,*** UNASSIGNED ***,WCC,CEC Recharges,WC,CEC Recharges,A,Central Services
GUILDFORD BOROUGH COUNCIL,Renovations,1000518,Liquid Recruit Solutions Limited,07/02/2023,30093008,302.5,0,Contractor Payments,,Invoice,BACS,No,12/01/2023 00:00,2022,10,12670,N40292,Fire protection works,1233,Contractor Payments,XXX99,*** UNASSIGNED ***,WCC,CEC Recharges,WC,CEC Recharges,A,Central Services
GUILDFORD BOROUGH COUNCIL,Doors and Windows,1000518,Liquid Recruit Solutions Limited,07/02/2023,30093008,302.5,0,Contractor Payments,,Invoice,BACS,No,12/01/2023 00:00,2022,10,12670,N45075,Replacement of windows and doors,1233,Contractor Payments,XXX99,*** UNASSIGNED ***,WCC,CEC Recharges,WC,CEC Recharges,A,Central Services
GUILDFORD BOROUGH COUNCIL,Modern Homes,1000518,Liquid Recruit Solutions Limited,07/02/2023,30093008,756.25,0,Contractor Payments,,Invoice,BACS,No,12/01/2023 00:00,2022,10,12670,N42068,"Kitchen, bathroom and electrical upgrades",1233,Contractor Payments,XXX99,*** UNASSIGNED ***,WCC,CEC Recharges,WC,CEC Recharges,A,Central Services
GUILDFORD BOROUGH COUNCIL,Housing Services,1000518,Liquid Recruit Solutions Limited,07/02/2023,30093018,1492,0,Agency,,Invoice,BACS,No,12/01/2023 00:00,2022,10,12671,G6525,Housing Surveying Services,A5191,Agency,CEE20,Housing Standards,CEE,Environmental Health (Regulatory Services),CE,Environmental & Regulatory Services,C,"Cultural, Environmental & Planning Services"
GUILDFORD BOROUGH COUNCIL,HRA Service Delivery,1000518,Liquid Recruit Solutions Limited,07/02/2023,30093021,645.39,0,Agency,,Invoice,BACS,No,12/01/2023 00:00,2022,10,12676,M5111,Repairs-Admin (BHS),A5191,Agency,W3A05,Current Service Costs - Housing Services,W3A,Current Service Costs adjustment,W3,Current Service Costs,W,Other Operating Income and Expenditure
GUILDFORD BOROUGH COUNCIL,HRA Service Delivery,1000518,Liquid Recruit Solutions Limited,31/01/2023,30092474,468.84,0,Agency,,Invoice,BACS,No,04/01/2023 00:00,2022,10,12651,M5111,Repairs-Admin (BHS),A5191,Agency,W3A05,Current Service Costs - Housing Services,W3A,Current Service Costs adjustment,W3,Current Service Costs,W,Other Operating Income and Expenditure
GUILDFORD BOROUGH COUNCIL,Modern Homes,1000518,Liquid Recruit Solutions Limited,31/01/2023,30092484,302.5,0,Contractor Payments,,Invoice,BACS,No,04/01/2023 00:00,2022,10,12649,N42068,"Kitchen, bathroom and electrical upgrades",1233,Contractor Payments,XXX99,*** UNASSIGNED ***,WCC,CEC Recharges,WC,CEC Recharges,A,Central Services
GUILDFORD BOROUGH COUNCIL,Housing Services,1000518,Liquid Recruit Solutions Limited,31/01/2023,30092485,1119,0,Agency,,Invoice,BACS,No,04/01/2023 00:00,2022,10,12650,G6525,Housing Surveying Services,A5191,Agency,CEE20,Housing Standards,CEE,Environmental Health (Regulatory Services),CE,Environmental & Regulatory Services,C,"Cultural, Environmental & Planning Services"
GUILDFORD BOROUGH COUNCIL,Renovations,1000518,Liquid Recruit Solutions Limited,31/01/2023,30092464,550,0,Contractor Payments,,Invoice,BACS,No,04/01/2023 00:00,2022,10,12653,N40292,Fire protection works,1233,Contractor Payments,XXX99,*** UNASSIGNED ***,WCC,CEC Recharges,WC,CEC Recharges,A,Central Services
GUILDFORD BOROUGH COUNCIL,Renovations,1000518,Liquid Recruit Solutions Limited,31/01/2023,30092465,1237.5,0,Contractor Payments,,Invoice,BACS,No,04/01/2023 00:00,2022,10,12652,N40292,Fire protection works,1233,Contractor Payments,XXX99,*** UNASSIGNED ***,WCC,CEC Recharges,WC,CEC Recharges,A,Central Services
GUILDFORD BOROUGH COUNCIL,Renovations,1000518,Liquid Recruit Solutions Limited,31/01/2023,30092469,281.62,0,Contractor Payments,,Invoice,BACS,No,04/01/2023 00:00,2022,10,12654,N40287,Electrical testing and smoke detectors,1233,Contractor Payments,XXX99,*** UNASSIGNED ***,WCC,CEC Recharges,WC,CEC Recharges,A,Central Services
GUILDFORD BOROUGH COUNCIL,Renovations,1000518,Liquid Recruit Solutions Limited,31/01/2023,30092469,281.62,0,Contractor Payments,,Invoice,BACS,No,04/01/2023 00:00,2022,10,12654,N40292,Fire protection works,1233,Contractor Payments,XXX99,*** UNASSIGNED ***,WCC,CEC Recharges,WC,CEC Recharges,A,Central Services
GUILDFORD BOROUGH COUNCIL,Renovations,1000518,Liquid Recruit Solutions Limited,31/01/2023,30093026,1155,0,Contractor Payments,,Invoice,BACS,No,04/01/2023 00:00,2022,10,12655,N40287,Electrical testing and smoke detectors,1233,Contractor Payments,XXX99,*** UNASSIGNED ***,WCC,CEC Recharges,WC,CEC Recharges,A,Central Services
GUILDFORD BOROUGH COUNCIL,Renovations,1000518,Liquid Recruit Solutions Limited,21/02/2023,30093840,1974.98,0,Contractor Payments,,Invoice,BACS,No,25/01/2023 00:00,2022,10,12725,N40287,Electrical testing and smoke detectors,1233,Contractor Payments,XXX99,*** UNASSIGNED ***,WCC,CEC Recharges,WC,CEC Recharges,A,Central Services
GUILDFORD BOROUGH COUNCIL,Renovations,1000518,Liquid Recruit Solutions Limited,21/02/2023,30093820,2166.9,0,Contractor Payments,,Invoice,BACS,No,25/01/2023 00:00,2022,10,12724,N40292,Fire protection works,1233,Contractor Payments,XXX99,*** UNASSIGNED ***,WCC,CEC Recharges,WC,CEC Recharges,A,Central Services
GUILDFORD BOROUGH COUNCIL,HRA Service Delivery,1000518,Liquid Recruit Solutions Limited,21/02/2023,30093824,808.21,0,Agency,,Invoice,BACS,No,25/01/2023 00:00,2022,10,12723,M5111,Repairs-Admin (BHS),A5191,Agency,W3A05,Current Service Costs - Housing Services,W3A,Current Service Costs adjustment,W3,Current Service Costs,W,Other Operating Income and Expenditure
GUILDFORD BOROUGH COUNCIL,Renovations,1000518,Liquid Recruit Solutions Limited,21/02/2023,30093825,1375,0,Contractor Payments,,Invoice,BACS,No,25/01/2023 00:00,2022,10,12721,N40292,Fire protection works,1233,Contractor Payments,XXX99,*** UNASSIGNED ***,WCC,CEC Recharges,WC,CEC Recharges,A,Central Services
GUILDFORD BOROUGH COUNCIL,Renovations,1000518,Liquid Recruit Solutions Limited,21/02/2023,30093828,704.05,0,Contractor Payments,,Invoice,BACS,No,25/01/2023 00:00,2022,10,12719,N40287,Electrical testing and smoke detectors,1233,Contractor Payments,XXX99,*** UNASSIGNED ***,WCC,CEC Recharges,WC,CEC Recharges,A,Central Services
GUILDFORD BOROUGH COUNCIL,Renovations,1000518,Liquid Recruit Solutions Limited,21/02/2023,30093828,704.05,0,Contractor Payments,,Invoice,BACS,No,25/01/2023 00:00,2022,10,12719,N40292,Fire protection works,1233,Contractor Payments,XXX99,*** UNASSIGNED ***,WCC,CEC Recharges,WC,CEC Recharges,A,Central Services
GUILDFORD BOROUGH COUNCIL,Housing Services,1000518,Liquid Recruit Solutions Limited,21/02/2023,30093830,1865,0,Agency,,Invoice,BACS,No,25/01/2023 00:00,2022,10,12722,G6525,Housing Surveying Services,A5191,Agency,CEE20,Housing Standards,CEE,Environmental Health (Regulatory Services),CE,Environmental & Regulatory Services,C,"Cultural, Environmental & Planning Services"
GUILDFORD BOROUGH COUNCIL,Renovations,1000518,Liquid Recruit Solutions Limited,21/02/2023,30095620,1236.77,0,Contractor Payments,,Invoice,BACS,No,25/01/2023 00:00,2022,11,12720,N40292,Fire protection works,1233,Contractor Payments,XXX99,*** UNASSIGNED ***,WCC,CEC Recharges,WC,CEC Recharges,A,Central Services
GUILDFORD BOROUGH COUNCIL,Doors and Windows,1000518,Liquid Recruit Solutions Limited,21/02/2023,30095620,333,0,Contractor Payments,,Invoice,BACS,No,25/01/2023 00:00,2022,11,12720,N45075,Replacement of windows and doors,1233,Contractor Payments,XXX99,*** UNASSIGNED ***,WCC,CEC Recharges,WC,CEC Recharges,A,Central Services
GUILDFORD BOROUGH COUNCIL,Renovations,1000518,Liquid Recruit Solutions Limited,21/02/2023,30095627,1509.94,0,Contractor Payments,,Invoice,BACS,No,19/01/2023 00:00,2022,11,12686,N40292,Fire protection works,1233,Contractor Payments,XXX99,*** UNASSIGNED ***,WCC,CEC Recharges,WC,CEC Recharges,A,Central Services
GUILDFORD BOROUGH COUNCIL,Renovations,1000518,Liquid Recruit Solutions Limited,30/03/2023,30098609,1925,0,Contractor Payments,,Invoice,BACS,No,23/03/2023 00:00,2022,12,12925,N40287,Electrical testing and smoke detectors,1233,Contractor Payments,XXX99,*** UNASSIGNED ***,WCC,CEC Recharges,WC,CEC Recharges,A,Central Services
GUILDFORD BOROUGH COUNCIL,Renovations,1000518,Liquid Recruit Solutions Limited,30/03/2023,30098573,704.05,0,Contractor Payments,,Invoice,BACS,No,23/03/2023 00:00,2022,12,12923,N40287,Electrical testing and smoke detectors,1233,Contractor Payments,XXX99,*** UNASSIGNED ***,WCC,CEC Recharges,WC,CEC Recharges,A,Central Services
GUILDFORD BOROUGH COUNCIL,Renovations,1000518,Liquid Recruit Solutions Limited,30/03/2023,30098573,704.05,0,Contractor Payments,,Invoice,BACS,No,23/03/2023 00:00,2022,12,12923,N40292,Fire protection works,1233,Contractor Payments,XXX99,*** UNASSIGNED ***,WCC,CEC Recharges,WC,CEC Recharges,A,Central Services
GUILDFORD BOROUGH COUNCIL,Housing Services,1000518,Liquid Recruit Solutions Limited,30/03/2023,30098557,1865,0,Agency,,Invoice,BACS,No,23/03/2023 00:00,2022,12,12924,G6525,Housing Surveying Services,A5191,Agency,CEE20,Housing Standards,CEE,Environmental Health (Regulatory Services),CE,Environmental & Regulatory Services,C,"Cultural, Environmental & Planning Services"
GUILDFORD BOROUGH COUNCIL,Modern Homes,1000518,Liquid Recruit Solutions Limited,30/03/2023,30098045,1577.36,0,Contractor Payments,,Invoice,BACS,No,16/03/2023 00:00,2022,12,12899,N42068,"Kitchen, bathroom and electrical upgrades",1233,Contractor Payments,XXX99,*** UNASSIGNED ***,WCC,CEC Recharges,WC,CEC Recharges,A,Central Services
GUILDFORD BOROUGH COUNCIL,Renovations,1000518,Liquid Recruit Solutions Limited,30/03/2023,30097301,2298.1,0,Contractor Payments,,Invoice,BACS,No,08/03/2023 00:00,2022,12,12874,N40292,Fire protection works,1233,Contractor Payments,XXX99,*** UNASSIGNED ***,WCC,CEC Recharges,WC,CEC Recharges,A,Central Services
GUILDFORD BOROUGH COUNCIL,HRA Service Delivery,1000518,Liquid Recruit Solutions Limited,30/03/2023,30097315,825.86,0,Agency,,Invoice,BACS,No,08/03/2023 00:00,2022,12,12871,M5111,Repairs-Admin (BHS),A5191,Agency,W3A05,Current Service Costs - Housing Services,W3A,Current Service Costs adjustment,W3,Current Service Costs,W,Other Operating Income and Expenditure
GUILDFORD BOROUGH COUNCIL,Renovations,1000518,Liquid Recruit Solutions Limited,30/03/2023,30097317,1982.54,0,Contractor Payments,,Invoice,BACS,No,08/03/2023 00:00,2022,12,12875,N40287,Electrical testing and smoke detectors,1233,Contractor Payments,XXX99,*** UNASSIGNED ***,WCC,CEC Recharges,WC,CEC Recharges,A,Central Services
GUILDFORD BOROUGH COUNCIL,Modern Homes,1000518,Liquid Recruit Solutions Limited,30/03/2023,30097338,1576.67,0,Contractor Payments,,Invoice,BACS,No,08/03/2023 00:00,2022,12,12872,N42068,"Kitchen, bathroom and electrical upgrades",1233,Contractor Payments,XXX99,*** UNASSIGNED ***,WCC,CEC Recharges,WC,CEC Recharges,A,Central Services
GUILDFORD BOROUGH COUNCIL,Housing Services,1000518,Liquid Recruit Solutions Limited,30/03/2023,30097203,1678.5,0,Agency,,Invoice,BACS,No,08/03/2023 00:00,2022,12,12873,G6525,Housing Surveying Services,A5191,Agency,CEE20,Housing Standards,CEE,Environmental Health (Regulatory Services),CE,Environmental & Regulatory Services,C,"Cultural, Environmental & Planning Services"
GUILDFORD BOROUGH COUNCIL,Renovations,1000518,Liquid Recruit Solutions Limited,30/03/2023,30097214,704.05,0,Contractor Payments,,Invoice,BACS,No,08/03/2023 00:00,2022,12,12870,N40287,Electrical testing and smoke detectors,1233,Contractor Payments,XXX99,*** UNASSIGNED ***,WCC,CEC Recharges,WC,CEC Recharges,A,Central Services
GUILDFORD BOROUGH COUNCIL,Renovations,1000518,Liquid Recruit Solutions Limited,30/03/2023,30097214,704.05,0,Contractor Payments,,Invoice,BACS,No,08/03/2023 00:00,2022,12,12870,N40292,Fire protection works,1233,Contractor Payments,XXX99,*** UNASSIGNED ***,WCC,CEC Recharges,WC,CEC Recharges,A,Central Services
GUILDFORD BOROUGH COUNCIL,Housing Services,1000518,Liquid Recruit Solutions Limited,30/03/2023,30097777,1865,0,Agency,,Invoice,BACS,No,16/03/2023 00:00,2022,12,12900,G6525,Housing Surveying Services,A5191,Agency,CEE20,Housing Standards,CEE,Environmental Health (Regulatory Services),CE,Environmental & Regulatory Services,C,"Cultural, Environmental & Planning Services"
GUILDFORD BOROUGH COUNCIL,Renovations,1000518,Liquid Recruit Solutions Limited,30/03/2023,30097772,1976.24,0,Contractor Payments,,Invoice,BACS,No,16/03/2023 00:00,2022,12,12895,N40287,Electrical testing and smoke detectors,1233,Contractor Payments,XXX99,*** UNASSIGNED ***,WCC,CEC Recharges,WC,CEC Recharges,A,Central Services
GUILDFORD BOROUGH COUNCIL,Renovations,1000518,Liquid Recruit Solutions Limited,30/03/2023,30097812,2239.6,0,Contractor Payments,,Invoice,BACS,No,16/03/2023 00:00,2022,12,12896,N40292,Fire protection works,1233,Contractor Payments,XXX99,*** UNASSIGNED ***,WCC,CEC Recharges,WC,CEC Recharges,A,Central Services
GUILDFORD BOROUGH COUNCIL,Renovations,1000518,Liquid Recruit Solutions Limited,30/03/2023,30097809,704.05,0,Contractor Payments,,Invoice,BACS,No,16/03/2023 00:00,2022,12,12898,N40287,Electrical testing and smoke detectors,1233,Contractor Payments,XXX99,*** UNASSIGNED ***,WCC,CEC Recharges,WC,CEC Recharges,A,Central Services
GUILDFORD BOROUGH COUNCIL,Renovations,1000518,Liquid Recruit Solutions Limited,30/03/2023,30097809,704.05,0,Contractor Payments,,Invoice,BACS,No,16/03/2023 00:00,2022,12,12898,N40292,Fire protection works,1233,Contractor Payments,XXX99,*** UNASSIGNED ***,WCC,CEC Recharges,WC,CEC Recharges,A,Central Services
GUILDFORD BOROUGH COUNCIL,HRA Service Delivery,1000518,Liquid Recruit Solutions Limited,30/03/2023,30098021,674.81,0,Agency,,Invoice,BACS,No,16/03/2023 00:00,2022,12,12897,M5111,Repairs-Admin (BHS),A5191,Agency,W3A05,Current Service Costs - Housing Services,W3A,Current Service Costs adjustment,W3,Current Service Costs,W,Other Operating Income and Expenditure
GUILDFORD BOROUGH COUNCIL,Doors and Windows,1000518,Liquid Recruit Solutions Limited,30/03/2023,30098695,1212,0,Contractor Payments,,Invoice,BACS,No,23/03/2023 00:00,2022,12,12922,N45075,Replacement of windows and doors,1233,Contractor Payments,XXX99,*** UNASSIGNED ***,WCC,CEC Recharges,WC,CEC Recharges,A,Central Services
GUILDFORD BOROUGH COUNCIL,Renovations,1000518,Liquid Recruit Solutions Limited,30/03/2023,30098709,2291.35,0,Contractor Payments,,Invoice,BACS,No,23/03/2023 00:00,2022,12,12926,N40292,Fire protection works,1233,Contractor Payments,XXX99,*** UNASSIGNED ***,WCC,CEC Recharges,WC,CEC Recharges,A,Central Services
GUILDFORD BOROUGH COUNCIL,Renovations,1000518,Liquid Recruit Solutions Limited,10/01/2023,30092165,302.5,0,Contractor Payments,,Invoice,BACS,No,23/11/2022 00:00,2022,10,12509,N40292,Fire protection works,1233,Contractor Payments,XXX99,*** UNASSIGNED ***,WCC,CEC Recharges,WC,CEC Recharges,A,Central Services
GUILDFORD BOROUGH COUNCIL,Doors and Windows,1000518,Liquid Recruit Solutions Limited,10/01/2023,30092165,302.5,0,Contractor Payments,,Invoice,BACS,No,23/11/2022 00:00,2022,10,12509,N45075,Replacement of windows and doors,1233,Contractor Payments,XXX99,*** UNASSIGNED ***,WCC,CEC Recharges,WC,CEC Recharges,A,Central Services
GUILDFORD BOROUGH COUNCIL,Modern Homes,1000518,Liquid Recruit Solutions Limited,10/01/2023,30092165,756.25,0,Contractor Payments,,Invoice,BACS,No,23/11/2022 00:00,2022,10,12509,N42068,"Kitchen, bathroom and electrical upgrades",1233,Contractor Payments,XXX99,*** UNASSIGNED ***,WCC,CEC Recharges,WC,CEC Recharges,A,Central Services
GUILDFORD BOROUGH COUNCIL,HRA Service Delivery,1000518,Liquid Recruit Solutions Limited,10/01/2023,30090902,863.13,0,Agency,,Invoice,BACS,No,14/12/2022 00:00,2022,10,12590,M5111,Repairs-Admin (BHS),A5191,Agency,W3A05,Current Service Costs - Housing Services,W3A,Current Service Costs adjustment,W3,Current Service Costs,W,Other Operating Income and Expenditure
GUILDFORD BOROUGH COUNCIL,Modern Homes,1000518,Liquid Recruit Solutions Limited,28/03/2023,30096630,1580.37,0,Contractor Payments,,Invoice,BACS,No,02/03/2023 00:00,2022,12,12849,N42068,"Kitchen, bathroom and electrical upgrades",1233,Contractor Payments,XXX99,*** UNASSIGNED ***,WCC,CEC Recharges,WC,CEC Recharges,A,Central Services
GUILDFORD BOROUGH COUNCIL,Renovations,1000518,Liquid Recruit Solutions Limited,28/03/2023,30096713,2303.95,0,Contractor Payments,,Invoice,BACS,No,02/03/2023 00:00,2022,12,12852,N40292,Fire protection works,1233,Contractor Payments,XXX99,*** UNASSIGNED ***,WCC,CEC Recharges,WC,CEC Recharges,A,Central Services
GUILDFORD BOROUGH COUNCIL,Housing Services,1000518,Liquid Recruit Solutions Limited,28/03/2023,30096798,1865,0,Agency,,Invoice,BACS,No,02/03/2023 00:00,2022,12,12853,G6525,Housing Surveying Services,A5191,Agency,CEE20,Housing Standards,CEE,Environmental Health (Regulatory Services),CE,Environmental & Regulatory Services,C,"Cultural, Environmental & Planning Services"
GUILDFORD BOROUGH COUNCIL,HRA Service Delivery,1000518,Liquid Recruit Solutions Limited,28/03/2023,30096830,814.09,0,Agency,,Invoice,BACS,No,02/03/2023 00:00,2022,12,12851,M5111,Repairs-Admin (BHS),A5191,Agency,W3A05,Current Service Costs - Housing Services,W3A,Current Service Costs adjustment,W3,Current Service Costs,W,Other Operating Income and Expenditure
GUILDFORD BOROUGH COUNCIL,Renovations,1000518,Liquid Recruit Solutions Limited,28/03/2023,30096779,2029.16,0,Contractor Payments,,Invoice,BACS,No,02/03/2023 00:00,2022,12,12848,N40287,Electrical testing and smoke detectors,1233,Contractor Payments,XXX99,*** UNASSIGNED ***,WCC,CEC Recharges,WC,CEC Recharges,A,Central Services
GUILDFORD BOROUGH COUNCIL,Renovations,1000518,Liquid Recruit Solutions Limited,28/03/2023,30096789,704.05,0,Contractor Payments,,Invoice,BACS,No,02/03/2023 00:00,2022,12,12850,N40287,Electrical testing and smoke detectors,1233,Contractor Payments,XXX99,*** UNASSIGNED ***,WCC,CEC Recharges,WC,CEC Recharges,A,Central Services
GUILDFORD BOROUGH COUNCIL,Renovations,1000518,Liquid Recruit Solutions Limited,28/03/2023,30096789,704.05,0,Contractor Payments,,Invoice,BACS,No,02/03/2023 00:00,2022,12,12850,N40292,Fire protection works,1233,Contractor Payments,XXX99,*** UNASSIGNED ***,WCC,CEC Recharges,WC,CEC Recharges,A,Central Services
GUILDFORD BOROUGH COUNCIL,Environmental Services,1000545,Metro Rod Ltd,30/03/2023,30098770,425,0,Grounds Maintenance,,Invoice,BACS,No,24/03/2023 00:00,2022,12,621490,A1300,Trees And Countryside,B6001,Grounds Maintenance,CCE00,Community Parks & Open Spaces,CCE,Open Spaces,CC,Cultural & Related Services,C,"Cultural, Environmental & Planning Services"
GUILDFORD BOROUGH COUNCIL,Environmental Services,1000545,Metro Rod Ltd,07/02/2023,30093067,425,0,Grounds Maintenance,,Invoice,BACS,No,13/01/2023 00:00,2022,10,579479,A1300,Trees And Countryside,B6001,Grounds Maintenance,CCE00,Community Parks & Open Spaces,CCE,Open Spaces,CC,Cultural & Related Services,C,"Cultural, Environmental & Planning Services"
GUILDFORD BOROUGH COUNCIL,Renovations,1000554,Seville Developments,07/02/2023,30094889,1532.16,0,Contractor Payments,,Invoice,BACS,No,24/01/2023 00:00,2022,11,6419,N40287,Electrical testing and smoke detectors,1233,Contractor Payments,XXX99,*** UNASSIGNED ***,WCC,CEC Recharges,WC,CEC Recharges,A,Central Services
GUILDFORD BOROUGH COUNCIL,Renovations,1000554,Seville Developments,07/02/2023,30094889,1699.74,0,Contractor Payments,,Invoice,BACS,No,24/01/2023 00:00,2022,11,6419,N40287,Electrical testing and smoke detectors,1233,Contractor Payments,XXX99,*** UNASSIGNED ***,WCC,CEC Recharges,WC,CEC Recharges,A,Central Services
GUILDFORD BOROUGH COUNCIL,Renovations,1000554,Seville Developments,07/02/2023,30094889,1182.22,0,Contractor Payments,,Invoice,BACS,No,24/01/2023 00:00,2022,11,6419,N40287,Electrical testing and smoke detectors,1233,Contractor Payments,XXX99,*** UNASSIGNED ***,WCC,CEC Recharges,WC,CEC Recharges,A,Central Services
GUILDFORD BOROUGH COUNCIL,Renovations,1000554,Seville Developments,07/02/2023,30094889,612.4,0,Contractor Payments,,Invoice,BACS,No,24/01/2023 00:00,2022,11,6419,N40287,Electrical testing and smoke detectors,1233,Contractor Payments,XXX99,*** UNASSIGNED ***,WCC,CEC Recharges,WC,CEC Recharges,A,Central Services
GUILDFORD BOROUGH COUNCIL,Renovations,1000554,Seville Developments,07/02/2023,30094889,890.63,0,Contractor Payments,,Invoice,BACS,No,24/01/2023 00:00,2022,11,6419,N40287,Electrical testing and smoke detectors,1233,Contractor Payments,XXX99,*** UNASSIGNED ***,WCC,CEC Recharges,WC,CEC Recharges,A,Central Services
GUILDFORD BOROUGH COUNCIL,Renovations,1000554,Seville Developments,07/02/2023,30094889,1715.4,0,Contractor Payments,,Invoice,BACS,No,24/01/2023 00:00,2022,11,6419,N40287,Electrical testing and smoke detectors,1233,Contractor Payments,XXX99,*** UNASSIGNED ***,WCC,CEC Recharges,WC,CEC Recharges,A,Central Services
GUILDFORD BOROUGH COUNCIL,Renovations,1000554,Seville Developments,07/02/2023,30094889,1332.17,0,Contractor Payments,,Invoice,BACS,No,24/01/2023 00:00,2022,11,6419,N40287,Electrical testing and smoke detectors,1233,Contractor Payments,XXX99,*** UNASSIGNED ***,WCC,CEC Recharges,WC,CEC Recharges,A,Central Services
GUILDFORD BOROUGH COUNCIL,Renovations,1000554,Seville Developments,07/02/2023,30094889,315.77,0,Contractor Payments,,Invoice,BACS,No,24/01/2023 00:00,2022,11,6419,N40287,Electrical testing and smoke detectors,1233,Contractor Payments,XXX99,*** UNASSIGNED ***,WCC,CEC Recharges,WC,CEC Recharges,A,Central Services
GUILDFORD BOROUGH COUNCIL,Renovations,1000554,Seville Developments,07/02/2023,30094889,1180.78,0,Contractor Payments,,Invoice,BACS,No,24/01/2023 00:00,2022,11,6419,N40287,Electrical testing and smoke detectors,1233,Contractor Payments,XXX99,*** UNASSIGNED ***,WCC,CEC Recharges,WC,CEC Recharges,A,Central Services
GUILDFORD BOROUGH COUNCIL,Renovations,1000554,Seville Developments,07/02/2023,30094889,612.27,0,Contractor Payments,,Invoice,BACS,No,24/01/2023 00:00,2022,11,6419,N40287,Electrical testing and smoke detectors,1233,Contractor Payments,XXX99,*** UNASSIGNED ***,WCC,CEC Recharges,WC,CEC Recharges,A,Central Services
GUILDFORD BOROUGH COUNCIL,Renovations,1000554,Seville Developments,07/02/2023,30094889,914.72,0,Contractor Payments,,Invoice,BACS,No,24/01/2023 00:00,2022,11,6419,N40287,Electrical testing and smoke detectors,1233,Contractor Payments,XXX99,*** UNASSIGNED ***,WCC,CEC Recharges,WC,CEC Recharges,A,Central Services
GUILDFORD BOROUGH COUNCIL,Renovations,1000554,Seville Developments,07/02/2023,30094889,1170.46,0,Contractor Payments,,Invoice,BACS,No,24/01/2023 00:00,2022,11,6419,N40287,Electrical testing and smoke detectors,1233,Contractor Payments,XXX99,*** UNASSIGNED ***,WCC,CEC Recharges,WC,CEC Recharges,A,Central Services
GUILDFORD BOROUGH COUNCIL,Renovations,1000554,Seville Developments,07/02/2023,30094889,1298.56,0,Contractor Payments,,Invoice,BACS,No,24/01/2023 00:00,2022,11,6419,N40287,Electrical testing and smoke detectors,1233,Contractor Payments,XXX99,*** UNASSIGNED ***,WCC,CEC Recharges,WC,CEC Recharges,A,Central Services
GUILDFORD BOROUGH COUNCIL,Renovations,1000554,Seville Developments,07/02/2023,30094889,1100.6,0,Contractor Payments,,Invoice,BACS,No,24/01/2023 00:00,2022,11,6419,N40287,Electrical testing and smoke detectors,1233,Contractor Payments,XXX99,*** UNASSIGNED ***,WCC,CEC Recharges,WC,CEC Recharges,A,Central Services
GUILDFORD BOROUGH COUNCIL,Renovations,1000554,Seville Developments,07/02/2023,30094889,1052.32,0,Contractor Payments,,Invoice,BACS,No,24/01/2023 00:00,2022,11,6419,N40287,Electrical testing and smoke detectors,1233,Contractor Payments,XXX99,*** UNASSIGNED ***,WCC,CEC Recharges,WC,CEC Recharges,A,Central Services
GUILDFORD BOROUGH COUNCIL,Renovations,1000554,Seville Developments,07/02/2023,30094889,1018.43,0,Contractor Payments,,Invoice,BACS,No,24/01/2023 00:00,2022,11,6419,N40287,Electrical testing and smoke detectors,1233,Contractor Payments,XXX99,*** UNASSIGNED ***,WCC,CEC Recharges,WC,CEC Recharges,A,Central Services
GUILDFORD BOROUGH COUNCIL,Renovations,1000554,Seville Developments,07/02/2023,30094889,931.31,0,Contractor Payments,,Invoice,BACS,No,24/01/2023 00:00,2022,11,6419,N40287,Electrical testing and smoke detectors,1233,Contractor Payments,XXX99,*** UNASSIGNED ***,WCC,CEC Recharges,WC,CEC Recharges,A,Central Services
GUILDFORD BOROUGH COUNCIL,Renovations,1000554,Seville Developments,07/02/2023,30094889,1642.23,0,Contractor Payments,,Invoice,BACS,No,24/01/2023 00:00,2022,11,6419,N40287,Electrical testing and smoke detectors,1233,Contractor Payments,XXX99,*** UNASSIGNED ***,WCC,CEC Recharges,WC,CEC Recharges,A,Central Services
GUILDFORD BOROUGH COUNCIL,Renovations,1000554,Seville Developments,07/02/2023,30094889,1204.25,0,Contractor Payments,,Invoice,BACS,No,24/01/2023 00:00,2022,11,6419,N40287,Electrical testing and smoke detectors,1233,Contractor Payments,XXX99,*** UNASSIGNED ***,WCC,CEC Recharges,WC,CEC Recharges,A,Central Services
GUILDFORD BOROUGH COUNCIL,Renovations,1000554,Seville Developments,07/02/2023,30094889,1415.88,0,Contractor Payments,,Invoice,BACS,No,24/01/2023 00:00,2022,11,6419,N40287,Electrical testing and smoke detectors,1233,Contractor Payments,XXX99,*** UNASSIGNED ***,WCC,CEC Recharges,WC,CEC Recharges,A,Central Services
GUILDFORD BOROUGH COUNCIL,Renovations,1000554,Seville Developments,07/02/2023,30094889,1178.96,0,Contractor Payments,,Invoice,BACS,No,24/01/2023 00:00,2022,11,6419,N40287,Electrical testing and smoke detectors,1233,Contractor Payments,XXX99,*** UNASSIGNED ***,WCC,CEC Recharges,WC,CEC Recharges,A,Central Services
GUILDFORD BOROUGH COUNCIL,Renovations,1000554,Seville Developments,07/02/2023,30094889,886.37,0,Contractor Payments,,Invoice,BACS,No,24/01/2023 00:00,2022,11,6419,N40287,Electrical testing and smoke detectors,1233,Contractor Payments,XXX99,*** UNASSIGNED ***,WCC,CEC Recharges,WC,CEC Recharges,A,Central Services
GUILDFORD BOROUGH COUNCIL,Renovations,1000554,Seville Developments,07/02/2023,30094889,1769.76,0,Contractor Payments,,Invoice,BACS,No,24/01/2023 00:00,2022,11,6419,N40287,Electrical testing and smoke detectors,1233,Contractor Payments,XXX99,*** UNASSIGNED ***,WCC,CEC Recharges,WC,CEC Recharges,A,Central Services
GUILDFORD BOROUGH COUNCIL,Renovations,1000554,Seville Developments,07/02/2023,30094889,1915.23,0,Contractor Payments,,Invoice,BACS,No,24/01/2023 00:00,2022,11,6419,N40287,Electrical testing and smoke detectors,1233,Contractor Payments,XXX99,*** UNASSIGNED ***,WCC,CEC Recharges,WC,CEC Recharges,A,Central Services
GUILDFORD BOROUGH COUNCIL,Renovations,1000554,Seville Developments,07/02/2023,30094889,1388.93,0,Contractor Payments,,Invoice,BACS,No,24/01/2023 00:00,2022,11,6419,N40287,Electrical testing and smoke detectors,1233,Contractor Payments,XXX99,*** UNASSIGNED ***,WCC,CEC Recharges,WC,CEC Recharges,A,Central Services
GUILDFORD BOROUGH COUNCIL,Renovations,1000554,Seville Developments,07/02/2023,30094889,1001.46,0,Contractor Payments,,Invoice,BACS,No,24/01/2023 00:00,2022,11,6419,N40287,Electrical testing and smoke detectors,1233,Contractor Payments,XXX99,*** UNASSIGNED ***,WCC,CEC Recharges,WC,CEC Recharges,A,Central Services
GUILDFORD BOROUGH COUNCIL,Renovations,1000554,Seville Developments,07/02/2023,30094889,1040.16,0,Contractor Payments,,Invoice,BACS,No,24/01/2023 00:00,2022,11,6419,N40287,Electrical testing and smoke detectors,1233,Contractor Payments,XXX99,*** UNASSIGNED ***,WCC,CEC Recharges,WC,CEC Recharges,A,Central Services
GUILDFORD BOROUGH COUNCIL,Renovations,1000554,Seville Developments,07/02/2023,30094889,2081.77,0,Contractor Payments,,Invoice,BACS,No,24/01/2023 00:00,2022,11,6419,N40287,Electrical testing and smoke detectors,1233,Contractor Payments,XXX99,*** UNASSIGNED ***,WCC,CEC Recharges,WC,CEC Recharges,A,Central Services
GUILDFORD BOROUGH COUNCIL,Renovations,1000554,Seville Developments,07/02/2023,30094889,1091.78,0,Contractor Payments,,Invoice,BACS,No,24/01/2023 00:00,2022,11,6419,N40287,Electrical testing and smoke detectors,1233,Contractor Payments,XXX99,*** UNASSIGNED ***,WCC,CEC Recharges,WC,CEC Recharges,A,Central Services
GUILDFORD BOROUGH COUNCIL,Renovations,1000554,Seville Developments,07/02/2023,30094889,2073.92,0,Contractor Payments,,Invoice,BACS,No,24/01/2023 00:00,2022,11,6419,N40287,Electrical testing and smoke detectors,1233,Contractor Payments,XXX99,*** UNASSIGNED ***,WCC,CEC Recharges,WC,CEC Recharges,A,Central Services
GUILDFORD BOROUGH COUNCIL,Renovations,1000554,Seville Developments,07/02/2023,30094889,1269.65,0,Contractor Payments,,Invoice,BACS,No,24/01/2023 00:00,2022,11,6419,N40287,Electrical testing and smoke detectors,1233,Contractor Payments,XXX99,*** UNASSIGNED ***,WCC,CEC Recharges,WC,CEC Recharges,A,Central Services
GUILDFORD BOROUGH COUNCIL,Renovations,1000554,Seville Developments,07/02/2023,30094889,1393.76,0,Contractor Payments,,Invoice,BACS,No,24/01/2023 00:00,2022,11,6419,N40287,Electrical testing and smoke detectors,1233,Contractor Payments,XXX99,*** UNASSIGNED ***,WCC,CEC Recharges,WC,CEC Recharges,A,Central Services
GUILDFORD BOROUGH COUNCIL,Renovations,1000554,Seville Developments,07/02/2023,30094889,980.67,0,Contractor Payments,,Invoice,BACS,No,24/01/2023 00:00,2022,11,6419,N40287,Electrical testing and smoke detectors,1233,Contractor Payments,XXX99,*** UNASSIGNED ***,WCC,CEC Recharges,WC,CEC Recharges,A,Central Services
GUILDFORD BOROUGH COUNCIL,Renovations,1000554,Seville Developments,07/02/2023,30094889,1125.57,0,Contractor Payments,,Invoice,BACS,No,24/01/2023 00:00,2022,11,6419,N40287,Electrical testing and smoke detectors,1233,Contractor Payments,XXX99,*** UNASSIGNED ***,WCC,CEC Recharges,WC,CEC Recharges,A,Central Services
GUILDFORD BOROUGH COUNCIL,Renovations,1000554,Seville Developments,07/02/2023,30094889,1811.49,0,Contractor Payments,,Invoice,BACS,No,24/01/2023 00:00,2022,11,6419,N40287,Electrical testing and smoke detectors,1233,Contractor Payments,XXX99,*** UNASSIGNED ***,WCC,CEC Recharges,WC,CEC Recharges,A,Central Services
GUILDFORD BOROUGH COUNCIL,Renovations,1000554,Seville Developments,07/02/2023,30094889,1326.6,0,Contractor Payments,,Invoice,BACS,No,24/01/2023 00:00,2022,11,6419,N40287,Electrical testing and smoke detectors,1233,Contractor Payments,XXX99,*** UNASSIGNED ***,WCC,CEC Recharges,WC,CEC Recharges,A,Central Services
GUILDFORD BOROUGH COUNCIL,Renovations,1000554,Seville Developments,07/02/2023,30094889,1244.82,0,Contractor Payments,,Invoice,BACS,No,24/01/2023 00:00,2022,11,6419,N40287,Electrical testing and smoke detectors,1233,Contractor Payments,XXX99,*** UNASSIGNED ***,WCC,CEC Recharges,WC,CEC Recharges,A,Central Services
GUILDFORD BOROUGH COUNCIL,Renovations,1000554,Seville Developments,07/02/2023,30094889,1238.54,0,Contractor Payments,,Invoice,BACS,No,24/01/2023 00:00,2022,11,6419,N40287,Electrical testing and smoke detectors,1233,Contractor Payments,XXX99,*** UNASSIGNED ***,WCC,CEC Recharges,WC,CEC Recharges,A,Central Services
GUILDFORD BOROUGH COUNCIL,Renovations,1000554,Seville Developments,07/02/2023,30094889,1068.48,0,Contractor Payments,,Invoice,BACS,No,24/01/2023 00:00,2022,11,6419,N40287,Electrical testing and smoke detectors,1233,Contractor Payments,XXX99,*** UNASSIGNED ***,WCC,CEC Recharges,WC,CEC Recharges,A,Central Services
GUILDFORD BOROUGH COUNCIL,Renovations,1000554,Seville Developments,07/02/2023,30094889,1707.29,0,Contractor Payments,,Invoice,BACS,No,24/01/2023 00:00,2022,11,6419,N40287,Electrical testing and smoke detectors,1233,Contractor Payments,XXX99,*** UNASSIGNED ***,WCC,CEC Recharges,WC,CEC Recharges,A,Central Services
GUILDFORD BOROUGH COUNCIL,Renovations,1000554,Seville Developments,07/02/2023,30094889,1366.26,0,Contractor Payments,,Invoice,BACS,No,24/01/2023 00:00,2022,11,6419,N40287,Electrical testing and smoke detectors,1233,Contractor Payments,XXX99,*** UNASSIGNED ***,WCC,CEC Recharges,WC,CEC Recharges,A,Central Services
GUILDFORD BOROUGH COUNCIL,Renovations,1000554,Seville Developments,07/02/2023,30094889,1652.6,0,Contractor Payments,,Invoice,BACS,No,24/01/2023 00:00,2022,11,6419,N40287,Electrical testing and smoke detectors,1233,Contractor Payments,XXX99,*** UNASSIGNED ***,WCC,CEC Recharges,WC,CEC Recharges,A,Central Services
GUILDFORD BOROUGH COUNCIL,Renovations,1000554,Seville Developments,07/02/2023,30094889,1193.22,0,Contractor Payments,,Invoice,BACS,No,24/01/2023 00:00,2022,11,6419,N40287,Electrical testing and smoke detectors,1233,Contractor Payments,XXX99,*** UNASSIGNED ***,WCC,CEC Recharges,WC,CEC Recharges,A,Central Services
GUILDFORD BOROUGH COUNCIL,Renovations,1000554,Seville Developments,07/02/2023,30094889,669.2,0,Contractor Payments,,Invoice,BACS,No,24/01/2023 00:00,2022,11,6419,N40287,Electrical testing and smoke detectors,1233,Contractor Payments,XXX99,*** UNASSIGNED ***,WCC,CEC Recharges,WC,CEC Recharges,A,Central Services
GUILDFORD BOROUGH COUNCIL,Renovations,1000554,Seville Developments,07/02/2023,30094889,1570.53,0,Contractor Payments,,Invoice,BACS,No,24/01/2023 00:00,2022,11,6419,N40287,Electrical testing and smoke detectors,1233,Contractor Payments,XXX99,*** UNASSIGNED ***,WCC,CEC Recharges,WC,CEC Recharges,A,Central Services
GUILDFORD BOROUGH COUNCIL,Renovations,1000554,Seville Developments,07/02/2023,30094889,1320.38,0,Contractor Payments,,Invoice,BACS,No,24/01/2023 00:00,2022,11,6419,N40287,Electrical testing and smoke detectors,1233,Contractor Payments,XXX99,*** UNASSIGNED ***,WCC,CEC Recharges,WC,CEC Recharges,A,Central Services
GUILDFORD BOROUGH COUNCIL,Renovations,1000554,Seville Developments,07/02/2023,30094889,1379.24,0,Contractor Payments,,Invoice,BACS,No,24/01/2023 00:00,2022,11,6419,N40287,Electrical testing and smoke detectors,1233,Contractor Payments,XXX99,*** UNASSIGNED ***,WCC,CEC Recharges,WC,CEC Recharges,A,Central Services
GUILDFORD BOROUGH COUNCIL,Renovations,1000554,Seville Developments,07/02/2023,30094889,1564.73,0,Contractor Payments,,Invoice,BACS,No,24/01/2023 00:00,2022,11,6419,N40287,Electrical testing and smoke detectors,1233,Contractor Payments,XXX99,*** UNASSIGNED ***,WCC,CEC Recharges,WC,CEC Recharges,A,Central Services
GUILDFORD BOROUGH COUNCIL,Renovations,1000554,Seville Developments,07/02/2023,30094889,426.08,0,Contractor Payments,,Invoice,BACS,No,24/01/2023 00:00,2022,11,6419,N40287,Electrical testing and smoke detectors,1233,Contractor Payments,XXX99,*** UNASSIGNED ***,WCC,CEC Recharges,WC,CEC Recharges,A,Central Services
GUILDFORD BOROUGH COUNCIL,Renovations,1000554,Seville Developments,07/02/2023,30094889,469.78,0,Contractor Payments,,Invoice,BACS,No,24/01/2023 00:00,2022,11,6419,N40287,Electrical testing and smoke detectors,1233,Contractor Payments,XXX99,*** UNASSIGNED ***,WCC,CEC Recharges,WC,CEC Recharges,A,Central Services
GUILDFORD BOROUGH COUNCIL,Renovations,1000554,Seville Developments,07/02/2023,30094889,1459.65,0,Contractor Payments,,Invoice,BACS,No,24/01/2023 00:00,2022,11,6419,N40287,Electrical testing and smoke detectors,1233,Contractor Payments,XXX99,*** UNASSIGNED ***,WCC,CEC Recharges,WC,CEC Recharges,A,Central Services
GUILDFORD BOROUGH COUNCIL,Renovations,1000554,Seville Developments,07/02/2023,30094889,807.67,0,Contractor Payments,,Invoice,BACS,No,24/01/2023 00:00,2022,11,6419,N40287,Electrical testing and smoke detectors,1233,Contractor Payments,XXX99,*** UNASSIGNED ***,WCC,CEC Recharges,WC,CEC Recharges,A,Central Services
GUILDFORD BOROUGH COUNCIL,Renovations,1000554,Seville Developments,07/02/2023,30094889,2355.73,0,Contractor Payments,,Invoice,BACS,No,24/01/2023 00:00,2022,11,6419,N40287,Electrical testing and smoke detectors,1233,Contractor Payments,XXX99,*** UNASSIGNED ***,WCC,CEC Recharges,WC,CEC Recharges,A,Central Services
GUILDFORD BOROUGH COUNCIL,Renovations,1000554,Seville Developments,07/02/2023,30094889,834.63,0,Contractor Payments,,Invoice,BACS,No,24/01/2023 00:00,2022,11,6419,N40287,Electrical testing and smoke detectors,1233,Contractor Payments,XXX99,*** UNASSIGNED ***,WCC,CEC Recharges,WC,CEC Recharges,A,Central Services
GUILDFORD BOROUGH COUNCIL,Renovations,1000554,Seville Developments,07/02/2023,30094889,1571.1,0,Contractor Payments,,Invoice,BACS,No,24/01/2023 00:00,2022,11,6419,N40287,Electrical testing and smoke detectors,1233,Contractor Payments,XXX99,*** UNASSIGNED ***,WCC,CEC Recharges,WC,CEC Recharges,A,Central Services
GUILDFORD BOROUGH COUNCIL,Renovations,1000554,Seville Developments,07/02/2023,30094889,1191.43,0,Contractor Payments,,Invoice,BACS,No,24/01/2023 00:00,2022,11,6419,N40287,Electrical testing and smoke detectors,1233,Contractor Payments,XXX99,*** UNASSIGNED ***,WCC,CEC Recharges,WC,CEC Recharges,A,Central Services
GUILDFORD BOROUGH COUNCIL,Renovations,1000554,Seville Developments,07/02/2023,30094889,1031.6,0,Contractor Payments,,Invoice,BACS,No,24/01/2023 00:00,2022,11,6419,N40287,Electrical testing and smoke detectors,1233,Contractor Payments,XXX99,*** UNASSIGNED ***,WCC,CEC Recharges,WC,CEC Recharges,A,Central Services
GUILDFORD BOROUGH COUNCIL,Renovations,1000554,Seville Developments,07/02/2023,30094889,1503.8,0,Contractor Payments,,Invoice,BACS,No,24/01/2023 00:00,2022,11,6419,N40287,Electrical testing and smoke detectors,1233,Contractor Payments,XXX99,*** UNASSIGNED ***,WCC,CEC Recharges,WC,CEC Recharges,A,Central Services
GUILDFORD BOROUGH COUNCIL,Renovations,1000554,Seville Developments,07/02/2023,30094889,1292.52,0,Contractor Payments,,Invoice,BACS,No,24/01/2023 00:00,2022,11,6419,N40287,Electrical testing and smoke detectors,1233,Contractor Payments,XXX99,*** UNASSIGNED ***,WCC,CEC Recharges,WC,CEC Recharges,A,Central Services
GUILDFORD BOROUGH COUNCIL,Renovations,1000554,Seville Developments,07/02/2023,30094889,1191.43,0,Contractor Payments,,Invoice,BACS,No,24/01/2023 00:00,2022,11,6419,N40287,Electrical testing and smoke detectors,1233,Contractor Payments,XXX99,*** UNASSIGNED ***,WCC,CEC Recharges,WC,CEC Recharges,A,Central Services
GUILDFORD BOROUGH COUNCIL,Renovations,1000554,Seville Developments,07/02/2023,30094889,1060.48,0,Contractor Payments,,Invoice,BACS,No,24/01/2023 00:00,2022,11,6419,N40287,Electrical testing and smoke detectors,1233,Contractor Payments,XXX99,*** UNASSIGNED ***,WCC,CEC Recharges,WC,CEC Recharges,A,Central Services
GUILDFORD BOROUGH COUNCIL,Renovations,1000554,Seville Developments,07/02/2023,30094889,1188.11,0,Contractor Payments,,Invoice,BACS,No,24/01/2023 00:00,2022,11,6419,N40287,Electrical testing and smoke detectors,1233,Contractor Payments,XXX99,*** UNASSIGNED ***,WCC,CEC Recharges,WC,CEC Recharges,A,Central Services
GUILDFORD BOROUGH COUNCIL,Renovations,1000554,Seville Developments,07/02/2023,30094889,1186.72,0,Contractor Payments,,Invoice,BACS,No,24/01/2023 00:00,2022,11,6419,N40287,Electrical testing and smoke detectors,1233,Contractor Payments,XXX99,*** UNASSIGNED ***,WCC,CEC Recharges,WC,CEC Recharges,A,Central Services
GUILDFORD BOROUGH COUNCIL,Renovations,1000554,Seville Developments,07/02/2023,30094889,357.94,0,Contractor Payments,,Invoice,BACS,No,24/01/2023 00:00,2022,11,6419,N40287,Electrical testing and smoke detectors,1233,Contractor Payments,XXX99,*** UNASSIGNED ***,WCC,CEC Recharges,WC,CEC Recharges,A,Central Services
GUILDFORD BOROUGH COUNCIL,Renovations,1000554,Seville Developments,07/02/2023,30094889,1648.98,0,Contractor Payments,,Invoice,BACS,No,24/01/2023 00:00,2022,11,6419,N40287,Electrical testing and smoke detectors,1233,Contractor Payments,XXX99,*** UNASSIGNED ***,WCC,CEC Recharges,WC,CEC Recharges,A,Central Services
GUILDFORD BOROUGH COUNCIL,Renovations,1000554,Seville Developments,07/02/2023,30094889,1036.41,0,Contractor Payments,,Invoice,BACS,No,24/01/2023 00:00,2022,11,6419,N40287,Electrical testing and smoke detectors,1233,Contractor Payments,XXX99,*** UNASSIGNED ***,WCC,CEC Recharges,WC,CEC Recharges,A,Central Services
GUILDFORD BOROUGH COUNCIL,Renovations,1000554,Seville Developments,07/02/2023,30094889,1323.85,0,Contractor Payments,,Invoice,BACS,No,24/01/2023 00:00,2022,11,6419,N40287,Electrical testing and smoke detectors,1233,Contractor Payments,XXX99,*** UNASSIGNED ***,WCC,CEC Recharges,WC,CEC Recharges,A,Central Services
GUILDFORD BOROUGH COUNCIL,Renovations,1000554,Seville Developments,07/02/2023,30094889,1866.63,0,Contractor Payments,,Invoice,BACS,No,24/01/2023 00:00,2022,11,6419,N40287,Electrical testing and smoke detectors,1233,Contractor Payments,XXX99,*** UNASSIGNED ***,WCC,CEC Recharges,WC,CEC Recharges,A,Central Services
GUILDFORD BOROUGH COUNCIL,Renovations,1000554,Seville Developments,07/02/2023,30094890,16564.5,0,Contractor Payments,,Invoice,BACS,No,31/01/2023 00:00,2022,11,6451,N40292,Fire protection works,1233,Contractor Payments,XXX99,*** UNASSIGNED ***,WCC,CEC Recharges,WC,CEC Recharges,A,Central Services
GUILDFORD BOROUGH COUNCIL,Modern Homes,1000554,Seville Developments,07/02/2023,30094891,12840,0,Contractor Payments,,Invoice,BACS,No,31/01/2023 00:00,2022,11,6452,N42068,"Kitchen, bathroom and electrical upgrades",1233,Contractor Payments,XXX99,*** UNASSIGNED ***,WCC,CEC Recharges,WC,CEC Recharges,A,Central Services
GUILDFORD BOROUGH COUNCIL,Renovations,1000554,Seville Developments,07/02/2023,30094892,1063.58,0,Contractor Payments,,Invoice,BACS,No,31/01/2023 00:00,2022,11,6457,N40287,Electrical testing and smoke detectors,1233,Contractor Payments,XXX99,*** UNASSIGNED ***,WCC,CEC Recharges,WC,CEC Recharges,A,Central Services
GUILDFORD BOROUGH COUNCIL,Renovations,1000554,Seville Developments,07/02/2023,30094892,1076.22,0,Contractor Payments,,Invoice,BACS,No,31/01/2023 00:00,2022,11,6457,N40287,Electrical testing and smoke detectors,1233,Contractor Payments,XXX99,*** UNASSIGNED ***,WCC,CEC Recharges,WC,CEC Recharges,A,Central Services
GUILDFORD BOROUGH COUNCIL,Renovations,1000554,Seville Developments,07/02/2023,30094892,883.4,0,Contractor Payments,,Invoice,BACS,No,31/01/2023 00:00,2022,11,6457,N40287,Electrical testing and smoke detectors,1233,Contractor Payments,XXX99,*** UNASSIGNED ***,WCC,CEC Recharges,WC,CEC Recharges,A,Central Services
GUILDFORD BOROUGH COUNCIL,Renovations,1000554,Seville Developments,07/02/2023,30094892,1173.94,0,Contractor Payments,,Invoice,BACS,No,31/01/2023 00:00,2022,11,6457,N40287,Electrical testing and smoke detectors,1233,Contractor Payments,XXX99,*** UNASSIGNED ***,WCC,CEC Recharges,WC,CEC Recharges,A,Central Services
GUILDFORD BOROUGH COUNCIL,Renovations,1000554,Seville Developments,07/02/2023,30094892,767,0,Contractor Payments,,Invoice,BACS,No,31/01/2023 00:00,2022,11,6457,N40287,Electrical testing and smoke detectors,1233,Contractor Payments,XXX99,*** UNASSIGNED ***,WCC,CEC Recharges,WC,CEC Recharges,A,Central Services
GUILDFORD BOROUGH COUNCIL,Renovations,1000554,Seville Developments,07/02/2023,30094892,685.98,0,Contractor Payments,,Invoice,BACS,No,31/01/2023 00:00,2022,11,6457,N40287,Electrical testing and smoke detectors,1233,Contractor Payments,XXX99,*** UNASSIGNED ***,WCC,CEC Recharges,WC,CEC Recharges,A,Central Services
GUILDFORD BOROUGH COUNCIL,Renovations,1000554,Seville Developments,07/02/2023,30094892,529,0,Contractor Payments,,Invoice,BACS,No,31/01/2023 00:00,2022,11,6457,N40287,Electrical testing and smoke detectors,1233,Contractor Payments,XXX99,*** UNASSIGNED ***,WCC,CEC Recharges,WC,CEC Recharges,A,Central Services
GUILDFORD BOROUGH COUNCIL,Renovations,1000554,Seville Developments,07/02/2023,30094892,997.72,0,Contractor Payments,,Invoice,BACS,No,31/01/2023 00:00,2022,11,6457,N40287,Electrical testing and smoke detectors,1233,Contractor Payments,XXX99,*** UNASSIGNED ***,WCC,CEC Recharges,WC,CEC Recharges,A,Central Services
GUILDFORD BOROUGH COUNCIL,Renovations,1000554,Seville Developments,07/02/2023,30094892,898.84,0,Contractor Payments,,Invoice,BACS,No,31/01/2023 00:00,2022,11,6457,N40287,Electrical testing and smoke detectors,1233,Contractor Payments,XXX99,*** UNASSIGNED ***,WCC,CEC Recharges,WC,CEC Recharges,A,Central Services
GUILDFORD BOROUGH COUNCIL,Renovations,1000554,Seville Developments,07/02/2023,30094892,1616.45,0,Contractor Payments,,Invoice,BACS,No,31/01/2023 00:00,2022,11,6457,N40287,Electrical testing and smoke detectors,1233,Contractor Payments,XXX99,*** UNASSIGNED ***,WCC,CEC Recharges,WC,CEC Recharges,A,Central Services
GUILDFORD BOROUGH COUNCIL,Renovations,1000554,Seville Developments,07/02/2023,30094892,1902.39,0,Contractor Payments,,Invoice,BACS,No,31/01/2023 00:00,2022,11,6457,N40287,Electrical testing and smoke detectors,1233,Contractor Payments,XXX99,*** UNASSIGNED ***,WCC,CEC Recharges,WC,CEC Recharges,A,Central Services
GUILDFORD BOROUGH COUNCIL,Renovations,1000554,Seville Developments,07/02/2023,30094892,1782.34,0,Contractor Payments,,Invoice,BACS,No,31/01/2023 00:00,2022,11,6457,N40287,Electrical testing and smoke detectors,1233,Contractor Payments,XXX99,*** UNASSIGNED ***,WCC,CEC Recharges,WC,CEC Recharges,A,Central Services
GUILDFORD BOROUGH COUNCIL,Renovations,1000554,Seville Developments,07/02/2023,30094892,1501.47,0,Contractor Payments,,Invoice,BACS,No,31/01/2023 00:00,2022,11,6457,N40287,Electrical testing and smoke detectors,1233,Contractor Payments,XXX99,*** UNASSIGNED ***,WCC,CEC Recharges,WC,CEC Recharges,A,Central Services
GUILDFORD BOROUGH COUNCIL,Renovations,1000554,Seville Developments,07/02/2023,30094892,1671.13,0,Contractor Payments,,Invoice,BACS,No,31/01/2023 00:00,2022,11,6457,N40287,Electrical testing and smoke detectors,1233,Contractor Payments,XXX99,*** UNASSIGNED ***,WCC,CEC Recharges,WC,CEC Recharges,A,Central Services
GUILDFORD BOROUGH COUNCIL,Renovations,1000554,Seville Developments,07/02/2023,30094892,1600.96,0,Contractor Payments,,Invoice,BACS,No,31/01/2023 00:00,2022,11,6457,N40287,Electrical testing and smoke detectors,1233,Contractor Payments,XXX99,*** UNASSIGNED ***,WCC,CEC Recharges,WC,CEC Recharges,A,Central Services
GUILDFORD BOROUGH COUNCIL,Renovations,1000554,Seville Developments,07/02/2023,30094892,1415.19,0,Contractor Payments,,Invoice,BACS,No,31/01/2023 00:00,2022,11,6457,N40287,Electrical testing and smoke detectors,1233,Contractor Payments,XXX99,*** UNASSIGNED ***,WCC,CEC Recharges,WC,CEC Recharges,A,Central Services
GUILDFORD BOROUGH COUNCIL,Renovations,1000554,Seville Developments,07/02/2023,30094892,1255.44,0,Contractor Payments,,Invoice,BACS,No,31/01/2023 00:00,2022,11,6457,N40287,Electrical testing and smoke detectors,1233,Contractor Payments,XXX99,*** UNASSIGNED ***,WCC,CEC Recharges,WC,CEC Recharges,A,Central Services
GUILDFORD BOROUGH COUNCIL,Renovations,1000554,Seville Developments,07/02/2023,30094892,1382.81,0,Contractor Payments,,Invoice,BACS,No,31/01/2023 00:00,2022,11,6457,N40287,Electrical testing and smoke detectors,1233,Contractor Payments,XXX99,*** UNASSIGNED ***,WCC,CEC Recharges,WC,CEC Recharges,A,Central Services
GUILDFORD BOROUGH COUNCIL,Renovations,1000554,Seville Developments,07/02/2023,30094892,933.03,0,Contractor Payments,,Invoice,BACS,No,31/01/2023 00:00,2022,11,6457,N40287,Electrical testing and smoke detectors,1233,Contractor Payments,XXX99,*** UNASSIGNED ***,WCC,CEC Recharges,WC,CEC Recharges,A,Central Services
GUILDFORD BOROUGH COUNCIL,Renovations,1000554,Seville Developments,07/02/2023,30094892,1241.53,0,Contractor Payments,,Invoice,BACS,No,31/01/2023 00:00,2022,11,6457,N40287,Electrical testing and smoke detectors,1233,Contractor Payments,XXX99,*** UNASSIGNED ***,WCC,CEC Recharges,WC,CEC Recharges,A,Central Services
GUILDFORD BOROUGH COUNCIL,Renovations,1000554,Seville Developments,07/02/2023,30094892,1512.16,0,Contractor Payments,,Invoice,BACS,No,31/01/2023 00:00,2022,11,6457,N40287,Electrical testing and smoke detectors,1233,Contractor Payments,XXX99,*** UNASSIGNED ***,WCC,CEC Recharges,WC,CEC Recharges,A,Central Services
GUILDFORD BOROUGH COUNCIL,Renovations,1000554,Seville Developments,07/02/2023,30094892,885.96,0,Contractor Payments,,Invoice,BACS,No,31/01/2023 00:00,2022,11,6457,N40287,Electrical testing and smoke detectors,1233,Contractor Payments,XXX99,*** UNASSIGNED ***,WCC,CEC Recharges,WC,CEC Recharges,A,Central Services
GUILDFORD BOROUGH COUNCIL,Renovations,1000554,Seville Developments,07/02/2023,30094892,1022.14,0,Contractor Payments,,Invoice,BACS,No,31/01/2023 00:00,2022,11,6457,N40287,Electrical testing and smoke detectors,1233,Contractor Payments,XXX99,*** UNASSIGNED ***,WCC,CEC Recharges,WC,CEC Recharges,A,Central Services
GUILDFORD BOROUGH COUNCIL,Renovations,1000554,Seville Developments,07/02/2023,30094892,2014.65,0,Contractor Payments,,Invoice,BACS,No,31/01/2023 00:00,2022,11,6457,N40287,Electrical testing and smoke detectors,1233,Contractor Payments,XXX99,*** UNASSIGNED ***,WCC,CEC Recharges,WC,CEC Recharges,A,Central Services
GUILDFORD BOROUGH COUNCIL,Renovations,1000554,Seville Developments,07/02/2023,30094892,1046.53,0,Contractor Payments,,Invoice,BACS,No,31/01/2023 00:00,2022,11,6457,N40287,Electrical testing and smoke detectors,1233,Contractor Payments,XXX99,*** UNASSIGNED ***,WCC,CEC Recharges,WC,CEC Recharges,A,Central Services
GUILDFORD BOROUGH COUNCIL,Renovations,1000554,Seville Developments,07/02/2023,30094892,719.11,0,Contractor Payments,,Invoice,BACS,No,31/01/2023 00:00,2022,11,6457,N40287,Electrical testing and smoke detectors,1233,Contractor Payments,XXX99,*** UNASSIGNED ***,WCC,CEC Recharges,WC,CEC Recharges,A,Central Services
GUILDFORD BOROUGH COUNCIL,Renovations,1000554,Seville Developments,07/02/2023,30094892,1409.72,0,Contractor Payments,,Invoice,BACS,No,31/01/2023 00:00,2022,11,6457,N40287,Electrical testing and smoke detectors,1233,Contractor Payments,XXX99,*** UNASSIGNED ***,WCC,CEC Recharges,WC,CEC Recharges,A,Central Services
GUILDFORD BOROUGH COUNCIL,Renovations,1000554,Seville Developments,07/02/2023,30094892,744.69,0,Contractor Payments,,Invoice,BACS,No,31/01/2023 00:00,2022,11,6457,N40287,Electrical testing and smoke detectors,1233,Contractor Payments,XXX99,*** UNASSIGNED ***,WCC,CEC Recharges,WC,CEC Recharges,A,Central Services
GUILDFORD BOROUGH COUNCIL,Renovations,1000554,Seville Developments,07/02/2023,30094892,627.26,0,Contractor Payments,,Invoice,BACS,No,31/01/2023 00:00,2022,11,6457,N40287,Electrical testing and smoke detectors,1233,Contractor Payments,XXX99,*** UNASSIGNED ***,WCC,CEC Recharges,WC,CEC Recharges,A,Central Services
GUILDFORD BOROUGH COUNCIL,Renovations,1000554,Seville Developments,07/02/2023,30094892,1099.58,0,Contractor Payments,,Invoice,BACS,No,31/01/2023 00:00,2022,11,6457,N40287,Electrical testing and smoke detectors,1233,Contractor Payments,XXX99,*** UNASSIGNED ***,WCC,CEC Recharges,WC,CEC Recharges,A,Central Services
GUILDFORD BOROUGH COUNCIL,Renovations,1000554,Seville Developments,07/02/2023,30094892,1124.88,0,Contractor Payments,,Invoice,BACS,No,31/01/2023 00:00,2022,11,6457,N40287,Electrical testing and smoke detectors,1233,Contractor Payments,XXX99,*** UNASSIGNED ***,WCC,CEC Recharges,WC,CEC Recharges,A,Central Services
GUILDFORD BOROUGH COUNCIL,Renovations,1000554,Seville Developments,07/02/2023,30094892,1330.3,0,Contractor Payments,,Invoice,BACS,No,31/01/2023 00:00,2022,11,6457,N40287,Electrical testing and smoke detectors,1233,Contractor Payments,XXX99,*** UNASSIGNED ***,WCC,CEC Recharges,WC,CEC Recharges,A,Central Services
GUILDFORD BOROUGH COUNCIL,Renovations,1000554,Seville Developments,07/02/2023,30094892,939.13,0,Contractor Payments,,Invoice,BACS,No,31/01/2023 00:00,2022,11,6457,N40287,Electrical testing and smoke detectors,1233,Contractor Payments,XXX99,*** UNASSIGNED ***,WCC,CEC Recharges,WC,CEC Recharges,A,Central Services
GUILDFORD BOROUGH COUNCIL,Renovations,1000554,Seville Developments,07/02/2023,30094892,781.69,0,Contractor Payments,,Invoice,BACS,No,31/01/2023 00:00,2022,11,6457,N40287,Electrical testing and smoke detectors,1233,Contractor Payments,XXX99,*** UNASSIGNED ***,WCC,CEC Recharges,WC,CEC Recharges,A,Central Services
GUILDFORD BOROUGH COUNCIL,Renovations,1000554,Seville Developments,07/02/2023,30094892,814.12,0,Contractor Payments,,Invoice,BACS,No,31/01/2023 00:00,2022,11,6457,N40287,Electrical testing and smoke detectors,1233,Contractor Payments,XXX99,*** UNASSIGNED ***,WCC,CEC Recharges,WC,CEC Recharges,A,Central Services
GUILDFORD BOROUGH COUNCIL,Renovations,1000554,Seville Developments,07/02/2023,30094892,1331.39,0,Contractor Payments,,Invoice,BACS,No,31/01/2023 00:00,2022,11,6457,N40287,Electrical testing and smoke detectors,1233,Contractor Payments,XXX99,*** UNASSIGNED ***,WCC,CEC Recharges,WC,CEC Recharges,A,Central Services
GUILDFORD BOROUGH COUNCIL,Renovations,1000554,Seville Developments,07/02/2023,30094892,481.72,0,Contractor Payments,,Invoice,BACS,No,31/01/2023 00:00,2022,11,6457,N40287,Electrical testing and smoke detectors,1233,Contractor Payments,XXX99,*** UNASSIGNED ***,WCC,CEC Recharges,WC,CEC Recharges,A,Central Services
GUILDFORD BOROUGH COUNCIL,Renovations,1000554,Seville Developments,07/02/2023,30094892,1466.16,0,Contractor Payments,,Invoice,BACS,No,31/01/2023 00:00,2022,11,6457,N40287,Electrical testing and smoke detectors,1233,Contractor Payments,XXX99,*** UNASSIGNED ***,WCC,CEC Recharges,WC,CEC Recharges,A,Central Services
GUILDFORD BOROUGH COUNCIL,Renovations,1000554,Seville Developments,07/02/2023,30094892,1408.01,0,Contractor Payments,,Invoice,BACS,No,31/01/2023 00:00,2022,11,6457,N40287,Electrical testing and smoke detectors,1233,Contractor Payments,XXX99,*** UNASSIGNED ***,WCC,CEC Recharges,WC,CEC Recharges,A,Central Services
GUILDFORD BOROUGH COUNCIL,Renovations,1000554,Seville Developments,07/02/2023,30094892,1043.74,0,Contractor Payments,,Invoice,BACS,No,31/01/2023 00:00,2022,11,6457,N40287,Electrical testing and smoke detectors,1233,Contractor Payments,XXX99,*** UNASSIGNED ***,WCC,CEC Recharges,WC,CEC Recharges,A,Central Services
GUILDFORD BOROUGH COUNCIL,Renovations,1000554,Seville Developments,07/02/2023,30094892,977.69,0,Contractor Payments,,Invoice,BACS,No,31/01/2023 00:00,2022,11,6457,N40287,Electrical testing and smoke detectors,1233,Contractor Payments,XXX99,*** UNASSIGNED ***,WCC,CEC Recharges,WC,CEC Recharges,A,Central Services
GUILDFORD BOROUGH COUNCIL,Renovations,1000554,Seville Developments,07/02/2023,30094892,836.89,0,Contractor Payments,,Invoice,BACS,No,31/01/2023 00:00,2022,11,6457,N40287,Electrical testing and smoke detectors,1233,Contractor Payments,XXX99,*** UNASSIGNED ***,WCC,CEC Recharges,WC,CEC Recharges,A,Central Services
GUILDFORD BOROUGH COUNCIL,Renovations,1000554,Seville Developments,07/02/2023,30094892,1446.65,0,Contractor Payments,,Invoice,BACS,No,31/01/2023 00:00,2022,11,6457,N40287,Electrical testing and smoke detectors,1233,Contractor Payments,XXX99,*** UNASSIGNED ***,WCC,CEC Recharges,WC,CEC Recharges,A,Central Services
GUILDFORD BOROUGH COUNCIL,Renovations,1000554,Seville Developments,07/02/2023,30094892,1575.73,0,Contractor Payments,,Invoice,BACS,No,31/01/2023 00:00,2022,11,6457,N40287,Electrical testing and smoke detectors,1233,Contractor Payments,XXX99,*** UNASSIGNED ***,WCC,CEC Recharges,WC,CEC Recharges,A,Central Services
GUILDFORD BOROUGH COUNCIL,Renovations,1000554,Seville Developments,07/02/2023,30094892,1660.32,0,Contractor Payments,,Invoice,BACS,No,31/01/2023 00:00,2022,11,6457,N40287,Electrical testing and smoke detectors,1233,Contractor Payments,XXX99,*** UNASSIGNED ***,WCC,CEC Recharges,WC,CEC Recharges,A,Central Services
GUILDFORD BOROUGH COUNCIL,Renovations,1000554,Seville Developments,07/02/2023,30094892,600.85,0,Contractor Payments,,Invoice,BACS,No,31/01/2023 00:00,2022,11,6457,N40287,Electrical testing and smoke detectors,1233,Contractor Payments,XXX99,*** UNASSIGNED ***,WCC,CEC Recharges,WC,CEC Recharges,A,Central Services
GUILDFORD BOROUGH COUNCIL,Renovations,1000554,Seville Developments,07/02/2023,30094892,1010.59,0,Contractor Payments,,Invoice,BACS,No,31/01/2023 00:00,2022,11,6457,N40287,Electrical testing and smoke detectors,1233,Contractor Payments,XXX99,*** UNASSIGNED ***,WCC,CEC Recharges,WC,CEC Recharges,A,Central Services
GUILDFORD BOROUGH COUNCIL,Renovations,1000554,Seville Developments,07/02/2023,30094892,1063.58,0,Contractor Payments,,Invoice,BACS,No,31/01/2023 00:00,2022,11,6457,N40287,Electrical testing and smoke detectors,1233,Contractor Payments,XXX99,*** UNASSIGNED ***,WCC,CEC Recharges,WC,CEC Recharges,A,Central Services
GUILDFORD BOROUGH COUNCIL,Renovations,1000554,Seville Developments,07/02/2023,30094892,1081.53,0,Contractor Payments,,Invoice,BACS,No,31/01/2023 00:00,2022,11,6457,N40287,Electrical testing and smoke detectors,1233,Contractor Payments,XXX99,*** UNASSIGNED ***,WCC,CEC Recharges,WC,CEC Recharges,A,Central Services
GUILDFORD BOROUGH COUNCIL,Renovations,1000554,Seville Developments,07/02/2023,30094892,1274.72,0,Contractor Payments,,Invoice,BACS,No,31/01/2023 00:00,2022,11,6457,N40287,Electrical testing and smoke detectors,1233,Contractor Payments,XXX99,*** UNASSIGNED ***,WCC,CEC Recharges,WC,CEC Recharges,A,Central Services
GUILDFORD BOROUGH COUNCIL,Renovations,1000554,Seville Developments,07/02/2023,30094892,1496.85,0,Contractor Payments,,Invoice,BACS,No,31/01/2023 00:00,2022,11,6457,N40287,Electrical testing and smoke detectors,1233,Contractor Payments,XXX99,*** UNASSIGNED ***,WCC,CEC Recharges,WC,CEC Recharges,A,Central Services
GUILDFORD BOROUGH COUNCIL,Renovations,1000554,Seville Developments,07/02/2023,30094892,924.14,0,Contractor Payments,,Invoice,BACS,No,31/01/2023 00:00,2022,11,6457,N40287,Electrical testing and smoke detectors,1233,Contractor Payments,XXX99,*** UNASSIGNED ***,WCC,CEC Recharges,WC,CEC Recharges,A,Central Services
GUILDFORD BOROUGH COUNCIL,Renovations,1000554,Seville Developments,07/02/2023,30094892,1155.2,0,Contractor Payments,,Invoice,BACS,No,31/01/2023 00:00,2022,11,6457,N40287,Electrical testing and smoke detectors,1233,Contractor Payments,XXX99,*** UNASSIGNED ***,WCC,CEC Recharges,WC,CEC Recharges,A,Central Services
GUILDFORD BOROUGH COUNCIL,Renovations,1000554,Seville Developments,07/02/2023,30094892,1385,0,Contractor Payments,,Invoice,BACS,No,31/01/2023 00:00,2022,11,6457,N40287,Electrical testing and smoke detectors,1233,Contractor Payments,XXX99,*** UNASSIGNED ***,WCC,CEC Recharges,WC,CEC Recharges,A,Central Services
GUILDFORD BOROUGH COUNCIL,Renovations,1000554,Seville Developments,07/02/2023,30094892,975.76,0,Contractor Payments,,Invoice,BACS,No,31/01/2023 00:00,2022,11,6457,N40287,Electrical testing and smoke detectors,1233,Contractor Payments,XXX99,*** UNASSIGNED ***,WCC,CEC Recharges,WC,CEC Recharges,A,Central Services
GUILDFORD BOROUGH COUNCIL,Renovations,1000554,Seville Developments,07/02/2023,30094892,877.12,0,Contractor Payments,,Invoice,BACS,No,31/01/2023 00:00,2022,11,6457,N40287,Electrical testing and smoke detectors,1233,Contractor Payments,XXX99,*** UNASSIGNED ***,WCC,CEC Recharges,WC,CEC Recharges,A,Central Services
GUILDFORD BOROUGH COUNCIL,Renovations,1000554,Seville Developments,07/02/2023,30094893,1274.75,0,Contractor Payments,,Invoice,BACS,No,30/01/2023 00:00,2022,11,6462,N40287,Electrical testing and smoke detectors,1233,Contractor Payments,XXX99,*** UNASSIGNED ***,WCC,CEC Recharges,WC,CEC Recharges,A,Central Services
GUILDFORD BOROUGH COUNCIL,Renovations,1000554,Seville Developments,07/02/2023,30094893,856.74,0,Contractor Payments,,Invoice,BACS,No,30/01/2023 00:00,2022,11,6462,N40287,Electrical testing and smoke detectors,1233,Contractor Payments,XXX99,*** UNASSIGNED ***,WCC,CEC Recharges,WC,CEC Recharges,A,Central Services
GUILDFORD BOROUGH COUNCIL,Renovations,1000554,Seville Developments,07/02/2023,30094893,405.51,0,Contractor Payments,,Invoice,BACS,No,30/01/2023 00:00,2022,11,6462,N40287,Electrical testing and smoke detectors,1233,Contractor Payments,XXX99,*** UNASSIGNED ***,WCC,CEC Recharges,WC,CEC Recharges,A,Central Services
GUILDFORD BOROUGH COUNCIL,Renovations,1000554,Seville Developments,07/02/2023,30094893,472.32,0,Contractor Payments,,Invoice,BACS,No,30/01/2023 00:00,2022,11,6462,N40287,Electrical testing and smoke detectors,1233,Contractor Payments,XXX99,*** UNASSIGNED ***,WCC,CEC Recharges,WC,CEC Recharges,A,Central Services
GUILDFORD BOROUGH COUNCIL,Renovations,1000554,Seville Developments,07/02/2023,30094893,1040.01,0,Contractor Payments,,Invoice,BACS,No,30/01/2023 00:00,2022,11,6462,N40287,Electrical testing and smoke detectors,1233,Contractor Payments,XXX99,*** UNASSIGNED ***,WCC,CEC Recharges,WC,CEC Recharges,A,Central Services
GUILDFORD BOROUGH COUNCIL,Renovations,1000554,Seville Developments,07/02/2023,30094893,1827.48,0,Contractor Payments,,Invoice,BACS,No,30/01/2023 00:00,2022,11,6462,N40287,Electrical testing and smoke detectors,1233,Contractor Payments,XXX99,*** UNASSIGNED ***,WCC,CEC Recharges,WC,CEC Recharges,A,Central Services
GUILDFORD BOROUGH COUNCIL,Renovations,1000554,Seville Developments,07/02/2023,30094893,1719.34,0,Contractor Payments,,Invoice,BACS,No,30/01/2023 00:00,2022,11,6462,N40287,Electrical testing and smoke detectors,1233,Contractor Payments,XXX99,*** UNASSIGNED ***,WCC,CEC Recharges,WC,CEC Recharges,A,Central Services
GUILDFORD BOROUGH COUNCIL,Renovations,1000554,Seville Developments,07/02/2023,30094893,955.59,0,Contractor Payments,,Invoice,BACS,No,30/01/2023 00:00,2022,11,6462,N40287,Electrical testing and smoke detectors,1233,Contractor Payments,XXX99,*** UNASSIGNED ***,WCC,CEC Recharges,WC,CEC Recharges,A,Central Services
GUILDFORD BOROUGH COUNCIL,Renovations,1000554,Seville Developments,07/02/2023,30094893,1157.31,0,Contractor Payments,,Invoice,BACS,No,30/01/2023 00:00,2022,11,6462,N40287,Electrical testing and smoke detectors,1233,Contractor Payments,XXX99,*** UNASSIGNED ***,WCC,CEC Recharges,WC,CEC Recharges,A,Central Services
GUILDFORD BOROUGH COUNCIL,Renovations,1000554,Seville Developments,07/02/2023,30094893,1104.15,0,Contractor Payments,,Invoice,BACS,No,30/01/2023 00:00,2022,11,6462,N40287,Electrical testing and smoke detectors,1233,Contractor Payments,XXX99,*** UNASSIGNED ***,WCC,CEC Recharges,WC,CEC Recharges,A,Central Services
GUILDFORD BOROUGH COUNCIL,Renovations,1000554,Seville Developments,07/02/2023,30094893,1887.65,0,Contractor Payments,,Invoice,BACS,No,30/01/2023 00:00,2022,11,6462,N40287,Electrical testing and smoke detectors,1233,Contractor Payments,XXX99,*** UNASSIGNED ***,WCC,CEC Recharges,WC,CEC Recharges,A,Central Services
GUILDFORD BOROUGH COUNCIL,Renovations,1000554,Seville Developments,07/02/2023,30094893,1446.7,0,Contractor Payments,,Invoice,BACS,No,30/01/2023 00:00,2022,11,6462,N40287,Electrical testing and smoke detectors,1233,Contractor Payments,XXX99,*** UNASSIGNED ***,WCC,CEC Recharges,WC,CEC Recharges,A,Central Services
GUILDFORD BOROUGH COUNCIL,Renovations,1000554,Seville Developments,07/02/2023,30094893,2372.39,0,Contractor Payments,,Invoice,BACS,No,30/01/2023 00:00,2022,11,6462,N40287,Electrical testing and smoke detectors,1233,Contractor Payments,XXX99,*** UNASSIGNED ***,WCC,CEC Recharges,WC,CEC Recharges,A,Central Services
GUILDFORD BOROUGH COUNCIL,Renovations,1000554,Seville Developments,07/02/2023,30094893,426.08,0,Contractor Payments,,Invoice,BACS,No,30/01/2023 00:00,2022,11,6462,N40287,Electrical testing and smoke detectors,1233,Contractor Payments,XXX99,*** UNASSIGNED ***,WCC,CEC Recharges,WC,CEC Recharges,A,Central Services
GUILDFORD BOROUGH COUNCIL,Renovations,1000554,Seville Developments,07/02/2023,30094893,1029.43,0,Contractor Payments,,Invoice,BACS,No,30/01/2023 00:00,2022,11,6462,N40287,Electrical testing and smoke detectors,1233,Contractor Payments,XXX99,*** UNASSIGNED ***,WCC,CEC Recharges,WC,CEC Recharges,A,Central Services
GUILDFORD BOROUGH COUNCIL,Renovations,1000554,Seville Developments,07/02/2023,30094893,1071.49,0,Contractor Payments,,Invoice,BACS,No,30/01/2023 00:00,2022,11,6462,N40287,Electrical testing and smoke detectors,1233,Contractor Payments,XXX99,*** UNASSIGNED ***,WCC,CEC Recharges,WC,CEC Recharges,A,Central Services
GUILDFORD BOROUGH COUNCIL,Renovations,1000554,Seville Developments,07/02/2023,30094893,4625.15,0,Contractor Payments,,Invoice,BACS,No,30/01/2023 00:00,2022,11,6462,N40287,Electrical testing and smoke detectors,1233,Contractor Payments,XXX99,*** UNASSIGNED ***,WCC,CEC Recharges,WC,CEC Recharges,A,Central Services
GUILDFORD BOROUGH COUNCIL,Renovations,1000554,Seville Developments,07/02/2023,30094893,706.04,0,Contractor Payments,,Invoice,BACS,No,30/01/2023 00:00,2022,11,6462,N40287,Electrical testing and smoke detectors,1233,Contractor Payments,XXX99,*** UNASSIGNED ***,WCC,CEC Recharges,WC,CEC Recharges,A,Central Services
GUILDFORD BOROUGH COUNCIL,Renovations,1000554,Seville Developments,07/02/2023,30094893,629.32,0,Contractor Payments,,Invoice,BACS,No,30/01/2023 00:00,2022,11,6462,N40287,Electrical testing and smoke detectors,1233,Contractor Payments,XXX99,*** UNASSIGNED ***,WCC,CEC Recharges,WC,CEC Recharges,A,Central Services
GUILDFORD BOROUGH COUNCIL,Renovations,1000554,Seville Developments,07/02/2023,30094893,2111.04,0,Contractor Payments,,Invoice,BACS,No,30/01/2023 00:00,2022,11,6462,N40287,Electrical testing and smoke detectors,1233,Contractor Payments,XXX99,*** UNASSIGNED ***,WCC,CEC Recharges,WC,CEC Recharges,A,Central Services
GUILDFORD BOROUGH COUNCIL,Renovations,1000554,Seville Developments,07/02/2023,30094893,938.28,0,Contractor Payments,,Invoice,BACS,No,30/01/2023 00:00,2022,11,6462,N40287,Electrical testing and smoke detectors,1233,Contractor Payments,XXX99,*** UNASSIGNED ***,WCC,CEC Recharges,WC,CEC Recharges,A,Central Services
GUILDFORD BOROUGH COUNCIL,Renovations,1000554,Seville Developments,07/02/2023,30094893,1892.89,0,Contractor Payments,,Invoice,BACS,No,30/01/2023 00:00,2022,11,6462,N40287,Electrical testing and smoke detectors,1233,Contractor Payments,XXX99,*** UNASSIGNED ***,WCC,CEC Recharges,WC,CEC Recharges,A,Central Services
GUILDFORD BOROUGH COUNCIL,Renovations,1000554,Seville Developments,07/02/2023,30094893,1191.43,0,Contractor Payments,,Invoice,BACS,No,30/01/2023 00:00,2022,11,6462,N40287,Electrical testing and smoke detectors,1233,Contractor Payments,XXX99,*** UNASSIGNED ***,WCC,CEC Recharges,WC,CEC Recharges,A,Central Services
GUILDFORD BOROUGH COUNCIL,Renovations,1000554,Seville Developments,07/02/2023,30094893,939.75,0,Contractor Payments,,Invoice,BACS,No,30/01/2023 00:00,2022,11,6462,N40287,Electrical testing and smoke detectors,1233,Contractor Payments,XXX99,*** UNASSIGNED ***,WCC,CEC Recharges,WC,CEC Recharges,A,Central Services
GUILDFORD BOROUGH COUNCIL,Renovations,1000554,Seville Developments,07/02/2023,30094893,668.05,0,Contractor Payments,,Invoice,BACS,No,30/01/2023 00:00,2022,11,6462,N40287,Electrical testing and smoke detectors,1233,Contractor Payments,XXX99,*** UNASSIGNED ***,WCC,CEC Recharges,WC,CEC Recharges,A,Central Services
GUILDFORD BOROUGH COUNCIL,Renovations,1000554,Seville Developments,07/02/2023,30094893,1442.73,0,Contractor Payments,,Invoice,BACS,No,30/01/2023 00:00,2022,11,6462,N40287,Electrical testing and smoke detectors,1233,Contractor Payments,XXX99,*** UNASSIGNED ***,WCC,CEC Recharges,WC,CEC Recharges,A,Central Services
GUILDFORD BOROUGH COUNCIL,Renovations,1000554,Seville Developments,07/02/2023,30094893,1743.11,0,Contractor Payments,,Invoice,BACS,No,30/01/2023 00:00,2022,11,6462,N40287,Electrical testing and smoke detectors,1233,Contractor Payments,XXX99,*** UNASSIGNED ***,WCC,CEC Recharges,WC,CEC Recharges,A,Central Services
GUILDFORD BOROUGH COUNCIL,Renovations,1000554,Seville Developments,07/02/2023,30094893,980.67,0,Contractor Payments,,Invoice,BACS,No,30/01/2023 00:00,2022,11,6462,N40287,Electrical testing and smoke detectors,1233,Contractor Payments,XXX99,*** UNASSIGNED ***,WCC,CEC Recharges,WC,CEC Recharges,A,Central Services
GUILDFORD BOROUGH COUNCIL,Renovations,1000554,Seville Developments,07/02/2023,30094893,1372.74,0,Contractor Payments,,Invoice,BACS,No,30/01/2023 00:00,2022,11,6462,N40287,Electrical testing and smoke detectors,1233,Contractor Payments,XXX99,*** UNASSIGNED ***,WCC,CEC Recharges,WC,CEC Recharges,A,Central Services
GUILDFORD BOROUGH COUNCIL,Renovations,1000554,Seville Developments,07/02/2023,30094893,1941.14,0,Contractor Payments,,Invoice,BACS,No,30/01/2023 00:00,2022,11,6462,N40287,Electrical testing and smoke detectors,1233,Contractor Payments,XXX99,*** UNASSIGNED ***,WCC,CEC Recharges,WC,CEC Recharges,A,Central Services
GUILDFORD BOROUGH COUNCIL,Renovations,1000554,Seville Developments,07/02/2023,30094893,1096.79,0,Contractor Payments,,Invoice,BACS,No,30/01/2023 00:00,2022,11,6462,N40287,Electrical testing and smoke detectors,1233,Contractor Payments,XXX99,*** UNASSIGNED ***,WCC,CEC Recharges,WC,CEC Recharges,A,Central Services
GUILDFORD BOROUGH COUNCIL,Renovations,1000554,Seville Developments,07/02/2023,30094893,913.82,0,Contractor Payments,,Invoice,BACS,No,30/01/2023 00:00,2022,11,6462,N40287,Electrical testing and smoke detectors,1233,Contractor Payments,XXX99,*** UNASSIGNED ***,WCC,CEC Recharges,WC,CEC Recharges,A,Central Services
GUILDFORD BOROUGH COUNCIL,Renovations,1000554,Seville Developments,07/02/2023,30094893,1273.66,0,Contractor Payments,,Invoice,BACS,No,30/01/2023 00:00,2022,11,6462,N40287,Electrical testing and smoke detectors,1233,Contractor Payments,XXX99,*** UNASSIGNED ***,WCC,CEC Recharges,WC,CEC Recharges,A,Central Services
GUILDFORD BOROUGH COUNCIL,Renovations,1000554,Seville Developments,23/02/2023,30096122,52049.24,0,Contractor Payments,,Invoice,BACS,No,10/02/2023 00:00,2022,11,6533,N40292,Fire protection works,1233,Contractor Payments,XXX99,*** UNASSIGNED ***,WCC,CEC Recharges,WC,CEC Recharges,A,Central Services
GUILDFORD BOROUGH COUNCIL,Renovations,1000554,Seville Developments,23/02/2023,30096123,39990,0,Contractor Payments,,Invoice,BACS,No,10/02/2023 00:00,2022,11,6534,N40292,Fire protection works,1233,Contractor Payments,XXX99,*** UNASSIGNED ***,WCC,CEC Recharges,WC,CEC Recharges,A,Central Services
GUILDFORD BOROUGH COUNCIL,Renovations,1000554,Seville Developments,23/02/2023,30096124,21273.14,0,Contractor Payments,,Invoice,BACS,No,09/02/2023 00:00,2022,11,6535,N40292,Fire protection works,1233,Contractor Payments,XXX99,*** UNASSIGNED ***,WCC,CEC Recharges,WC,CEC Recharges,A,Central Services
GUILDFORD BOROUGH COUNCIL,Modern Homes,1000554,Seville Developments,07/03/2023,30096596,11500,0,Contractor Payments,,Invoice,BACS,No,31/01/2023 00:00,2022,12,6453,N42068,"Kitchen, bathroom and electrical upgrades",1233,Contractor Payments,XXX99,*** UNASSIGNED ***,WCC,CEC Recharges,WC,CEC Recharges,A,Central Services
GUILDFORD BOROUGH COUNCIL,Modern Homes,1000554,Seville Developments,07/03/2023,30096596,7625.5,0,Contractor Payments,,Invoice,BACS,No,31/01/2023 00:00,2022,12,6453,N42068,"Kitchen, bathroom and electrical upgrades",1233,Contractor Payments,XXX99,*** UNASSIGNED ***,WCC,CEC Recharges,WC,CEC Recharges,A,Central Services
GUILDFORD BOROUGH COUNCIL,Modern Homes,1000554,Seville Developments,07/03/2023,30096596,7625.5,0,Contractor Payments,,Invoice,BACS,No,31/01/2023 00:00,2022,12,6453,N42068,"Kitchen, bathroom and electrical upgrades",1233,Contractor Payments,XXX99,*** UNASSIGNED ***,WCC,CEC Recharges,WC,CEC Recharges,A,Central Services
GUILDFORD BOROUGH COUNCIL,Modern Homes,1000554,Seville Developments,07/03/2023,30096596,7625.5,0,Contractor Payments,,Invoice,BACS,No,31/01/2023 00:00,2022,12,6453,N42068,"Kitchen, bathroom and electrical upgrades",1233,Contractor Payments,XXX99,*** UNASSIGNED ***,WCC,CEC Recharges,WC,CEC Recharges,A,Central Services
GUILDFORD BOROUGH COUNCIL,Modern Homes,1000554,Seville Developments,07/03/2023,30096596,7625.5,0,Contractor Payments,,Invoice,BACS,No,31/01/2023 00:00,2022,12,6453,N42068,"Kitchen, bathroom and electrical upgrades",1233,Contractor Payments,XXX99,*** UNASSIGNED ***,WCC,CEC Recharges,WC,CEC Recharges,A,Central Services
GUILDFORD BOROUGH COUNCIL,Modern Homes,1000554,Seville Developments,07/03/2023,30096596,11500,0,Contractor Payments,,Invoice,BACS,No,31/01/2023 00:00,2022,12,6453,N42068,"Kitchen, bathroom and electrical upgrades",1233,Contractor Payments,XXX99,*** UNASSIGNED ***,WCC,CEC Recharges,WC,CEC Recharges,A,Central Services
GUILDFORD BOROUGH COUNCIL,Modern Homes,1000554,Seville Developments,07/03/2023,30096596,11500,0,Contractor Payments,,Invoice,BACS,No,31/01/2023 00:00,2022,12,6453,N42068,"Kitchen, bathroom and electrical upgrades",1233,Contractor Payments,XXX99,*** UNASSIGNED ***,WCC,CEC Recharges,WC,CEC Recharges,A,Central Services
GUILDFORD BOROUGH COUNCIL,Modern Homes,1000554,Seville Developments,07/03/2023,30096596,11500,0,Contractor Payments,,Invoice,BACS,No,31/01/2023 00:00,2022,12,6453,N42068,"Kitchen, bathroom and electrical upgrades",1233,Contractor Payments,XXX99,*** UNASSIGNED ***,WCC,CEC Recharges,WC,CEC Recharges,A,Central Services
GUILDFORD BOROUGH COUNCIL,Modern Homes,1000554,Seville Developments,07/03/2023,30096596,11500,0,Contractor Payments,,Invoice,BACS,No,31/01/2023 00:00,2022,12,6453,N42068,"Kitchen, bathroom and electrical upgrades",1233,Contractor Payments,XXX99,*** UNASSIGNED ***,WCC,CEC Recharges,WC,CEC Recharges,A,Central Services
GUILDFORD BOROUGH COUNCIL,Modern Homes,1000554,Seville Developments,07/03/2023,30096596,11500,0,Contractor Payments,,Invoice,BACS,No,31/01/2023 00:00,2022,12,6453,N42068,"Kitchen, bathroom and electrical upgrades",1233,Contractor Payments,XXX99,*** UNASSIGNED ***,WCC,CEC Recharges,WC,CEC Recharges,A,Central Services
GUILDFORD BOROUGH COUNCIL,Modern Homes,1000554,Seville Developments,07/03/2023,30096596,11500,0,Contractor Payments,,Invoice,BACS,No,31/01/2023 00:00,2022,12,6453,N42068,"Kitchen, bathroom and electrical upgrades",1233,Contractor Payments,XXX99,*** UNASSIGNED ***,WCC,CEC Recharges,WC,CEC Recharges,A,Central Services
GUILDFORD BOROUGH COUNCIL,Modern Homes,1000554,Seville Developments,07/03/2023,30096596,11500,0,Contractor Payments,,Invoice,BACS,No,31/01/2023 00:00,2022,12,6453,N42068,"Kitchen, bathroom and electrical upgrades",1233,Contractor Payments,XXX99,*** UNASSIGNED ***,WCC,CEC Recharges,WC,CEC Recharges,A,Central Services
GUILDFORD BOROUGH COUNCIL,Modern Homes,1000554,Seville Developments,07/03/2023,30096596,11500,0,Contractor Payments,,Invoice,BACS,No,31/01/2023 00:00,2022,12,6453,N42068,"Kitchen, bathroom and electrical upgrades",1233,Contractor Payments,XXX99,*** UNASSIGNED ***,WCC,CEC Recharges,WC,CEC Recharges,A,Central Services
GUILDFORD BOROUGH COUNCIL,Modern Homes,1000554,Seville Developments,07/03/2023,30096596,11500,0,Contractor Payments,,Invoice,BACS,No,31/01/2023 00:00,2022,12,6453,N42068,"Kitchen, bathroom and electrical upgrades",1233,Contractor Payments,XXX99,*** UNASSIGNED ***,WCC,CEC Recharges,WC,CEC Recharges,A,Central Services
GUILDFORD BOROUGH COUNCIL,Modern Homes,1000554,Seville Developments,07/03/2023,30096596,11500,0,Contractor Payments,,Invoice,BACS,No,31/01/2023 00:00,2022,12,6453,N42068,"Kitchen, bathroom and electrical upgrades",1233,Contractor Payments,XXX99,*** UNASSIGNED ***,WCC,CEC Recharges,WC,CEC Recharges,A,Central Services
GUILDFORD BOROUGH COUNCIL,Modern Homes,1000554,Seville Developments,07/03/2023,30096596,11500,0,Contractor Payments,,Invoice,BACS,No,31/01/2023 00:00,2022,12,6453,N42068,"Kitchen, bathroom and electrical upgrades",1233,Contractor Payments,XXX99,*** UNASSIGNED ***,WCC,CEC Recharges,WC,CEC Recharges,A,Central Services
GUILDFORD BOROUGH COUNCIL,Modern Homes,1000554,Seville Developments,07/03/2023,30096596,11500,0,Contractor Payments,,Invoice,BACS,No,31/01/2023 00:00,2022,12,6453,N42068,"Kitchen, bathroom and electrical upgrades",1233,Contractor Payments,XXX99,*** UNASSIGNED ***,WCC,CEC Recharges,WC,CEC Recharges,A,Central Services
GUILDFORD BOROUGH COUNCIL,Modern Homes,1000554,Seville Developments,07/03/2023,30096596,11500,0,Contractor Payments,,Invoice,BACS,No,31/01/2023 00:00,2022,12,6453,N42068,"Kitchen, bathroom and electrical upgrades",1233,Contractor Payments,XXX99,*** UNASSIGNED ***,WCC,CEC Recharges,WC,CEC Recharges,A,Central Services
GUILDFORD BOROUGH COUNCIL,Modern Homes,1000554,Seville Developments,07/03/2023,30096596,11500,0,Contractor Payments,,Invoice,BACS,No,31/01/2023 00:00,2022,12,6453,N42068,"Kitchen, bathroom and electrical upgrades",1233,Contractor Payments,XXX99,*** UNASSIGNED ***,WCC,CEC Recharges,WC,CEC Recharges,A,Central Services
GUILDFORD BOROUGH COUNCIL,Modern Homes,1000554,Seville Developments,07/03/2023,30096596,11500,0,Contractor Payments,,Invoice,BACS,No,31/01/2023 00:00,2022,12,6453,N42068,"Kitchen, bathroom and electrical upgrades",1233,Contractor Payments,XXX99,*** UNASSIGNED ***,WCC,CEC Recharges,WC,CEC Recharges,A,Central Services
GUILDFORD BOROUGH COUNCIL,Modern Homes,1000554,Seville Developments,07/03/2023,30096596,11500,0,Contractor Payments,,Invoice,BACS,No,31/01/2023 00:00,2022,12,6453,N42068,"Kitchen, bathroom and electrical upgrades",1233,Contractor Payments,XXX99,*** UNASSIGNED ***,WCC,CEC Recharges,WC,CEC Recharges,A,Central Services
GUILDFORD BOROUGH COUNCIL,Modern Homes,1000554,Seville Developments,07/03/2023,30096596,11500,0,Contractor Payments,,Invoice,BACS,No,31/01/2023 00:00,2022,12,6453,N42068,"Kitchen, bathroom and electrical upgrades",1233,Contractor Payments,XXX99,*** UNASSIGNED ***,WCC,CEC Recharges,WC,CEC Recharges,A,Central Services
GUILDFORD BOROUGH COUNCIL,Modern Homes,1000554,Seville Developments,07/03/2023,30096596,11500,0,Contractor Payments,,Invoice,BACS,No,31/01/2023 00:00,2022,12,6453,N42068,"Kitchen, bathroom and electrical upgrades",1233,Contractor Payments,XXX99,*** UNASSIGNED ***,WCC,CEC Recharges,WC,CEC Recharges,A,Central Services
GUILDFORD BOROUGH COUNCIL,Modern Homes,1000554,Seville Developments,07/03/2023,30096596,11500,0,Contractor Payments,,Invoice,BACS,No,31/01/2023 00:00,2022,12,6453,N42068,"Kitchen, bathroom and electrical upgrades",1233,Contractor Payments,XXX99,*** UNASSIGNED ***,WCC,CEC Recharges,WC,CEC Recharges,A,Central Services
GUILDFORD BOROUGH COUNCIL,Modern Homes,1000554,Seville Developments,07/03/2023,30096596,11500,0,Contractor Payments,,Invoice,BACS,No,31/01/2023 00:00,2022,12,6453,N42068,"Kitchen, bathroom and electrical upgrades",1233,Contractor Payments,XXX99,*** UNASSIGNED ***,WCC,CEC Recharges,WC,CEC Recharges,A,Central Services
GUILDFORD BOROUGH COUNCIL,Modern Homes,1000554,Seville Developments,07/03/2023,30096596,11500,0,Contractor Payments,,Invoice,BACS,No,31/01/2023 00:00,2022,12,6453,N42068,"Kitchen, bathroom and electrical upgrades",1233,Contractor Payments,XXX99,*** UNASSIGNED ***,WCC,CEC Recharges,WC,CEC Recharges,A,Central Services
GUILDFORD BOROUGH COUNCIL,Modern Homes,1000554,Seville Developments,07/03/2023,30096596,11500,0,Contractor Payments,,Invoice,BACS,No,31/01/2023 00:00,2022,12,6453,N42068,"Kitchen, bathroom and electrical upgrades",1233,Contractor Payments,XXX99,*** UNASSIGNED ***,WCC,CEC Recharges,WC,CEC Recharges,A,Central Services
GUILDFORD BOROUGH COUNCIL,Modern Homes,1000554,Seville Developments,07/03/2023,30096596,11500,0,Contractor Payments,,Invoice,BACS,No,31/01/2023 00:00,2022,12,6453,N42068,"Kitchen, bathroom and electrical upgrades",1233,Contractor Payments,XXX99,*** UNASSIGNED ***,WCC,CEC Recharges,WC,CEC Recharges,A,Central Services
GUILDFORD BOROUGH COUNCIL,Modern Homes,1000554,Seville Developments,07/03/2023,30096596,11500,0,Contractor Payments,,Invoice,BACS,No,31/01/2023 00:00,2022,12,6453,N42068,"Kitchen, bathroom and electrical upgrades",1233,Contractor Payments,XXX99,*** UNASSIGNED ***,WCC,CEC Recharges,WC,CEC Recharges,A,Central Services
GUILDFORD BOROUGH COUNCIL,Modern Homes,1000554,Seville Developments,07/03/2023,30096596,11500,0,Contractor Payments,,Invoice,BACS,No,31/01/2023 00:00,2022,12,6453,N42068,"Kitchen, bathroom and electrical upgrades",1233,Contractor Payments,XXX99,*** UNASSIGNED ***,WCC,CEC Recharges,WC,CEC Recharges,A,Central Services
GUILDFORD BOROUGH COUNCIL,Modern Homes,1000554,Seville Developments,07/03/2023,30096596,11500,0,Contractor Payments,,Invoice,BACS,No,31/01/2023 00:00,2022,12,6453,N42068,"Kitchen, bathroom and electrical upgrades",1233,Contractor Payments,XXX99,*** UNASSIGNED ***,WCC,CEC Recharges,WC,CEC Recharges,A,Central Services
GUILDFORD BOROUGH COUNCIL,Modern Homes,1000554,Seville Developments,07/03/2023,30096596,11500,0,Contractor Payments,,Invoice,BACS,No,31/01/2023 00:00,2022,12,6453,N42068,"Kitchen, bathroom and electrical upgrades",1233,Contractor Payments,XXX99,*** UNASSIGNED ***,WCC,CEC Recharges,WC,CEC Recharges,A,Central Services
GUILDFORD BOROUGH COUNCIL,Modern Homes,1000554,Seville Developments,07/03/2023,30096596,7625.5,0,Contractor Payments,,Invoice,BACS,No,31/01/2023 00:00,2022,12,6453,N42068,"Kitchen, bathroom and electrical upgrades",1233,Contractor Payments,XXX99,*** UNASSIGNED ***,WCC,CEC Recharges,WC,CEC Recharges,A,Central Services
GUILDFORD BOROUGH COUNCIL,Modern Homes,1000554,Seville Developments,07/03/2023,30096596,7625.5,0,Contractor Payments,,Invoice,BACS,No,31/01/2023 00:00,2022,12,6453,N42068,"Kitchen, bathroom and electrical upgrades",1233,Contractor Payments,XXX99,*** UNASSIGNED ***,WCC,CEC Recharges,WC,CEC Recharges,A,Central Services
GUILDFORD BOROUGH COUNCIL,Modern Homes,1000554,Seville Developments,07/03/2023,30096596,7625.5,0,Contractor Payments,,Invoice,BACS,No,31/01/2023 00:00,2022,12,6453,N42068,"Kitchen, bathroom and electrical upgrades",1233,Contractor Payments,XXX99,*** UNASSIGNED ***,WCC,CEC Recharges,WC,CEC Recharges,A,Central Services
GUILDFORD BOROUGH COUNCIL,Modern Homes,1000554,Seville Developments,07/03/2023,30096596,7625.5,0,Contractor Payments,,Invoice,BACS,No,31/01/2023 00:00,2022,12,6453,N42068,"Kitchen, bathroom and electrical upgrades",1233,Contractor Payments,XXX99,*** UNASSIGNED ***,WCC,CEC Recharges,WC,CEC Recharges,A,Central Services
GUILDFORD BOROUGH COUNCIL,Modern Homes,1000554,Seville Developments,07/03/2023,30096596,7625.5,0,Contractor Payments,,Invoice,BACS,No,31/01/2023 00:00,2022,12,6453,N42068,"Kitchen, bathroom and electrical upgrades",1233,Contractor Payments,XXX99,*** UNASSIGNED ***,WCC,CEC Recharges,WC,CEC Recharges,A,Central Services
GUILDFORD BOROUGH COUNCIL,Modern Homes,1000554,Seville Developments,07/03/2023,30096596,7625.5,0,Contractor Payments,,Invoice,BACS,No,31/01/2023 00:00,2022,12,6453,N42068,"Kitchen, bathroom and electrical upgrades",1233,Contractor Payments,XXX99,*** UNASSIGNED ***,WCC,CEC Recharges,WC,CEC Recharges,A,Central Services
GUILDFORD BOROUGH COUNCIL,Modern Homes,1000554,Seville Developments,07/03/2023,30096596,7625.5,0,Contractor Payments,,Invoice,BACS,No,31/01/2023 00:00,2022,12,6453,N42068,"Kitchen, bathroom and electrical upgrades",1233,Contractor Payments,XXX99,*** UNASSIGNED ***,WCC,CEC Recharges,WC,CEC Recharges,A,Central Services
GUILDFORD BOROUGH COUNCIL,Modern Homes,1000554,Seville Developments,07/03/2023,30096596,7625.5,0,Contractor Payments,,Invoice,BACS,No,31/01/2023 00:00,2022,12,6453,N42068,"Kitchen, bathroom and electrical upgrades",1233,Contractor Payments,XXX99,*** UNASSIGNED ***,WCC,CEC Recharges,WC,CEC Recharges,A,Central Services
GUILDFORD BOROUGH COUNCIL,Modern Homes,1000554,Seville Developments,07/03/2023,30096596,7625.5,0,Contractor Payments,,Invoice,BACS,No,31/01/2023 00:00,2022,12,6453,N42068,"Kitchen, bathroom and electrical upgrades",1233,Contractor Payments,XXX99,*** UNASSIGNED ***,WCC,CEC Recharges,WC,CEC Recharges,A,Central Services
GUILDFORD BOROUGH COUNCIL,Modern Homes,1000554,Seville Developments,07/03/2023,30096596,7625.5,0,Contractor Payments,,Invoice,BACS,No,31/01/2023 00:00,2022,12,6453,N42068,"Kitchen, bathroom and electrical upgrades",1233,Contractor Payments,XXX99,*** UNASSIGNED ***,WCC,CEC Recharges,WC,CEC Recharges,A,Central Services
GUILDFORD BOROUGH COUNCIL,Modern Homes,1000554,Seville Developments,07/03/2023,30096596,7625.5,0,Contractor Payments,,Invoice,BACS,No,31/01/2023 00:00,2022,12,6453,N42068,"Kitchen, bathroom and electrical upgrades",1233,Contractor Payments,XXX99,*** UNASSIGNED ***,WCC,CEC Recharges,WC,CEC Recharges,A,Central Services
GUILDFORD BOROUGH COUNCIL,Modern Homes,1000554,Seville Developments,07/03/2023,30096596,7625.5,0,Contractor Payments,,Invoice,BACS,No,31/01/2023 00:00,2022,12,6453,N42068,"Kitchen, bathroom and electrical upgrades",1233,Contractor Payments,XXX99,*** UNASSIGNED ***,WCC,CEC Recharges,WC,CEC Recharges,A,Central Services
GUILDFORD BOROUGH COUNCIL,Modern Homes,1000554,Seville Developments,07/03/2023,30096596,7625.5,0,Contractor Payments,,Invoice,BACS,No,31/01/2023 00:00,2022,12,6453,N42068,"Kitchen, bathroom and electrical upgrades",1233,Contractor Payments,XXX99,*** UNASSIGNED ***,WCC,CEC Recharges,WC,CEC Recharges,A,Central Services
GUILDFORD BOROUGH COUNCIL,Modern Homes,1000554,Seville Developments,07/03/2023,30096596,7625.5,0,Contractor Payments,,Invoice,BACS,No,31/01/2023 00:00,2022,12,6453,N42068,"Kitchen, bathroom and electrical upgrades",1233,Contractor Payments,XXX99,*** UNASSIGNED ***,WCC,CEC Recharges,WC,CEC Recharges,A,Central Services
GUILDFORD BOROUGH COUNCIL,Modern Homes,1000554,Seville Developments,07/03/2023,30096596,7625.5,0,Contractor Payments,,Invoice,BACS,No,31/01/2023 00:00,2022,12,6453,N42068,"Kitchen, bathroom and electrical upgrades",1233,Contractor Payments,XXX99,*** UNASSIGNED ***,WCC,CEC Recharges,WC,CEC Recharges,A,Central Services
GUILDFORD BOROUGH COUNCIL,Modern Homes,1000554,Seville Developments,07/03/2023,30096596,7625.5,0,Contractor Payments,,Invoice,BACS,No,31/01/2023 00:00,2022,12,6453,N42068,"Kitchen, bathroom and electrical upgrades",1233,Contractor Payments,XXX99,*** UNASSIGNED ***,WCC,CEC Recharges,WC,CEC Recharges,A,Central Services
GUILDFORD BOROUGH COUNCIL,Modern Homes,1000554,Seville Developments,07/03/2023,30096596,7625.5,0,Contractor Payments,,Invoice,BACS,No,31/01/2023 00:00,2022,12,6453,N42068,"Kitchen, bathroom and electrical upgrades",1233,Contractor Payments,XXX99,*** UNASSIGNED ***,WCC,CEC Recharges,WC,CEC Recharges,A,Central Services
GUILDFORD BOROUGH COUNCIL,Modern Homes,1000554,Seville Developments,07/03/2023,30096596,7625.5,0,Contractor Payments,,Invoice,BACS,No,31/01/2023 00:00,2022,12,6453,N42068,"Kitchen, bathroom and electrical upgrades",1233,Contractor Payments,XXX99,*** UNASSIGNED ***,WCC,CEC Recharges,WC,CEC Recharges,A,Central Services
GUILDFORD BOROUGH COUNCIL,Modern Homes,1000554,Seville Developments,07/03/2023,30096596,7526.82,0,Contractor Payments,,Invoice,BACS,No,31/01/2023 00:00,2022,12,6453,N42068,"Kitchen, bathroom and electrical upgrades",1233,Contractor Payments,XXX99,*** UNASSIGNED ***,WCC,CEC Recharges,WC,CEC Recharges,A,Central Services
GUILDFORD BOROUGH COUNCIL,Modern Homes,1000554,Seville Developments,07/03/2023,30096596,7372.8,0,Contractor Payments,,Invoice,BACS,No,31/01/2023 00:00,2022,12,6453,N42068,"Kitchen, bathroom and electrical upgrades",1233,Contractor Payments,XXX99,*** UNASSIGNED ***,WCC,CEC Recharges,WC,CEC Recharges,A,Central Services
GUILDFORD BOROUGH COUNCIL,Modern Homes,1000554,Seville Developments,07/03/2023,30096993,11500,0,Contractor Payments,,Invoice,BACS,No,31/01/2023 00:00,2022,12,6459,N42068,"Kitchen, bathroom and electrical upgrades",1233,Contractor Payments,XXX99,*** UNASSIGNED ***,WCC,CEC Recharges,WC,CEC Recharges,A,Central Services
GUILDFORD BOROUGH COUNCIL,Modern Homes,1000554,Seville Developments,07/03/2023,30096993,11500,0,Contractor Payments,,Invoice,BACS,No,31/01/2023 00:00,2022,12,6459,N42068,"Kitchen, bathroom and electrical upgrades",1233,Contractor Payments,XXX99,*** UNASSIGNED ***,WCC,CEC Recharges,WC,CEC Recharges,A,Central Services
GUILDFORD BOROUGH COUNCIL,Modern Homes,1000554,Seville Developments,07/03/2023,30096993,11500,0,Contractor Payments,,Invoice,BACS,No,31/01/2023 00:00,2022,12,6459,N42068,"Kitchen, bathroom and electrical upgrades",1233,Contractor Payments,XXX99,*** UNASSIGNED ***,WCC,CEC Recharges,WC,CEC Recharges,A,Central Services
GUILDFORD BOROUGH COUNCIL,Modern Homes,1000554,Seville Developments,07/03/2023,30096993,11500,0,Contractor Payments,,Invoice,BACS,No,31/01/2023 00:00,2022,12,6459,N42068,"Kitchen, bathroom and electrical upgrades",1233,Contractor Payments,XXX99,*** UNASSIGNED ***,WCC,CEC Recharges,WC,CEC Recharges,A,Central Services
GUILDFORD BOROUGH COUNCIL,Modern Homes,1000554,Seville Developments,07/03/2023,30096993,11500,0,Contractor Payments,,Invoice,BACS,No,31/01/2023 00:00,2022,12,6459,N42068,"Kitchen, bathroom and electrical upgrades",1233,Contractor Payments,XXX99,*** UNASSIGNED ***,WCC,CEC Recharges,WC,CEC Recharges,A,Central Services
GUILDFORD BOROUGH COUNCIL,Modern Homes,1000554,Seville Developments,07/03/2023,30096993,11500,0,Contractor Payments,,Invoice,BACS,No,31/01/2023 00:00,2022,12,6459,N42068,"Kitchen, bathroom and electrical upgrades",1233,Contractor Payments,XXX99,*** UNASSIGNED ***,WCC,CEC Recharges,WC,CEC Recharges,A,Central Services
GUILDFORD BOROUGH COUNCIL,Modern Homes,1000554,Seville Developments,07/03/2023,30096993,11500,0,Contractor Payments,,Invoice,BACS,No,31/01/2023 00:00,2022,12,6459,N42068,"Kitchen, bathroom and electrical upgrades",1233,Contractor Payments,XXX99,*** UNASSIGNED ***,WCC,CEC Recharges,WC,CEC Recharges,A,Central Services
GUILDFORD BOROUGH COUNCIL,Modern Homes,1000554,Seville Developments,07/03/2023,30096993,7625.5,0,Contractor Payments,,Invoice,BACS,No,31/01/2023 00:00,2022,12,6459,N42068,"Kitchen, bathroom and electrical upgrades",1233,Contractor Payments,XXX99,*** UNASSIGNED ***,WCC,CEC Recharges,WC,CEC Recharges,A,Central Services
GUILDFORD BOROUGH COUNCIL,Modern Homes,1000554,Seville Developments,07/03/2023,30096993,7625.5,0,Contractor Payments,,Invoice,BACS,No,31/01/2023 00:00,2022,12,6459,N42068,"Kitchen, bathroom and electrical upgrades",1233,Contractor Payments,XXX99,*** UNASSIGNED ***,WCC,CEC Recharges,WC,CEC Recharges,A,Central Services
GUILDFORD BOROUGH COUNCIL,Modern Homes,1000554,Seville Developments,07/03/2023,30096993,7625.5,0,Contractor Payments,,Invoice,BACS,No,31/01/2023 00:00,2022,12,6459,N42068,"Kitchen, bathroom and electrical upgrades",1233,Contractor Payments,XXX99,*** UNASSIGNED ***,WCC,CEC Recharges,WC,CEC Recharges,A,Central Services
GUILDFORD BOROUGH COUNCIL,Modern Homes,1000554,Seville Developments,07/03/2023,30096993,7625.5,0,Contractor Payments,,Invoice,BACS,No,31/01/2023 00:00,2022,12,6459,N42068,"Kitchen, bathroom and electrical upgrades",1233,Contractor Payments,XXX99,*** UNASSIGNED ***,WCC,CEC Recharges,WC,CEC Recharges,A,Central Services
GUILDFORD BOROUGH COUNCIL,Modern Homes,1000554,Seville Developments,07/03/2023,30096993,7625.5,0,Contractor Payments,,Invoice,BACS,No,31/01/2023 00:00,2022,12,6459,N42068,"Kitchen, bathroom and electrical upgrades",1233,Contractor Payments,XXX99,*** UNASSIGNED ***,WCC,CEC Recharges,WC,CEC Recharges,A,Central Services
GUILDFORD BOROUGH COUNCIL,Modern Homes,1000554,Seville Developments,07/03/2023,30096993,7625.5,0,Contractor Payments,,Invoice,BACS,No,31/01/2023 00:00,2022,12,6459,N42068,"Kitchen, bathroom and electrical upgrades",1233,Contractor Payments,XXX99,*** UNASSIGNED ***,WCC,CEC Recharges,WC,CEC Recharges,A,Central Services
GUILDFORD BOROUGH COUNCIL,Modern Homes,1000554,Seville Developments,07/03/2023,30096993,7625.5,0,Contractor Payments,,Invoice,BACS,No,31/01/2023 00:00,2022,12,6459,N42068,"Kitchen, bathroom and electrical upgrades",1233,Contractor Payments,XXX99,*** UNASSIGNED ***,WCC,CEC Recharges,WC,CEC Recharges,A,Central Services
GUILDFORD BOROUGH COUNCIL,Modern Homes,1000554,Seville Developments,07/03/2023,30096993,7625.5,0,Contractor Payments,,Invoice,BACS,No,31/01/2023 00:00,2022,12,6459,N42068,"Kitchen, bathroom and electrical upgrades",1233,Contractor Payments,XXX99,*** UNASSIGNED ***,WCC,CEC Recharges,WC,CEC Recharges,A,Central Services
GUILDFORD BOROUGH COUNCIL,Modern Homes,1000554,Seville Developments,07/03/2023,30096993,8601.6,0,Contractor Payments,,Invoice,BACS,No,31/01/2023 00:00,2022,12,6459,N42068,"Kitchen, bathroom and electrical upgrades",1233,Contractor Payments,XXX99,*** UNASSIGNED ***,WCC,CEC Recharges,WC,CEC Recharges,A,Central Services
GUILDFORD BOROUGH COUNCIL,Modern Homes,1000554,Seville Developments,07/03/2023,30096993,7526.82,0,Contractor Payments,,Invoice,BACS,No,31/01/2023 00:00,2022,12,6459,N42068,"Kitchen, bathroom and electrical upgrades",1233,Contractor Payments,XXX99,*** UNASSIGNED ***,WCC,CEC Recharges,WC,CEC Recharges,A,Central Services
GUILDFORD BOROUGH COUNCIL,Renovations,1000554,Seville Developments,07/03/2023,30096994,62463.72,0,Contractor Payments,,Invoice,BACS,No,17/02/2023 00:00,2022,12,6591,N40292,Fire protection works,1233,Contractor Payments,XXX99,*** UNASSIGNED ***,WCC,CEC Recharges,WC,CEC Recharges,A,Central Services
GUILDFORD BOROUGH COUNCIL,Modern Homes,1000554,Seville Developments,07/03/2023,30096995,11500,0,Agency Staff,,Invoice,BACS,No,22/02/2023 00:00,2022,12,6602,N42068,"Kitchen, bathroom and electrical upgrades",1222,Agency Staff,XXX99,*** UNASSIGNED ***,WCC,CEC Recharges,WC,CEC Recharges,A,Central Services
GUILDFORD BOROUGH COUNCIL,Modern Homes,1000554,Seville Developments,07/03/2023,30096995,11500,0,Contractor Payments,,Invoice,BACS,No,22/02/2023 00:00,2022,12,6602,N42068,"Kitchen, bathroom and electrical upgrades",1233,Contractor Payments,XXX99,*** UNASSIGNED ***,WCC,CEC Recharges,WC,CEC Recharges,A,Central Services
GUILDFORD BOROUGH COUNCIL,Modern Homes,1000554,Seville Developments,07/03/2023,30096995,11500,0,Contractor Payments,,Invoice,BACS,No,22/02/2023 00:00,2022,12,6602,N42068,"Kitchen, bathroom and electrical upgrades",1233,Contractor Payments,XXX99,*** UNASSIGNED ***,WCC,CEC Recharges,WC,CEC Recharges,A,Central Services
GUILDFORD BOROUGH COUNCIL,Modern Homes,1000554,Seville Developments,07/03/2023,30096995,11500,0,Contractor Payments,,Invoice,BACS,No,22/02/2023 00:00,2022,12,6602,N42068,"Kitchen, bathroom and electrical upgrades",1233,Contractor Payments,XXX99,*** UNASSIGNED ***,WCC,CEC Recharges,WC,CEC Recharges,A,Central Services
GUILDFORD BOROUGH COUNCIL,Renovations,1000554,Seville Developments,14/03/2023,30097466,14363,0,Contractor Payments,,Invoice,BACS,No,31/01/2023 00:00,2022,12,6589,N40292,Fire protection works,1233,Contractor Payments,XXX99,*** UNASSIGNED ***,WCC,CEC Recharges,WC,CEC Recharges,A,Central Services
GUILDFORD BOROUGH COUNCIL,Renovations,1000554,Seville Developments,14/03/2023,30097466,2890,0,Contractor Payments,,Invoice,BACS,No,31/01/2023 00:00,2022,12,6589,N40292,Fire protection works,1233,Contractor Payments,XXX99,*** UNASSIGNED ***,WCC,CEC Recharges,WC,CEC Recharges,A,Central Services
GUILDFORD BOROUGH COUNCIL,Renovations,1000554,Seville Developments,14/03/2023,30097467,3043.68,0,Contractor Payments,,Invoice,BACS,No,31/01/2023 00:00,2022,12,6590,N40292,Fire protection works,1233,Contractor Payments,XXX99,*** UNASSIGNED ***,WCC,CEC Recharges,WC,CEC Recharges,A,Central Services
GUILDFORD BOROUGH COUNCIL,Modern Homes,1000554,Seville Developments,16/03/2023,30097597,32273.6,0,Contractor Payments,,Invoice,BACS,No,31/01/2023 00:00,2022,12,6588,N42068,"Kitchen, bathroom and electrical upgrades",1233,Contractor Payments,XXX99,*** UNASSIGNED ***,WCC,CEC Recharges,WC,CEC Recharges,A,Central Services
GUILDFORD BOROUGH COUNCIL,Modern Homes,1000554,Seville Developments,16/03/2023,30097597,5815,0,Contractor Payments,,Invoice,BACS,No,31/01/2023 00:00,2022,12,6588,N42068,"Kitchen, bathroom and electrical upgrades",1233,Contractor Payments,XXX99,*** UNASSIGNED ***,WCC,CEC Recharges,WC,CEC Recharges,A,Central Services
GUILDFORD BOROUGH COUNCIL,Modern Homes,1000554,Seville Developments,16/03/2023,30097598,11500,0,Contractor Payments,,Invoice,BACS,No,28/02/2023 00:00,2022,12,6632,N42068,"Kitchen, bathroom and electrical upgrades",1233,Contractor Payments,XXX99,*** UNASSIGNED ***,WCC,CEC Recharges,WC,CEC Recharges,A,Central Services
GUILDFORD BOROUGH COUNCIL,Modern Homes,1000554,Seville Developments,16/03/2023,30097598,11500,0,Contractor Payments,,Invoice,BACS,No,28/02/2023 00:00,2022,12,6632,N42068,"Kitchen, bathroom and electrical upgrades",1233,Contractor Payments,XXX99,*** UNASSIGNED ***,WCC,CEC Recharges,WC,CEC Recharges,A,Central Services
GUILDFORD BOROUGH COUNCIL,Modern Homes,1000554,Seville Developments,16/03/2023,30097598,7625.5,0,Contractor Payments,,Invoice,BACS,No,28/02/2023 00:00,2022,12,6632,N42068,"Kitchen, bathroom and electrical upgrades",1233,Contractor Payments,XXX99,*** UNASSIGNED ***,WCC,CEC Recharges,WC,CEC Recharges,A,Central Services
GUILDFORD BOROUGH COUNCIL,Modern Homes,1000554,Seville Developments,16/03/2023,30097598,7625.5,0,Contractor Payments,,Invoice,BACS,No,28/02/2023 00:00,2022,12,6632,N42068,"Kitchen, bathroom and electrical upgrades",1233,Contractor Payments,XXX99,*** UNASSIGNED ***,WCC,CEC Recharges,WC,CEC Recharges,A,Central Services
